{"text_format":"1","workbook":"xlsx","n_sheets":9,"sheets":["Instructions and Declaration","Section A","Section B","Section C","Section D","Section E","Section F","List","School List"],"not_rendered":{"charts":0,"images":0,"macros":1,"external_links":0,"defined_names":41,"comments":0,"pivot_tables":0},"unopened":[],"bounds":{"document_bytes":16777216,"sheet_cells":100000,"rows_first":2000,"rows_last":500,"rows_between":2000,"halvings":0,"cell_chars":16384,"cell_head_chars":4096},"cells_cut":0,"cells_raw":0,"read":"whole","date_system":"1900"}

{"sheet":"Instructions and Declaration","index":0,"n_rows":64,"n_cols":9,"rows_kept":64,"cut":false,"hidden":false,"merged":[[10,1,10,6],[11,1,11,6],[25,1,25,6],[35,1,35,6],[37,1,37,6],[15,1,15,6],[12,1,12,6],[13,1,13,6],[49,1,49,6],[18,1,18,6],[19,1,19,6],[20,1,20,6],[21,1,21,6],[22,1,22,6],[39,1,39,6],[41,1,41,6],[43,1,43,6],[45,1,45,6],[47,1,47,6]]}
[null,"QUEENSLAND CATHOLIC EDUCATION COMMISSION"]
[]
[null,"State SWD Program"]
[null,2022,"Educational Accountability"]
[]
[]
[null,"Reporting Period"]
[null,{"$f":"DATE(CollectionYear,1,1)","v":"2022-01-01"},"to",{"$f":"DATE(CollectionYear,12,31)","v":"2022-12-31"}]
[]
[null,"Funding Purpose"]
[null,"The State SWD program is developed to support the education of students with disability in non-state schools and promote the educational outcomes of these students."]
[null,"The funds are to be used to support eligible students through:"]
[null,"1) the improvement of in-school resourcing for students with disability. In-school support may include: teacher aide time, professional development for teachers working with students with disability, purchase of external support services (including therapists and other specialist support), the purchase of specialised equipment and resources for the student and/or their teachers; and/or"]
[null,"2) the provision of centralised or regionalised services to support students with disability"]
[]
[null,"Click here for details about Students with Disability Program for Non-State Schools"]
[]
[null,"Accountability and Acquittal"]
[null,"QCEC must provide the Director, Office of Non-State Education, accountability reports and audited financial statements for funds on a calendar year basis. To account for the allocation and use of the funds QCEC requires the collection of information from relevant authorities and/or schools to facilitate this requirement."]
[null,"Schools are required to:"]
[null,"1) hold relevant documentation that verifies the impairment and educational adjustments in place for each eligible student; and"]
[null,"2) develop, implement and review education plans for each eligible student which includes any adjustments required to achieve education outcomes; and"]
[null,"3) provide audited statements to their respective authority verifying that the funds were expended to support the educational adjustments in place for the eligible student."]
[]
[null,"Target Group"]
[null,"Students with Disability who are eligible for support under the Students with Disability Program for Non-State Schools (SWD NSS) are those students with a current Education Adjustment Program (EAP) verification in one or more of the following disability categories: "]
[null,"● Autism Spectrum Disorder (ASD)"]
[null,"● Hearing Impairment (HI)"]
[null,"● Intellectual Disability (ID)"]
[null,"● Physical Impairment (PI)"]
[null,"● Speech-Language Impairment (SLI)"]
[null,"● Vision Impairment (VI)"]
[null,"● Social Emotional Disorder (SED)"]
[]
[null,"Instructions"]
[null,"Please complete all sections within this template:"]
[null,"● Section A - Staff Employment"]
[null,"In-school support for students with an EAP verification (please specify in Column A), this includes teacher aide, additional support teachers/therapists (central/regional/individual office service)"]
[null,"● Section B - Professional Development for Teachers and School Leaders"]
[null," Professional development for teachers working with students with an EAP verification (central/regional/individual office service)"]
[null,"● Section C - Services Provided"]
[null,"Purchase of external support services for students with an EAP verification (including therapists and other specialist support)"]
[null,"● Section D - Resources Purchased"]
[null,"Purchase of specialised equipment and resources for students with an EAP verification and/or their teachers"]
[null,"● Section E - Monitoring Process"]
[null,"The monitoring processes used to ensure funds are used to improve the learning outcomes of students with an EAP verification"]
[null,"● Section F - Improved Outcomes"]
[null,"An overview of the improved educational outcomes for students with an EAP verification in Your Schools"]
[]
[null,"Please return the completed template to datacollections@qcec.catholic.edu.au by 18 November 2022."]
[]
[]
[null,"Select your CSA",null,null,null,null,null,null,{"$f":"IF(CSAName=\"\",\"\",IF(ISERROR(VLOOKUP(CSAName,'School List'!$H$2:$H$296,1,0)),\"RI_PJP_Schools\",SUBSTITUTE(SUBSTITUTE(SUBSTITUTE(F53,\" \",\"_\"),\"'\",\"\"),\",\",\"\")))","v":""}]
[]
[null,"Select your School (if applicable)"]
[]
[null,"CSA/School Declaration"]
[null,"I confirm that the information provided in this template is true and correct."]
[]
[null,"I understand that  giving false or misleading information is a serious offence under section 137.1 of the Criminal Code Act 1995 (Cth)."]
[]
[null,"Name of Authorised Representative:"]
[null,"Position:"]
[null,"Date:"]

{"sheet":"Section A","index":1,"n_rows":155,"n_cols":7,"rows_kept":155,"cut":false,"hidden":false,"merged":[[3,1,3,3]]}
[null,{"$f":"'Instructions and Declaration'!B3","v":"State SWD Program"}]
[null,"Section A - Staff Employment"]
[null,"Note: Only identify staff employed using funds from this program"]
[null,{"$f":"COUNTIFS(tblSectionA[#Data],\"*NCCD*\")","v":0}]
[null,"EAP Verification Category","Role / Position","Describe the services provided by this role holder","Employed by (the funding is the SWD money that we are acquitting)","How is staff deployment monitored","Check"]
[null,null,null,null,null,null,{"$f":"IF(COUNTA(tblSectionA[[#This Row],[EAP Verification Category]:[How is staff deployment monitored]])<COUNTA(tblSectionA[[#Headers],[EAP Verification Category]:[How is staff deployment monitored]]),\"Incomplete\",\"OK\")","v":"Incomplete"}]
[null,null,null,null,null,null,{"$f":"IF(COUNTA(tblSectionA[[#This Row],[EAP Verification Category]:[How is staff deployment monitored]])<COUNTA(tblSectionA[[#Headers],[EAP Verification Category]:[How is staff deployment monitored]]),\"Incomplete\",\"OK\")","v":"Incomplete"}]
[null,null,null,null,null,null,{"$f":"IF(COUNTA(tblSectionA[[#This Row],[EAP Verification Category]:[How is staff deployment monitored]])<COUNTA(tblSectionA[[#Headers],[EAP Verification Category]:[How is staff deployment monitored]]),\"Incomplete\",\"OK\")","v":"Incomplete"}]
[null,null,null,null,null,null,{"$f":"IF(COUNTA(tblSectionA[[#This Row],[EAP Verification Category]:[How is staff deployment monitored]])<COUNTA(tblSectionA[[#Headers],[EAP Verification Category]:[How is staff deployment monitored]]),\"Incomplete\",\"OK\")","v":"Incomplete"}]
[null,null,null,null,null,null,{"$f":"IF(COUNTA(tblSectionA[[#This Row],[EAP Verification Category]:[How is staff deployment monitored]])<COUNTA(tblSectionA[[#Headers],[EAP Verification Category]:[How is staff deployment monitored]]),\"Incomplete\",\"OK\")","v":"Incomplete"}]
[null,null,null,null,null,null,{"$f":"IF(COUNTA(tblSectionA[[#This Row],[EAP Verification Category]:[How is staff deployment monitored]])<COUNTA(tblSectionA[[#Headers],[EAP Verification Category]:[How is staff deployment monitored]]),\"Incomplete\",\"OK\")","v":"Incomplete"}]
[null,null,null,null,null,null,{"$f":"IF(COUNTA(tblSectionA[[#This Row],[EAP Verification Category]:[How is staff deployment monitored]])<COUNTA(tblSectionA[[#Headers],[EAP Verification Category]:[How is staff deployment monitored]]),\"Incomplete\",\"OK\")","v":"Incomplete"}]
[null,null,null,null,null,null,{"$f":"IF(COUNTA(tblSectionA[[#This Row],[EAP Verification Category]:[How is staff deployment monitored]])<COUNTA(tblSectionA[[#Headers],[EAP Verification Category]:[How is staff deployment monitored]]),\"Incomplete\",\"OK\")","v":"Incomplete"}]
[null,null,null,null,null,null,{"$f":"IF(COUNTA(tblSectionA[[#This Row],[EAP Verification Category]:[How is staff deployment monitored]])<COUNTA(tblSectionA[[#Headers],[EAP Verification Category]:[How is staff deployment monitored]]),\"Incomplete\",\"OK\")","v":"Incomplete"}]
[null,null,null,null,null,null,{"$f":"IF(COUNTA(tblSectionA[[#This Row],[EAP Verification Category]:[How is staff deployment monitored]])<COUNTA(tblSectionA[[#Headers],[EAP Verification Category]:[How is staff deployment monitored]]),\"Incomplete\",\"OK\")","v":"Incomplete"}]
[null,null,null,null,null,null,{"$f":"IF(COUNTA(tblSectionA[[#This Row],[EAP Verification Category]:[How is staff deployment monitored]])<COUNTA(tblSectionA[[#Headers],[EAP Verification Category]:[How is staff deployment monitored]]),\"Incomplete\",\"OK\")","v":"Incomplete"}]
[null,null,null,null,null,null,{"$f":"IF(COUNTA(tblSectionA[[#This Row],[EAP Verification Category]:[How is staff deployment monitored]])<COUNTA(tblSectionA[[#Headers],[EAP Verification Category]:[How is staff deployment monitored]]),\"Incomplete\",\"OK\")","v":"Incomplete"}]
[null,null,null,null,null,null,{"$f":"IF(COUNTA(tblSectionA[[#This Row],[EAP Verification Category]:[How is staff deployment monitored]])<COUNTA(tblSectionA[[#Headers],[EAP Verification Category]:[How is staff deployment monitored]]),\"Incomplete\",\"OK\")","v":"Incomplete"}]
[null,null,null,null,null,null,{"$f":"IF(COUNTA(tblSectionA[[#This Row],[EAP Verification Category]:[How is staff deployment monitored]])<COUNTA(tblSectionA[[#Headers],[EAP Verification Category]:[How is staff deployment monitored]]),\"Incomplete\",\"OK\")","v":"Incomplete"}]
[null,null,null,null,null,null,{"$f":"IF(COUNTA(tblSectionA[[#This Row],[EAP Verification Category]:[How is staff deployment monitored]])<COUNTA(tblSectionA[[#Headers],[EAP Verification Category]:[How is staff deployment monitored]]),\"Incomplete\",\"OK\")","v":"Incomplete"}]
[null,null,null,null,null,null,{"$f":"IF(COUNTA(tblSectionA[[#This Row],[EAP Verification Category]:[How is staff deployment monitored]])<COUNTA(tblSectionA[[#Headers],[EAP Verification Category]:[How is staff deployment monitored]]),\"Incomplete\",\"OK\")","v":"Incomplete"}]
[null,null,null,null,null,null,{"$f":"IF(COUNTA(tblSectionA[[#This Row],[EAP Verification Category]:[How is staff deployment monitored]])<COUNTA(tblSectionA[[#Headers],[EAP Verification Category]:[How is staff deployment monitored]]),\"Incomplete\",\"OK\")","v":"Incomplete"}]
[null,null,null,null,null,null,{"$f":"IF(COUNTA(tblSectionA[[#This Row],[EAP Verification Category]:[How is staff deployment monitored]])<COUNTA(tblSectionA[[#Headers],[EAP Verification Category]:[How is staff deployment monitored]]),\"Incomplete\",\"OK\")","v":"Incomplete"}]
[null,null,null,null,null,null,{"$f":"IF(COUNTA(tblSectionA[[#This Row],[EAP Verification Category]:[How is staff deployment monitored]])<COUNTA(tblSectionA[[#Headers],[EAP Verification Category]:[How is staff deployment monitored]]),\"Incomplete\",\"OK\")","v":"Incomplete"}]
[null,null,null,null,null,null,{"$f":"IF(COUNTA(tblSectionA[[#This Row],[EAP Verification Category]:[How is staff deployment monitored]])<COUNTA(tblSectionA[[#Headers],[EAP Verification Category]:[How is staff deployment monitored]]),\"Incomplete\",\"OK\")","v":"Incomplete"}]
[null,null,null,null,null,null,{"$f":"IF(COUNTA(tblSectionA[[#This Row],[EAP Verification Category]:[How is staff deployment monitored]])<COUNTA(tblSectionA[[#Headers],[EAP Verification Category]:[How is staff deployment monitored]]),\"Incomplete\",\"OK\")","v":"Incomplete"}]
[null,null,null,null,null,null,{"$f":"IF(COUNTA(tblSectionA[[#This Row],[EAP Verification Category]:[How is staff deployment monitored]])<COUNTA(tblSectionA[[#Headers],[EAP Verification Category]:[How is staff deployment monitored]]),\"Incomplete\",\"OK\")","v":"Incomplete"}]
[null,null,null,null,null,null,{"$f":"IF(COUNTA(tblSectionA[[#This Row],[EAP Verification Category]:[How is staff deployment monitored]])<COUNTA(tblSectionA[[#Headers],[EAP Verification Category]:[How is staff deployment monitored]]),\"Incomplete\",\"OK\")","v":"Incomplete"}]
[null,null,null,null,null,null,{"$f":"IF(COUNTA(tblSectionA[[#This Row],[EAP Verification Category]:[How is staff deployment monitored]])<COUNTA(tblSectionA[[#Headers],[EAP Verification Category]:[How is staff deployment monitored]]),\"Incomplete\",\"OK\")","v":"Incomplete"}]
[null,null,null,null,null,null,{"$f":"IF(COUNTA(tblSectionA[[#This Row],[EAP Verification Category]:[How is staff deployment monitored]])<COUNTA(tblSectionA[[#Headers],[EAP Verification Category]:[How is staff deployment monitored]]),\"Incomplete\",\"OK\")","v":"Incomplete"}]
[null,null,null,null,null,null,{"$f":"IF(COUNTA(tblSectionA[[#This Row],[EAP Verification Category]:[How is staff deployment monitored]])<COUNTA(tblSectionA[[#Headers],[EAP Verification Category]:[How is staff deployment monitored]]),\"Incomplete\",\"OK\")","v":"Incomplete"}]
[null,null,null,null,null,null,{"$f":"IF(COUNTA(tblSectionA[[#This Row],[EAP Verification Category]:[How is staff deployment monitored]])<COUNTA(tblSectionA[[#Headers],[EAP Verification Category]:[How is staff deployment monitored]]),\"Incomplete\",\"OK\")","v":"Incomplete"}]
[null,null,null,null,null,null,{"$f":"IF(COUNTA(tblSectionA[[#This Row],[EAP Verification Category]:[How is staff deployment monitored]])<COUNTA(tblSectionA[[#Headers],[EAP Verification Category]:[How is staff deployment monitored]]),\"Incomplete\",\"OK\")","v":"Incomplete"}]
[null,null,null,null,null,null,{"$f":"IF(COUNTA(tblSectionA[[#This Row],[EAP Verification Category]:[How is staff deployment monitored]])<COUNTA(tblSectionA[[#Headers],[EAP Verification Category]:[How is staff deployment monitored]]),\"Incomplete\",\"OK\")","v":"Incomplete"}]
[null,null,null,null,null,null,{"$f":"IF(COUNTA(tblSectionA[[#This Row],[EAP Verification Category]:[How is staff deployment monitored]])<COUNTA(tblSectionA[[#Headers],[EAP Verification Category]:[How is staff deployment monitored]]),\"Incomplete\",\"OK\")","v":"Incomplete"}]
[null,null,null,null,null,null,{"$f":"IF(COUNTA(tblSectionA[[#This Row],[EAP Verification Category]:[How is staff deployment monitored]])<COUNTA(tblSectionA[[#Headers],[EAP Verification Category]:[How is staff deployment monitored]]),\"Incomplete\",\"OK\")","v":"Incomplete"}]
[null,null,null,null,null,null,{"$f":"IF(COUNTA(tblSectionA[[#This Row],[EAP Verification Category]:[How is staff deployment monitored]])<COUNTA(tblSectionA[[#Headers],[EAP Verification Category]:[How is staff deployment monitored]]),\"Incomplete\",\"OK\")","v":"Incomplete"}]
[null,null,null,null,null,null,{"$f":"IF(COUNTA(tblSectionA[[#This Row],[EAP Verification Category]:[How is staff deployment monitored]])<COUNTA(tblSectionA[[#Headers],[EAP Verification Category]:[How is staff deployment monitored]]),\"Incomplete\",\"OK\")","v":"Incomplete"}]
[null,null,null,null,null,null,{"$f":"IF(COUNTA(tblSectionA[[#This Row],[EAP Verification Category]:[How is staff deployment monitored]])<COUNTA(tblSectionA[[#Headers],[EAP Verification Category]:[How is staff deployment monitored]]),\"Incomplete\",\"OK\")","v":"Incomplete"}]
[null,null,null,null,null,null,{"$f":"IF(COUNTA(tblSectionA[[#This Row],[EAP Verification Category]:[How is staff deployment monitored]])<COUNTA(tblSectionA[[#Headers],[EAP Verification Category]:[How is staff deployment monitored]]),\"Incomplete\",\"OK\")","v":"Incomplete"}]
[null,null,null,null,null,null,{"$f":"IF(COUNTA(tblSectionA[[#This Row],[EAP Verification Category]:[How is staff deployment monitored]])<COUNTA(tblSectionA[[#Headers],[EAP Verification Category]:[How is staff deployment monitored]]),\"Incomplete\",\"OK\")","v":"Incomplete"}]
[null,null,null,null,null,null,{"$f":"IF(COUNTA(tblSectionA[[#This Row],[EAP Verification Category]:[How is staff deployment monitored]])<COUNTA(tblSectionA[[#Headers],[EAP Verification Category]:[How is staff deployment monitored]]),\"Incomplete\",\"OK\")","v":"Incomplete"}]
[null,null,null,null,null,null,{"$f":"IF(COUNTA(tblSectionA[[#This Row],[EAP Verification Category]:[How is staff deployment monitored]])<COUNTA(tblSectionA[[#Headers],[EAP Verification Category]:[How is staff deployment monitored]]),\"Incomplete\",\"OK\")","v":"Incomplete"}]
[null,null,null,null,null,null,{"$f":"IF(COUNTA(tblSectionA[[#This Row],[EAP Verification Category]:[How is staff deployment monitored]])<COUNTA(tblSectionA[[#Headers],[EAP Verification Category]:[How is staff deployment monitored]]),\"Incomplete\",\"OK\")","v":"Incomplete"}]
[null,null,null,null,null,null,{"$f":"IF(COUNTA(tblSectionA[[#This Row],[EAP Verification Category]:[How is staff deployment monitored]])<COUNTA(tblSectionA[[#Headers],[EAP Verification Category]:[How is staff deployment monitored]]),\"Incomplete\",\"OK\")","v":"Incomplete"}]
[null,null,null,null,null,null,{"$f":"IF(COUNTA(tblSectionA[[#This Row],[EAP Verification Category]:[How is staff deployment monitored]])<COUNTA(tblSectionA[[#Headers],[EAP Verification Category]:[How is staff deployment monitored]]),\"Incomplete\",\"OK\")","v":"Incomplete"}]
[null,null,null,null,null,null,{"$f":"IF(COUNTA(tblSectionA[[#This Row],[EAP Verification Category]:[How is staff deployment monitored]])<COUNTA(tblSectionA[[#Headers],[EAP Verification Category]:[How is staff deployment monitored]]),\"Incomplete\",\"OK\")","v":"Incomplete"}]
[null,null,null,null,null,null,{"$f":"IF(COUNTA(tblSectionA[[#This Row],[EAP Verification Category]:[How is staff deployment monitored]])<COUNTA(tblSectionA[[#Headers],[EAP Verification Category]:[How is staff deployment monitored]]),\"Incomplete\",\"OK\")","v":"Incomplete"}]
[null,null,null,null,null,null,{"$f":"IF(COUNTA(tblSectionA[[#This Row],[EAP Verification Category]:[How is staff deployment monitored]])<COUNTA(tblSectionA[[#Headers],[EAP Verification Category]:[How is staff deployment monitored]]),\"Incomplete\",\"OK\")","v":"Incomplete"}]
[null,null,null,null,null,null,{"$f":"IF(COUNTA(tblSectionA[[#This Row],[EAP Verification Category]:[How is staff deployment monitored]])<COUNTA(tblSectionA[[#Headers],[EAP Verification Category]:[How is staff deployment monitored]]),\"Incomplete\",\"OK\")","v":"Incomplete"}]
[null,null,null,null,null,null,{"$f":"IF(COUNTA(tblSectionA[[#This Row],[EAP Verification Category]:[How is staff deployment monitored]])<COUNTA(tblSectionA[[#Headers],[EAP Verification Category]:[How is staff deployment monitored]]),\"Incomplete\",\"OK\")","v":"Incomplete"}]
[null,null,null,null,null,null,{"$f":"IF(COUNTA(tblSectionA[[#This Row],[EAP Verification Category]:[How is staff deployment monitored]])<COUNTA(tblSectionA[[#Headers],[EAP Verification Category]:[How is staff deployment monitored]]),\"Incomplete\",\"OK\")","v":"Incomplete"}]
[null,null,null,null,null,null,{"$f":"IF(COUNTA(tblSectionA[[#This Row],[EAP Verification Category]:[How is staff deployment monitored]])<COUNTA(tblSectionA[[#Headers],[EAP Verification Category]:[How is staff deployment monitored]]),\"Incomplete\",\"OK\")","v":"Incomplete"}]
[null,null,null,null,null,null,{"$f":"IF(COUNTA(tblSectionA[[#This Row],[EAP Verification Category]:[How is staff deployment monitored]])<COUNTA(tblSectionA[[#Headers],[EAP Verification Category]:[How is staff deployment monitored]]),\"Incomplete\",\"OK\")","v":"Incomplete"}]
[null,null,null,null,null,null,{"$f":"IF(COUNTA(tblSectionA[[#This Row],[EAP Verification Category]:[How is staff deployment monitored]])<COUNTA(tblSectionA[[#Headers],[EAP Verification Category]:[How is staff deployment monitored]]),\"Incomplete\",\"OK\")","v":"Incomplete"}]
[null,null,null,null,null,null,{"$f":"IF(COUNTA(tblSectionA[[#This Row],[EAP Verification Category]:[How is staff deployment monitored]])<COUNTA(tblSectionA[[#Headers],[EAP Verification Category]:[How is staff deployment monitored]]),\"Incomplete\",\"OK\")","v":"Incomplete"}]
[null,null,null,null,null,null,{"$f":"IF(COUNTA(tblSectionA[[#This Row],[EAP Verification Category]:[How is staff deployment monitored]])<COUNTA(tblSectionA[[#Headers],[EAP Verification Category]:[How is staff deployment monitored]]),\"Incomplete\",\"OK\")","v":"Incomplete"}]
[null,null,null,null,null,null,{"$f":"IF(COUNTA(tblSectionA[[#This Row],[EAP Verification Category]:[How is staff deployment monitored]])<COUNTA(tblSectionA[[#Headers],[EAP Verification Category]:[How is staff deployment monitored]]),\"Incomplete\",\"OK\")","v":"Incomplete"}]
[null,null,null,null,null,null,{"$f":"IF(COUNTA(tblSectionA[[#This Row],[EAP Verification Category]:[How is staff deployment monitored]])<COUNTA(tblSectionA[[#Headers],[EAP Verification Category]:[How is staff deployment monitored]]),\"Incomplete\",\"OK\")","v":"Incomplete"}]
[null,null,null,null,null,null,{"$f":"IF(COUNTA(tblSectionA[[#This Row],[EAP Verification Category]:[How is staff deployment monitored]])<COUNTA(tblSectionA[[#Headers],[EAP Verification Category]:[How is staff deployment monitored]]),\"Incomplete\",\"OK\")","v":"Incomplete"}]
[null,null,null,null,null,null,{"$f":"IF(COUNTA(tblSectionA[[#This Row],[EAP Verification Category]:[How is staff deployment monitored]])<COUNTA(tblSectionA[[#Headers],[EAP Verification Category]:[How is staff deployment monitored]]),\"Incomplete\",\"OK\")","v":"Incomplete"}]
[null,null,null,null,null,null,{"$f":"IF(COUNTA(tblSectionA[[#This Row],[EAP Verification Category]:[How is staff deployment monitored]])<COUNTA(tblSectionA[[#Headers],[EAP Verification Category]:[How is staff deployment monitored]]),\"Incomplete\",\"OK\")","v":"Incomplete"}]
[null,null,null,null,null,null,{"$f":"IF(COUNTA(tblSectionA[[#This Row],[EAP Verification Category]:[How is staff deployment monitored]])<COUNTA(tblSectionA[[#Headers],[EAP Verification Category]:[How is staff deployment monitored]]),\"Incomplete\",\"OK\")","v":"Incomplete"}]
[null,null,null,null,null,null,{"$f":"IF(COUNTA(tblSectionA[[#This Row],[EAP Verification Category]:[How is staff deployment monitored]])<COUNTA(tblSectionA[[#Headers],[EAP Verification Category]:[How is staff deployment monitored]]),\"Incomplete\",\"OK\")","v":"Incomplete"}]
[null,null,null,null,null,null,{"$f":"IF(COUNTA(tblSectionA[[#This Row],[EAP Verification Category]:[How is staff deployment monitored]])<COUNTA(tblSectionA[[#Headers],[EAP Verification Category]:[How is staff deployment monitored]]),\"Incomplete\",\"OK\")","v":"Incomplete"}]
[null,null,null,null,null,null,{"$f":"IF(COUNTA(tblSectionA[[#This Row],[EAP Verification Category]:[How is staff deployment monitored]])<COUNTA(tblSectionA[[#Headers],[EAP Verification Category]:[How is staff deployment monitored]]),\"Incomplete\",\"OK\")","v":"Incomplete"}]
[null,null,null,null,null,null,{"$f":"IF(COUNTA(tblSectionA[[#This Row],[EAP Verification Category]:[How is staff deployment monitored]])<COUNTA(tblSectionA[[#Headers],[EAP Verification Category]:[How is staff deployment monitored]]),\"Incomplete\",\"OK\")","v":"Incomplete"}]
[null,null,null,null,null,null,{"$f":"IF(COUNTA(tblSectionA[[#This Row],[EAP Verification Category]:[How is staff deployment monitored]])<COUNTA(tblSectionA[[#Headers],[EAP Verification Category]:[How is staff deployment monitored]]),\"Incomplete\",\"OK\")","v":"Incomplete"}]
[null,null,null,null,null,null,{"$f":"IF(COUNTA(tblSectionA[[#This Row],[EAP Verification Category]:[How is staff deployment monitored]])<COUNTA(tblSectionA[[#Headers],[EAP Verification Category]:[How is staff deployment monitored]]),\"Incomplete\",\"OK\")","v":"Incomplete"}]
[null,null,null,null,null,null,{"$f":"IF(COUNTA(tblSectionA[[#This Row],[EAP Verification Category]:[How is staff deployment monitored]])<COUNTA(tblSectionA[[#Headers],[EAP Verification Category]:[How is staff deployment monitored]]),\"Incomplete\",\"OK\")","v":"Incomplete"}]
[null,null,null,null,null,null,{"$f":"IF(COUNTA(tblSectionA[[#This Row],[EAP Verification Category]:[How is staff deployment monitored]])<COUNTA(tblSectionA[[#Headers],[EAP Verification Category]:[How is staff deployment monitored]]),\"Incomplete\",\"OK\")","v":"Incomplete"}]
[null,null,null,null,null,null,{"$f":"IF(COUNTA(tblSectionA[[#This Row],[EAP Verification Category]:[How is staff deployment monitored]])<COUNTA(tblSectionA[[#Headers],[EAP Verification Category]:[How is staff deployment monitored]]),\"Incomplete\",\"OK\")","v":"Incomplete"}]
[null,null,null,null,null,null,{"$f":"IF(COUNTA(tblSectionA[[#This Row],[EAP Verification Category]:[How is staff deployment monitored]])<COUNTA(tblSectionA[[#Headers],[EAP Verification Category]:[How is staff deployment monitored]]),\"Incomplete\",\"OK\")","v":"Incomplete"}]
[null,null,null,null,null,null,{"$f":"IF(COUNTA(tblSectionA[[#This Row],[EAP Verification Category]:[How is staff deployment monitored]])<COUNTA(tblSectionA[[#Headers],[EAP Verification Category]:[How is staff deployment monitored]]),\"Incomplete\",\"OK\")","v":"Incomplete"}]
[null,null,null,null,null,null,{"$f":"IF(COUNTA(tblSectionA[[#This Row],[EAP Verification Category]:[How is staff deployment monitored]])<COUNTA(tblSectionA[[#Headers],[EAP Verification Category]:[How is staff deployment monitored]]),\"Incomplete\",\"OK\")","v":"Incomplete"}]
[null,null,null,null,null,null,{"$f":"IF(COUNTA(tblSectionA[[#This Row],[EAP Verification Category]:[How is staff deployment monitored]])<COUNTA(tblSectionA[[#Headers],[EAP Verification Category]:[How is staff deployment monitored]]),\"Incomplete\",\"OK\")","v":"Incomplete"}]
[null,null,null,null,null,null,{"$f":"IF(COUNTA(tblSectionA[[#This Row],[EAP Verification Category]:[How is staff deployment monitored]])<COUNTA(tblSectionA[[#Headers],[EAP Verification Category]:[How is staff deployment monitored]]),\"Incomplete\",\"OK\")","v":"Incomplete"}]
[null,null,null,null,null,null,{"$f":"IF(COUNTA(tblSectionA[[#This Row],[EAP Verification Category]:[How is staff deployment monitored]])<COUNTA(tblSectionA[[#Headers],[EAP Verification Category]:[How is staff deployment monitored]]),\"Incomplete\",\"OK\")","v":"Incomplete"}]
[null,null,null,null,null,null,{"$f":"IF(COUNTA(tblSectionA[[#This Row],[EAP Verification Category]:[How is staff deployment monitored]])<COUNTA(tblSectionA[[#Headers],[EAP Verification Category]:[How is staff deployment monitored]]),\"Incomplete\",\"OK\")","v":"Incomplete"}]
[null,null,null,null,null,null,{"$f":"IF(COUNTA(tblSectionA[[#This Row],[EAP Verification Category]:[How is staff deployment monitored]])<COUNTA(tblSectionA[[#Headers],[EAP Verification Category]:[How is staff deployment monitored]]),\"Incomplete\",\"OK\")","v":"Incomplete"}]
[null,null,null,null,null,null,{"$f":"IF(COUNTA(tblSectionA[[#This Row],[EAP Verification Category]:[How is staff deployment monitored]])<COUNTA(tblSectionA[[#Headers],[EAP Verification Category]:[How is staff deployment monitored]]),\"Incomplete\",\"OK\")","v":"Incomplete"}]
[null,null,null,null,null,null,{"$f":"IF(COUNTA(tblSectionA[[#This Row],[EAP Verification Category]:[How is staff deployment monitored]])<COUNTA(tblSectionA[[#Headers],[EAP Verification Category]:[How is staff deployment monitored]]),\"Incomplete\",\"OK\")","v":"Incomplete"}]
[null,null,null,null,null,null,{"$f":"IF(COUNTA(tblSectionA[[#This Row],[EAP Verification Category]:[How is staff deployment monitored]])<COUNTA(tblSectionA[[#Headers],[EAP Verification Category]:[How is staff deployment monitored]]),\"Incomplete\",\"OK\")","v":"Incomplete"}]
[null,null,null,null,null,null,{"$f":"IF(COUNTA(tblSectionA[[#This Row],[EAP Verification Category]:[How is staff deployment monitored]])<COUNTA(tblSectionA[[#Headers],[EAP Verification Category]:[How is staff deployment monitored]]),\"Incomplete\",\"OK\")","v":"Incomplete"}]
[null,null,null,null,null,null,{"$f":"IF(COUNTA(tblSectionA[[#This Row],[EAP Verification Category]:[How is staff deployment monitored]])<COUNTA(tblSectionA[[#Headers],[EAP Verification Category]:[How is staff deployment monitored]]),\"Incomplete\",\"OK\")","v":"Incomplete"}]
[null,null,null,null,null,null,{"$f":"IF(COUNTA(tblSectionA[[#This Row],[EAP Verification Category]:[How is staff deployment monitored]])<COUNTA(tblSectionA[[#Headers],[EAP Verification Category]:[How is staff deployment monitored]]),\"Incomplete\",\"OK\")","v":"Incomplete"}]
[null,null,null,null,null,null,{"$f":"IF(COUNTA(tblSectionA[[#This Row],[EAP Verification Category]:[How is staff deployment monitored]])<COUNTA(tblSectionA[[#Headers],[EAP Verification Category]:[How is staff deployment monitored]]),\"Incomplete\",\"OK\")","v":"Incomplete"}]
[null,null,null,null,null,null,{"$f":"IF(COUNTA(tblSectionA[[#This Row],[EAP Verification Category]:[How is staff deployment monitored]])<COUNTA(tblSectionA[[#Headers],[EAP Verification Category]:[How is staff deployment monitored]]),\"Incomplete\",\"OK\")","v":"Incomplete"}]
[null,null,null,null,null,null,{"$f":"IF(COUNTA(tblSectionA[[#This Row],[EAP Verification Category]:[How is staff deployment monitored]])<COUNTA(tblSectionA[[#Headers],[EAP Verification Category]:[How is staff deployment monitored]]),\"Incomplete\",\"OK\")","v":"Incomplete"}]
[null,null,null,null,null,null,{"$f":"IF(COUNTA(tblSectionA[[#This Row],[EAP Verification Category]:[How is staff deployment monitored]])<COUNTA(tblSectionA[[#Headers],[EAP Verification Category]:[How is staff deployment monitored]]),\"Incomplete\",\"OK\")","v":"Incomplete"}]
[null,null,null,null,null,null,{"$f":"IF(COUNTA(tblSectionA[[#This Row],[EAP Verification Category]:[How is staff deployment monitored]])<COUNTA(tblSectionA[[#Headers],[EAP Verification Category]:[How is staff deployment monitored]]),\"Incomplete\",\"OK\")","v":"Incomplete"}]
[null,null,null,null,null,null,{"$f":"IF(COUNTA(tblSectionA[[#This Row],[EAP Verification Category]:[How is staff deployment monitored]])<COUNTA(tblSectionA[[#Headers],[EAP Verification Category]:[How is staff deployment monitored]]),\"Incomplete\",\"OK\")","v":"Incomplete"}]
[null,null,null,null,null,null,{"$f":"IF(COUNTA(tblSectionA[[#This Row],[EAP Verification Category]:[How is staff deployment monitored]])<COUNTA(tblSectionA[[#Headers],[EAP Verification Category]:[How is staff deployment monitored]]),\"Incomplete\",\"OK\")","v":"Incomplete"}]
[null,null,null,null,null,null,{"$f":"IF(COUNTA(tblSectionA[[#This Row],[EAP Verification Category]:[How is staff deployment monitored]])<COUNTA(tblSectionA[[#Headers],[EAP Verification Category]:[How is staff deployment monitored]]),\"Incomplete\",\"OK\")","v":"Incomplete"}]
[null,null,null,null,null,null,{"$f":"IF(COUNTA(tblSectionA[[#This Row],[EAP Verification Category]:[How is staff deployment monitored]])<COUNTA(tblSectionA[[#Headers],[EAP Verification Category]:[How is staff deployment monitored]]),\"Incomplete\",\"OK\")","v":"Incomplete"}]
[null,null,null,null,null,null,{"$f":"IF(COUNTA(tblSectionA[[#This Row],[EAP Verification Category]:[How is staff deployment monitored]])<COUNTA(tblSectionA[[#Headers],[EAP Verification Category]:[How is staff deployment monitored]]),\"Incomplete\",\"OK\")","v":"Incomplete"}]
[null,null,null,null,null,null,{"$f":"IF(COUNTA(tblSectionA[[#This Row],[EAP Verification Category]:[How is staff deployment monitored]])<COUNTA(tblSectionA[[#Headers],[EAP Verification Category]:[How is staff deployment monitored]]),\"Incomplete\",\"OK\")","v":"Incomplete"}]
[null,null,null,null,null,null,{"$f":"IF(COUNTA(tblSectionA[[#This Row],[EAP Verification Category]:[How is staff deployment monitored]])<COUNTA(tblSectionA[[#Headers],[EAP Verification Category]:[How is staff deployment monitored]]),\"Incomplete\",\"OK\")","v":"Incomplete"}]
[null,null,null,null,null,null,{"$f":"IF(COUNTA(tblSectionA[[#This Row],[EAP Verification Category]:[How is staff deployment monitored]])<COUNTA(tblSectionA[[#Headers],[EAP Verification Category]:[How is staff deployment monitored]]),\"Incomplete\",\"OK\")","v":"Incomplete"}]
[null,null,null,null,null,null,{"$f":"IF(COUNTA(tblSectionA[[#This Row],[EAP Verification Category]:[How is staff deployment monitored]])<COUNTA(tblSectionA[[#Headers],[EAP Verification Category]:[How is staff deployment monitored]]),\"Incomplete\",\"OK\")","v":"Incomplete"}]
[null,null,null,null,null,null,{"$f":"IF(COUNTA(tblSectionA[[#This Row],[EAP Verification Category]:[How is staff deployment monitored]])<COUNTA(tblSectionA[[#Headers],[EAP Verification Category]:[How is staff deployment monitored]]),\"Incomplete\",\"OK\")","v":"Incomplete"}]
[null,null,null,null,null,null,{"$f":"IF(COUNTA(tblSectionA[[#This Row],[EAP Verification Category]:[How is staff deployment monitored]])<COUNTA(tblSectionA[[#Headers],[EAP Verification Category]:[How is staff deployment monitored]]),\"Incomplete\",\"OK\")","v":"Incomplete"}]
[null,null,null,null,null,null,{"$f":"IF(COUNTA(tblSectionA[[#This Row],[EAP Verification Category]:[How is staff deployment monitored]])<COUNTA(tblSectionA[[#Headers],[EAP Verification Category]:[How is staff deployment monitored]]),\"Incomplete\",\"OK\")","v":"Incomplete"}]
[null,null,null,null,null,null,{"$f":"IF(COUNTA(tblSectionA[[#This Row],[EAP Verification Category]:[How is staff deployment monitored]])<COUNTA(tblSectionA[[#Headers],[EAP Verification Category]:[How is staff deployment monitored]]),\"Incomplete\",\"OK\")","v":"Incomplete"}]
[null,null,null,null,null,null,{"$f":"IF(COUNTA(tblSectionA[[#This Row],[EAP Verification Category]:[How is staff deployment monitored]])<COUNTA(tblSectionA[[#Headers],[EAP Verification Category]:[How is staff deployment monitored]]),\"Incomplete\",\"OK\")","v":"Incomplete"}]
[null,null,null,null,null,null,{"$f":"IF(COUNTA(tblSectionA[[#This Row],[EAP Verification Category]:[How is staff deployment monitored]])<COUNTA(tblSectionA[[#Headers],[EAP Verification Category]:[How is staff deployment monitored]]),\"Incomplete\",\"OK\")","v":"Incomplete"}]
[null,null,null,null,null,null,{"$f":"IF(COUNTA(tblSectionA[[#This Row],[EAP Verification Category]:[How is staff deployment monitored]])<COUNTA(tblSectionA[[#Headers],[EAP Verification Category]:[How is staff deployment monitored]]),\"Incomplete\",\"OK\")","v":"Incomplete"}]
[null,null,null,null,null,null,{"$f":"IF(COUNTA(tblSectionA[[#This Row],[EAP Verification Category]:[How is staff deployment monitored]])<COUNTA(tblSectionA[[#Headers],[EAP Verification Category]:[How is staff deployment monitored]]),\"Incomplete\",\"OK\")","v":"Incomplete"}]
[null,null,null,null,null,null,{"$f":"IF(COUNTA(tblSectionA[[#This Row],[EAP Verification Category]:[How is staff deployment monitored]])<COUNTA(tblSectionA[[#Headers],[EAP Verification Category]:[How is staff deployment monitored]]),\"Incomplete\",\"OK\")","v":"Incomplete"}]
[null,null,null,null,null,null,{"$f":"IF(COUNTA(tblSectionA[[#This Row],[EAP Verification Category]:[How is staff deployment monitored]])<COUNTA(tblSectionA[[#Headers],[EAP Verification Category]:[How is staff deployment monitored]]),\"Incomplete\",\"OK\")","v":"Incomplete"}]
[null,null,null,null,null,null,{"$f":"IF(COUNTA(tblSectionA[[#This Row],[EAP Verification Category]:[How is staff deployment monitored]])<COUNTA(tblSectionA[[#Headers],[EAP Verification Category]:[How is staff deployment monitored]]),\"Incomplete\",\"OK\")","v":"Incomplete"}]
[null,null,null,null,null,null,{"$f":"IF(COUNTA(tblSectionA[[#This Row],[EAP Verification Category]:[How is staff deployment monitored]])<COUNTA(tblSectionA[[#Headers],[EAP Verification Category]:[How is staff deployment monitored]]),\"Incomplete\",\"OK\")","v":"Incomplete"}]
[null,null,null,null,null,null,{"$f":"IF(COUNTA(tblSectionA[[#This Row],[EAP Verification Category]:[How is staff deployment monitored]])<COUNTA(tblSectionA[[#Headers],[EAP Verification Category]:[How is staff deployment monitored]]),\"Incomplete\",\"OK\")","v":"Incomplete"}]
[null,null,null,null,null,null,{"$f":"IF(COUNTA(tblSectionA[[#This Row],[EAP Verification Category]:[How is staff deployment monitored]])<COUNTA(tblSectionA[[#Headers],[EAP Verification Category]:[How is staff deployment monitored]]),\"Incomplete\",\"OK\")","v":"Incomplete"}]
[null,null,null,null,null,null,{"$f":"IF(COUNTA(tblSectionA[[#This Row],[EAP Verification Category]:[How is staff deployment monitored]])<COUNTA(tblSectionA[[#Headers],[EAP Verification Category]:[How is staff deployment monitored]]),\"Incomplete\",\"OK\")","v":"Incomplete"}]
[null,null,null,null,null,null,{"$f":"IF(COUNTA(tblSectionA[[#This Row],[EAP Verification Category]:[How is staff deployment monitored]])<COUNTA(tblSectionA[[#Headers],[EAP Verification Category]:[How is staff deployment monitored]]),\"Incomplete\",\"OK\")","v":"Incomplete"}]
[null,null,null,null,null,null,{"$f":"IF(COUNTA(tblSectionA[[#This Row],[EAP Verification Category]:[How is staff deployment monitored]])<COUNTA(tblSectionA[[#Headers],[EAP Verification Category]:[How is staff deployment monitored]]),\"Incomplete\",\"OK\")","v":"Incomplete"}]
[null,null,null,null,null,null,{"$f":"IF(COUNTA(tblSectionA[[#This Row],[EAP Verification Category]:[How is staff deployment monitored]])<COUNTA(tblSectionA[[#Headers],[EAP Verification Category]:[How is staff deployment monitored]]),\"Incomplete\",\"OK\")","v":"Incomplete"}]
[null,null,null,null,null,null,{"$f":"IF(COUNTA(tblSectionA[[#This Row],[EAP Verification Category]:[How is staff deployment monitored]])<COUNTA(tblSectionA[[#Headers],[EAP Verification Category]:[How is staff deployment monitored]]),\"Incomplete\",\"OK\")","v":"Incomplete"}]
[null,null,null,null,null,null,{"$f":"IF(COUNTA(tblSectionA[[#This Row],[EAP Verification Category]:[How is staff deployment monitored]])<COUNTA(tblSectionA[[#Headers],[EAP Verification Category]:[How is staff deployment monitored]]),\"Incomplete\",\"OK\")","v":"Incomplete"}]
[null,null,null,null,null,null,{"$f":"IF(COUNTA(tblSectionA[[#This Row],[EAP Verification Category]:[How is staff deployment monitored]])<COUNTA(tblSectionA[[#Headers],[EAP Verification Category]:[How is staff deployment monitored]]),\"Incomplete\",\"OK\")","v":"Incomplete"}]
[null,null,null,null,null,null,{"$f":"IF(COUNTA(tblSectionA[[#This Row],[EAP Verification Category]:[How is staff deployment monitored]])<COUNTA(tblSectionA[[#Headers],[EAP Verification Category]:[How is staff deployment monitored]]),\"Incomplete\",\"OK\")","v":"Incomplete"}]
[null,null,null,null,null,null,{"$f":"IF(COUNTA(tblSectionA[[#This Row],[EAP Verification Category]:[How is staff deployment monitored]])<COUNTA(tblSectionA[[#Headers],[EAP Verification Category]:[How is staff deployment monitored]]),\"Incomplete\",\"OK\")","v":"Incomplete"}]
[null,null,null,null,null,null,{"$f":"IF(COUNTA(tblSectionA[[#This Row],[EAP Verification Category]:[How is staff deployment monitored]])<COUNTA(tblSectionA[[#Headers],[EAP Verification Category]:[How is staff deployment monitored]]),\"Incomplete\",\"OK\")","v":"Incomplete"}]
[null,null,null,null,null,null,{"$f":"IF(COUNTA(tblSectionA[[#This Row],[EAP Verification Category]:[How is staff deployment monitored]])<COUNTA(tblSectionA[[#Headers],[EAP Verification Category]:[How is staff deployment monitored]]),\"Incomplete\",\"OK\")","v":"Incomplete"}]
[null,null,null,null,null,null,{"$f":"IF(COUNTA(tblSectionA[[#This Row],[EAP Verification Category]:[How is staff deployment monitored]])<COUNTA(tblSectionA[[#Headers],[EAP Verification Category]:[How is staff deployment monitored]]),\"Incomplete\",\"OK\")","v":"Incomplete"}]
[null,null,null,null,null,null,{"$f":"IF(COUNTA(tblSectionA[[#This Row],[EAP Verification Category]:[How is staff deployment monitored]])<COUNTA(tblSectionA[[#Headers],[EAP Verification Category]:[How is staff deployment monitored]]),\"Incomplete\",\"OK\")","v":"Incomplete"}]
[null,null,null,null,null,null,{"$f":"IF(COUNTA(tblSectionA[[#This Row],[EAP Verification Category]:[How is staff deployment monitored]])<COUNTA(tblSectionA[[#Headers],[EAP Verification Category]:[How is staff deployment monitored]]),\"Incomplete\",\"OK\")","v":"Incomplete"}]
[null,null,null,null,null,null,{"$f":"IF(COUNTA(tblSectionA[[#This Row],[EAP Verification Category]:[How is staff deployment monitored]])<COUNTA(tblSectionA[[#Headers],[EAP Verification Category]:[How is staff deployment monitored]]),\"Incomplete\",\"OK\")","v":"Incomplete"}]
[null,null,null,null,null,null,{"$f":"IF(COUNTA(tblSectionA[[#This Row],[EAP Verification Category]:[How is staff deployment monitored]])<COUNTA(tblSectionA[[#Headers],[EAP Verification Category]:[How is staff deployment monitored]]),\"Incomplete\",\"OK\")","v":"Incomplete"}]
[null,null,null,null,null,null,{"$f":"IF(COUNTA(tblSectionA[[#This Row],[EAP Verification Category]:[How is staff deployment monitored]])<COUNTA(tblSectionA[[#Headers],[EAP Verification Category]:[How is staff deployment monitored]]),\"Incomplete\",\"OK\")","v":"Incomplete"}]
[null,null,null,null,null,null,{"$f":"IF(COUNTA(tblSectionA[[#This Row],[EAP Verification Category]:[How is staff deployment monitored]])<COUNTA(tblSectionA[[#Headers],[EAP Verification Category]:[How is staff deployment monitored]]),\"Incomplete\",\"OK\")","v":"Incomplete"}]
[null,null,null,null,null,null,{"$f":"IF(COUNTA(tblSectionA[[#This Row],[EAP Verification Category]:[How is staff deployment monitored]])<COUNTA(tblSectionA[[#Headers],[EAP Verification Category]:[How is staff deployment monitored]]),\"Incomplete\",\"OK\")","v":"Incomplete"}]
[null,null,null,null,null,null,{"$f":"IF(COUNTA(tblSectionA[[#This Row],[EAP Verification Category]:[How is staff deployment monitored]])<COUNTA(tblSectionA[[#Headers],[EAP Verification Category]:[How is staff deployment monitored]]),\"Incomplete\",\"OK\")","v":"Incomplete"}]
[null,null,null,null,null,null,{"$f":"IF(COUNTA(tblSectionA[[#This Row],[EAP Verification Category]:[How is staff deployment monitored]])<COUNTA(tblSectionA[[#Headers],[EAP Verification Category]:[How is staff deployment monitored]]),\"Incomplete\",\"OK\")","v":"Incomplete"}]
[null,null,null,null,null,null,{"$f":"IF(COUNTA(tblSectionA[[#This Row],[EAP Verification Category]:[How is staff deployment monitored]])<COUNTA(tblSectionA[[#Headers],[EAP Verification Category]:[How is staff deployment monitored]]),\"Incomplete\",\"OK\")","v":"Incomplete"}]
[null,null,null,null,null,null,{"$f":"IF(COUNTA(tblSectionA[[#This Row],[EAP Verification Category]:[How is staff deployment monitored]])<COUNTA(tblSectionA[[#Headers],[EAP Verification Category]:[How is staff deployment monitored]]),\"Incomplete\",\"OK\")","v":"Incomplete"}]
[null,null,null,null,null,null,{"$f":"IF(COUNTA(tblSectionA[[#This Row],[EAP Verification Category]:[How is staff deployment monitored]])<COUNTA(tblSectionA[[#Headers],[EAP Verification Category]:[How is staff deployment monitored]]),\"Incomplete\",\"OK\")","v":"Incomplete"}]
[null,null,null,null,null,null,{"$f":"IF(COUNTA(tblSectionA[[#This Row],[EAP Verification Category]:[How is staff deployment monitored]])<COUNTA(tblSectionA[[#Headers],[EAP Verification Category]:[How is staff deployment monitored]]),\"Incomplete\",\"OK\")","v":"Incomplete"}]
[null,null,null,null,null,null,{"$f":"IF(COUNTA(tblSectionA[[#This Row],[EAP Verification Category]:[How is staff deployment monitored]])<COUNTA(tblSectionA[[#Headers],[EAP Verification Category]:[How is staff deployment monitored]]),\"Incomplete\",\"OK\")","v":"Incomplete"}]
[null,null,null,null,null,null,{"$f":"IF(COUNTA(tblSectionA[[#This Row],[EAP Verification Category]:[How is staff deployment monitored]])<COUNTA(tblSectionA[[#Headers],[EAP Verification Category]:[How is staff deployment monitored]]),\"Incomplete\",\"OK\")","v":"Incomplete"}]
[null,null,null,null,null,null,{"$f":"IF(COUNTA(tblSectionA[[#This Row],[EAP Verification Category]:[How is staff deployment monitored]])<COUNTA(tblSectionA[[#Headers],[EAP Verification Category]:[How is staff deployment monitored]]),\"Incomplete\",\"OK\")","v":"Incomplete"}]
[null,null,null,null,null,null,{"$f":"IF(COUNTA(tblSectionA[[#This Row],[EAP Verification Category]:[How is staff deployment monitored]])<COUNTA(tblSectionA[[#Headers],[EAP Verification Category]:[How is staff deployment monitored]]),\"Incomplete\",\"OK\")","v":"Incomplete"}]
[null,null,null,null,null,null,{"$f":"IF(COUNTA(tblSectionA[[#This Row],[EAP Verification Category]:[How is staff deployment monitored]])<COUNTA(tblSectionA[[#Headers],[EAP Verification Category]:[How is staff deployment monitored]]),\"Incomplete\",\"OK\")","v":"Incomplete"}]
[null,null,null,null,null,null,{"$f":"IF(COUNTA(tblSectionA[[#This Row],[EAP Verification Category]:[How is staff deployment monitored]])<COUNTA(tblSectionA[[#Headers],[EAP Verification Category]:[How is staff deployment monitored]]),\"Incomplete\",\"OK\")","v":"Incomplete"}]
[null,null,null,null,null,null,{"$f":"IF(COUNTA(tblSectionA[[#This Row],[EAP Verification Category]:[How is staff deployment monitored]])<COUNTA(tblSectionA[[#Headers],[EAP Verification Category]:[How is staff deployment monitored]]),\"Incomplete\",\"OK\")","v":"Incomplete"}]
[null,null,null,null,null,null,{"$f":"IF(COUNTA(tblSectionA[[#This Row],[EAP Verification Category]:[How is staff deployment monitored]])<COUNTA(tblSectionA[[#Headers],[EAP Verification Category]:[How is staff deployment monitored]]),\"Incomplete\",\"OK\")","v":"Incomplete"}]
[null,null,null,null,null,null,{"$f":"IF(COUNTA(tblSectionA[[#This Row],[EAP Verification Category]:[How is staff deployment monitored]])<COUNTA(tblSectionA[[#Headers],[EAP Verification Category]:[How is staff deployment monitored]]),\"Incomplete\",\"OK\")","v":"Incomplete"}]
[null,null,null,null,null,null,{"$f":"IF(COUNTA(tblSectionA[[#This Row],[EAP Verification Category]:[How is staff deployment monitored]])<COUNTA(tblSectionA[[#Headers],[EAP Verification Category]:[How is staff deployment monitored]]),\"Incomplete\",\"OK\")","v":"Incomplete"}]
[null,null,null,null,null,null,{"$f":"IF(COUNTA(tblSectionA[[#This Row],[EAP Verification Category]:[How is staff deployment monitored]])<COUNTA(tblSectionA[[#Headers],[EAP Verification Category]:[How is staff deployment monitored]]),\"Incomplete\",\"OK\")","v":"Incomplete"}]
[null,null,null,null,null,null,{"$f":"IF(COUNTA(tblSectionA[[#This Row],[EAP Verification Category]:[How is staff deployment monitored]])<COUNTA(tblSectionA[[#Headers],[EAP Verification Category]:[How is staff deployment monitored]]),\"Incomplete\",\"OK\")","v":"Incomplete"}]
[null,null,null,null,null,null,{"$f":"IF(COUNTA(tblSectionA[[#This Row],[EAP Verification Category]:[How is staff deployment monitored]])<COUNTA(tblSectionA[[#Headers],[EAP Verification Category]:[How is staff deployment monitored]]),\"Incomplete\",\"OK\")","v":"Incomplete"}]
[null,null,null,null,null,null,{"$f":"IF(COUNTA(tblSectionA[[#This Row],[EAP Verification Category]:[How is staff deployment monitored]])<COUNTA(tblSectionA[[#Headers],[EAP Verification Category]:[How is staff deployment monitored]]),\"Incomplete\",\"OK\")","v":"Incomplete"}]
[null,null,null,null,null,null,{"$f":"IF(COUNTA(tblSectionA[[#This Row],[EAP Verification Category]:[How is staff deployment monitored]])<COUNTA(tblSectionA[[#Headers],[EAP Verification Category]:[How is staff deployment monitored]]),\"Incomplete\",\"OK\")","v":"Incomplete"}]
[null,null,null,null,null,null,{"$f":"IF(COUNTA(tblSectionA[[#This Row],[EAP Verification Category]:[How is staff deployment monitored]])<COUNTA(tblSectionA[[#Headers],[EAP Verification Category]:[How is staff deployment monitored]]),\"Incomplete\",\"OK\")","v":"Incomplete"}]

{"sheet":"Section B","index":2,"n_rows":155,"n_cols":9,"rows_kept":155,"cut":false,"hidden":false,"merged":[[3,1,3,3]]}
[null,{"$f":"'Instructions and Declaration'!B3","v":"State SWD Program"}]
[null,"Section B - Professional Development for Teachers and School Leaders"]
[null,"Note: Professional development for teachers working with students with an EAP verification (central/regional/individual office service)"]
[null,{"$f":"COUNTIFS(tblSectionB[#Data],\"*NCCD*\")","v":0}]
[null,"EAP Verification Category","Type of Support","Provider","Location","Attendee","PD Focus","How did the PD contribute to engaging students in schooling","Check"]
[null,null,null,null,null,null,null,null,{"$f":"IF(COUNTA(tblSectionB[[#This Row],[EAP Verification Category]:[How did the PD contribute to engaging students in schooling]])<COUNTA(tblSectionB[[#Headers],[EAP Verification Category]:[How did the PD contribute to engaging students in schooling]])-1,\"Incomplete\",\"OK\")","v":"Incomplete"}]
[null,null,null,null,null,null,null,null,{"$f":"IF(COUNTA(tblSectionB[[#This Row],[EAP Verification Category]:[How did the PD contribute to engaging students in schooling]])<COUNTA(tblSectionB[[#Headers],[EAP Verification Category]:[How did the PD contribute to engaging students in schooling]])-1,\"Incomplete\",\"OK\")","v":"Incomplete"}]
[null,null,null,null,null,null,null,null,{"$f":"IF(COUNTA(tblSectionB[[#This Row],[EAP Verification Category]:[How did the PD contribute to engaging students in schooling]])<COUNTA(tblSectionB[[#Headers],[EAP Verification Category]:[How did the PD contribute to engaging students in schooling]])-1,\"Incomplete\",\"OK\")","v":"Incomplete"}]
[null,null,null,null,null,null,null,null,{"$f":"IF(COUNTA(tblSectionB[[#This Row],[EAP Verification Category]:[How did the PD contribute to engaging students in schooling]])<COUNTA(tblSectionB[[#Headers],[EAP Verification Category]:[How did the PD contribute to engaging students in schooling]])-1,\"Incomplete\",\"OK\")","v":"Incomplete"}]
[null,null,null,null,null,null,null,null,{"$f":"IF(COUNTA(tblSectionB[[#This Row],[EAP Verification Category]:[How did the PD contribute to engaging students in schooling]])<COUNTA(tblSectionB[[#Headers],[EAP Verification Category]:[How did the PD contribute to engaging students in schooling]])-1,\"Incomplete\",\"OK\")","v":"Incomplete"}]
[null,null,null,null,null,null,null,null,{"$f":"IF(COUNTA(tblSectionB[[#This Row],[EAP Verification Category]:[How did the PD contribute to engaging students in schooling]])<COUNTA(tblSectionB[[#Headers],[EAP Verification Category]:[How did the PD contribute to engaging students in schooling]])-1,\"Incomplete\",\"OK\")","v":"Incomplete"}]
[null,null,null,null,null,null,null,null,{"$f":"IF(COUNTA(tblSectionB[[#This Row],[EAP Verification Category]:[How did the PD contribute to engaging students in schooling]])<COUNTA(tblSectionB[[#Headers],[EAP Verification Category]:[How did the PD contribute to engaging students in schooling]])-1,\"Incomplete\",\"OK\")","v":"Incomplete"}]
[null,null,null,null,null,null,null,null,{"$f":"IF(COUNTA(tblSectionB[[#This Row],[EAP Verification Category]:[How did the PD contribute to engaging students in schooling]])<COUNTA(tblSectionB[[#Headers],[EAP Verification Category]:[How did the PD contribute to engaging students in schooling]])-1,\"Incomplete\",\"OK\")","v":"Incomplete"}]
[null,null,null,null,null,null,null,null,{"$f":"IF(COUNTA(tblSectionB[[#This Row],[EAP Verification Category]:[How did the PD contribute to engaging students in schooling]])<COUNTA(tblSectionB[[#Headers],[EAP Verification Category]:[How did the PD contribute to engaging students in schooling]])-1,\"Incomplete\",\"OK\")","v":"Incomplete"}]
[null,null,null,null,null,null,null,null,{"$f":"IF(COUNTA(tblSectionB[[#This Row],[EAP Verification Category]:[How did the PD contribute to engaging students in schooling]])<COUNTA(tblSectionB[[#Headers],[EAP Verification Category]:[How did the PD contribute to engaging students in schooling]])-1,\"Incomplete\",\"OK\")","v":"Incomplete"}]
[null,null,null,null,null,null,null,null,{"$f":"IF(COUNTA(tblSectionB[[#This Row],[EAP Verification Category]:[How did the PD contribute to engaging students in schooling]])<COUNTA(tblSectionB[[#Headers],[EAP Verification Category]:[How did the PD contribute to engaging students in schooling]])-1,\"Incomplete\",\"OK\")","v":"Incomplete"}]
[null,null,null,null,null,null,null,null,{"$f":"IF(COUNTA(tblSectionB[[#This Row],[EAP Verification Category]:[How did the PD contribute to engaging students in schooling]])<COUNTA(tblSectionB[[#Headers],[EAP Verification Category]:[How did the PD contribute to engaging students in schooling]])-1,\"Incomplete\",\"OK\")","v":"Incomplete"}]
[null,null,null,null,null,null,null,null,{"$f":"IF(COUNTA(tblSectionB[[#This Row],[EAP Verification Category]:[How did the PD contribute to engaging students in schooling]])<COUNTA(tblSectionB[[#Headers],[EAP Verification Category]:[How did the PD contribute to engaging students in schooling]])-1,\"Incomplete\",\"OK\")","v":"Incomplete"}]
[null,null,null,null,null,null,null,null,{"$f":"IF(COUNTA(tblSectionB[[#This Row],[EAP Verification Category]:[How did the PD contribute to engaging students in schooling]])<COUNTA(tblSectionB[[#Headers],[EAP Verification Category]:[How did the PD contribute to engaging students in schooling]])-1,\"Incomplete\",\"OK\")","v":"Incomplete"}]
[null,null,null,null,null,null,null,null,{"$f":"IF(COUNTA(tblSectionB[[#This Row],[EAP Verification Category]:[How did the PD contribute to engaging students in schooling]])<COUNTA(tblSectionB[[#Headers],[EAP Verification Category]:[How did the PD contribute to engaging students in schooling]])-1,\"Incomplete\",\"OK\")","v":"Incomplete"}]
[null,null,null,null,null,null,null,null,{"$f":"IF(COUNTA(tblSectionB[[#This Row],[EAP Verification Category]:[How did the PD contribute to engaging students in schooling]])<COUNTA(tblSectionB[[#Headers],[EAP Verification Category]:[How did the PD contribute to engaging students in schooling]])-1,\"Incomplete\",\"OK\")","v":"Incomplete"}]
[null,null,null,null,null,null,null,null,{"$f":"IF(COUNTA(tblSectionB[[#This Row],[EAP Verification Category]:[How did the PD contribute to engaging students in schooling]])<COUNTA(tblSectionB[[#Headers],[EAP Verification Category]:[How did the PD contribute to engaging students in schooling]])-1,\"Incomplete\",\"OK\")","v":"Incomplete"}]
[null,null,null,null,null,null,null,null,{"$f":"IF(COUNTA(tblSectionB[[#This Row],[EAP Verification Category]:[How did the PD contribute to engaging students in schooling]])<COUNTA(tblSectionB[[#Headers],[EAP Verification Category]:[How did the PD contribute to engaging students in schooling]])-1,\"Incomplete\",\"OK\")","v":"Incomplete"}]
[null,null,null,null,null,null,null,null,{"$f":"IF(COUNTA(tblSectionB[[#This Row],[EAP Verification Category]:[How did the PD contribute to engaging students in schooling]])<COUNTA(tblSectionB[[#Headers],[EAP Verification Category]:[How did the PD contribute to engaging students in schooling]])-1,\"Incomplete\",\"OK\")","v":"Incomplete"}]
[null,null,null,null,null,null,null,null,{"$f":"IF(COUNTA(tblSectionB[[#This Row],[EAP Verification Category]:[How did the PD contribute to engaging students in schooling]])<COUNTA(tblSectionB[[#Headers],[EAP Verification Category]:[How did the PD contribute to engaging students in schooling]])-1,\"Incomplete\",\"OK\")","v":"Incomplete"}]
[null,null,null,null,null,null,null,null,{"$f":"IF(COUNTA(tblSectionB[[#This Row],[EAP Verification Category]:[How did the PD contribute to engaging students in schooling]])<COUNTA(tblSectionB[[#Headers],[EAP Verification Category]:[How did the PD contribute to engaging students in schooling]])-1,\"Incomplete\",\"OK\")","v":"Incomplete"}]
[null,null,null,null,null,null,null,null,{"$f":"IF(COUNTA(tblSectionB[[#This Row],[EAP Verification Category]:[How did the PD contribute to engaging students in schooling]])<COUNTA(tblSectionB[[#Headers],[EAP Verification Category]:[How did the PD contribute to engaging students in schooling]])-1,\"Incomplete\",\"OK\")","v":"Incomplete"}]
[null,null,null,null,null,null,null,null,{"$f":"IF(COUNTA(tblSectionB[[#This Row],[EAP Verification Category]:[How did the PD contribute to engaging students in schooling]])<COUNTA(tblSectionB[[#Headers],[EAP Verification Category]:[How did the PD contribute to engaging students in schooling]])-1,\"Incomplete\",\"OK\")","v":"Incomplete"}]
[null,null,null,null,null,null,null,null,{"$f":"IF(COUNTA(tblSectionB[[#This Row],[EAP Verification Category]:[How did the PD contribute to engaging students in schooling]])<COUNTA(tblSectionB[[#Headers],[EAP Verification Category]:[How did the PD contribute to engaging students in schooling]])-1,\"Incomplete\",\"OK\")","v":"Incomplete"}]
[null,null,null,null,null,null,null,null,{"$f":"IF(COUNTA(tblSectionB[[#This Row],[EAP Verification Category]:[How did the PD contribute to engaging students in schooling]])<COUNTA(tblSectionB[[#Headers],[EAP Verification Category]:[How did the PD contribute to engaging students in schooling]])-1,\"Incomplete\",\"OK\")","v":"Incomplete"}]
[null,null,null,null,null,null,null,null,{"$f":"IF(COUNTA(tblSectionB[[#This Row],[EAP Verification Category]:[How did the PD contribute to engaging students in schooling]])<COUNTA(tblSectionB[[#Headers],[EAP Verification Category]:[How did the PD contribute to engaging students in schooling]])-1,\"Incomplete\",\"OK\")","v":"Incomplete"}]
[null,null,null,null,null,null,null,null,{"$f":"IF(COUNTA(tblSectionB[[#This Row],[EAP Verification Category]:[How did the PD contribute to engaging students in schooling]])<COUNTA(tblSectionB[[#Headers],[EAP Verification Category]:[How did the PD contribute to engaging students in schooling]])-1,\"Incomplete\",\"OK\")","v":"Incomplete"}]
[null,null,null,null,null,null,null,null,{"$f":"IF(COUNTA(tblSectionB[[#This Row],[EAP Verification Category]:[How did the PD contribute to engaging students in schooling]])<COUNTA(tblSectionB[[#Headers],[EAP Verification Category]:[How did the PD contribute to engaging students in schooling]])-1,\"Incomplete\",\"OK\")","v":"Incomplete"}]
[null,null,null,null,null,null,null,null,{"$f":"IF(COUNTA(tblSectionB[[#This Row],[EAP Verification Category]:[How did the PD contribute to engaging students in schooling]])<COUNTA(tblSectionB[[#Headers],[EAP Verification Category]:[How did the PD contribute to engaging students in schooling]])-1,\"Incomplete\",\"OK\")","v":"Incomplete"}]
[null,null,null,null,null,null,null,null,{"$f":"IF(COUNTA(tblSectionB[[#This Row],[EAP Verification Category]:[How did the PD contribute to engaging students in schooling]])<COUNTA(tblSectionB[[#Headers],[EAP Verification Category]:[How did the PD contribute to engaging students in schooling]])-1,\"Incomplete\",\"OK\")","v":"Incomplete"}]
[null,null,null,null,null,null,null,null,{"$f":"IF(COUNTA(tblSectionB[[#This Row],[EAP Verification Category]:[How did the PD contribute to engaging students in schooling]])<COUNTA(tblSectionB[[#Headers],[EAP Verification Category]:[How did the PD contribute to engaging students in schooling]])-1,\"Incomplete\",\"OK\")","v":"Incomplete"}]
[null,null,null,null,null,null,null,null,{"$f":"IF(COUNTA(tblSectionB[[#This Row],[EAP Verification Category]:[How did the PD contribute to engaging students in schooling]])<COUNTA(tblSectionB[[#Headers],[EAP Verification Category]:[How did the PD contribute to engaging students in schooling]])-1,\"Incomplete\",\"OK\")","v":"Incomplete"}]
[null,null,null,null,null,null,null,null,{"$f":"IF(COUNTA(tblSectionB[[#This Row],[EAP Verification Category]:[How did the PD contribute to engaging students in schooling]])<COUNTA(tblSectionB[[#Headers],[EAP Verification Category]:[How did the PD contribute to engaging students in schooling]])-1,\"Incomplete\",\"OK\")","v":"Incomplete"}]
[null,null,null,null,null,null,null,null,{"$f":"IF(COUNTA(tblSectionB[[#This Row],[EAP Verification Category]:[How did the PD contribute to engaging students in schooling]])<COUNTA(tblSectionB[[#Headers],[EAP Verification Category]:[How did the PD contribute to engaging students in schooling]])-1,\"Incomplete\",\"OK\")","v":"Incomplete"}]
[null,null,null,null,null,null,null,null,{"$f":"IF(COUNTA(tblSectionB[[#This Row],[EAP Verification Category]:[How did the PD contribute to engaging students in schooling]])<COUNTA(tblSectionB[[#Headers],[EAP Verification Category]:[How did the PD contribute to engaging students in schooling]])-1,\"Incomplete\",\"OK\")","v":"Incomplete"}]
[null,null,null,null,null,null,null,null,{"$f":"IF(COUNTA(tblSectionB[[#This Row],[EAP Verification Category]:[How did the PD contribute to engaging students in schooling]])<COUNTA(tblSectionB[[#Headers],[EAP Verification Category]:[How did the PD contribute to engaging students in schooling]])-1,\"Incomplete\",\"OK\")","v":"Incomplete"}]
[null,null,null,null,null,null,null,null,{"$f":"IF(COUNTA(tblSectionB[[#This Row],[EAP Verification Category]:[How did the PD contribute to engaging students in schooling]])<COUNTA(tblSectionB[[#Headers],[EAP Verification Category]:[How did the PD contribute to engaging students in schooling]])-1,\"Incomplete\",\"OK\")","v":"Incomplete"}]
[null,null,null,null,null,null,null,null,{"$f":"IF(COUNTA(tblSectionB[[#This Row],[EAP Verification Category]:[How did the PD contribute to engaging students in schooling]])<COUNTA(tblSectionB[[#Headers],[EAP Verification Category]:[How did the PD contribute to engaging students in schooling]])-1,\"Incomplete\",\"OK\")","v":"Incomplete"}]
[null,null,null,null,null,null,null,null,{"$f":"IF(COUNTA(tblSectionB[[#This Row],[EAP Verification Category]:[How did the PD contribute to engaging students in schooling]])<COUNTA(tblSectionB[[#Headers],[EAP Verification Category]:[How did the PD contribute to engaging students in schooling]])-1,\"Incomplete\",\"OK\")","v":"Incomplete"}]
[null,null,null,null,null,null,null,null,{"$f":"IF(COUNTA(tblSectionB[[#This Row],[EAP Verification Category]:[How did the PD contribute to engaging students in schooling]])<COUNTA(tblSectionB[[#Headers],[EAP Verification Category]:[How did the PD contribute to engaging students in schooling]])-1,\"Incomplete\",\"OK\")","v":"Incomplete"}]
[null,null,null,null,null,null,null,null,{"$f":"IF(COUNTA(tblSectionB[[#This Row],[EAP Verification Category]:[How did the PD contribute to engaging students in schooling]])<COUNTA(tblSectionB[[#Headers],[EAP Verification Category]:[How did the PD contribute to engaging students in schooling]])-1,\"Incomplete\",\"OK\")","v":"Incomplete"}]
[null,null,null,null,null,null,null,null,{"$f":"IF(COUNTA(tblSectionB[[#This Row],[EAP Verification Category]:[How did the PD contribute to engaging students in schooling]])<COUNTA(tblSectionB[[#Headers],[EAP Verification Category]:[How did the PD contribute to engaging students in schooling]])-1,\"Incomplete\",\"OK\")","v":"Incomplete"}]
[null,null,null,null,null,null,null,null,{"$f":"IF(COUNTA(tblSectionB[[#This Row],[EAP Verification Category]:[How did the PD contribute to engaging students in schooling]])<COUNTA(tblSectionB[[#Headers],[EAP Verification Category]:[How did the PD contribute to engaging students in schooling]])-1,\"Incomplete\",\"OK\")","v":"Incomplete"}]
[null,null,null,null,null,null,null,null,{"$f":"IF(COUNTA(tblSectionB[[#This Row],[EAP Verification Category]:[How did the PD contribute to engaging students in schooling]])<COUNTA(tblSectionB[[#Headers],[EAP Verification Category]:[How did the PD contribute to engaging students in schooling]])-1,\"Incomplete\",\"OK\")","v":"Incomplete"}]
[null,null,null,null,null,null,null,null,{"$f":"IF(COUNTA(tblSectionB[[#This Row],[EAP Verification Category]:[How did the PD contribute to engaging students in schooling]])<COUNTA(tblSectionB[[#Headers],[EAP Verification Category]:[How did the PD contribute to engaging students in schooling]])-1,\"Incomplete\",\"OK\")","v":"Incomplete"}]
[null,null,null,null,null,null,null,null,{"$f":"IF(COUNTA(tblSectionB[[#This Row],[EAP Verification Category]:[How did the PD contribute to engaging students in schooling]])<COUNTA(tblSectionB[[#Headers],[EAP Verification Category]:[How did the PD contribute to engaging students in schooling]])-1,\"Incomplete\",\"OK\")","v":"Incomplete"}]
[null,null,null,null,null,null,null,null,{"$f":"IF(COUNTA(tblSectionB[[#This Row],[EAP Verification Category]:[How did the PD contribute to engaging students in schooling]])<COUNTA(tblSectionB[[#Headers],[EAP Verification Category]:[How did the PD contribute to engaging students in schooling]])-1,\"Incomplete\",\"OK\")","v":"Incomplete"}]
[null,null,null,null,null,null,null,null,{"$f":"IF(COUNTA(tblSectionB[[#This Row],[EAP Verification Category]:[How did the PD contribute to engaging students in schooling]])<COUNTA(tblSectionB[[#Headers],[EAP Verification Category]:[How did the PD contribute to engaging students in schooling]])-1,\"Incomplete\",\"OK\")","v":"Incomplete"}]
[null,null,null,null,null,null,null,null,{"$f":"IF(COUNTA(tblSectionB[[#This Row],[EAP Verification Category]:[How did the PD contribute to engaging students in schooling]])<COUNTA(tblSectionB[[#Headers],[EAP Verification Category]:[How did the PD contribute to engaging students in schooling]])-1,\"Incomplete\",\"OK\")","v":"Incomplete"}]
[null,null,null,null,null,null,null,null,{"$f":"IF(COUNTA(tblSectionB[[#This Row],[EAP Verification Category]:[How did the PD contribute to engaging students in schooling]])<COUNTA(tblSectionB[[#Headers],[EAP Verification Category]:[How did the PD contribute to engaging students in schooling]])-1,\"Incomplete\",\"OK\")","v":"Incomplete"}]
[null,null,null,null,null,null,null,null,{"$f":"IF(COUNTA(tblSectionB[[#This Row],[EAP Verification Category]:[How did the PD contribute to engaging students in schooling]])<COUNTA(tblSectionB[[#Headers],[EAP Verification Category]:[How did the PD contribute to engaging students in schooling]])-1,\"Incomplete\",\"OK\")","v":"Incomplete"}]
[null,null,null,null,null,null,null,null,{"$f":"IF(COUNTA(tblSectionB[[#This Row],[EAP Verification Category]:[How did the PD contribute to engaging students in schooling]])<COUNTA(tblSectionB[[#Headers],[EAP Verification Category]:[How did the PD contribute to engaging students in schooling]])-1,\"Incomplete\",\"OK\")","v":"Incomplete"}]
[null,null,null,null,null,null,null,null,{"$f":"IF(COUNTA(tblSectionB[[#This Row],[EAP Verification Category]:[How did the PD contribute to engaging students in schooling]])<COUNTA(tblSectionB[[#Headers],[EAP Verification Category]:[How did the PD contribute to engaging students in schooling]])-1,\"Incomplete\",\"OK\")","v":"Incomplete"}]
[null,null,null,null,null,null,null,null,{"$f":"IF(COUNTA(tblSectionB[[#This Row],[EAP Verification Category]:[How did the PD contribute to engaging students in schooling]])<COUNTA(tblSectionB[[#Headers],[EAP Verification Category]:[How did the PD contribute to engaging students in schooling]])-1,\"Incomplete\",\"OK\")","v":"Incomplete"}]
[null,null,null,null,null,null,null,null,{"$f":"IF(COUNTA(tblSectionB[[#This Row],[EAP Verification Category]:[How did the PD contribute to engaging students in schooling]])<COUNTA(tblSectionB[[#Headers],[EAP Verification Category]:[How did the PD contribute to engaging students in schooling]])-1,\"Incomplete\",\"OK\")","v":"Incomplete"}]
[null,null,null,null,null,null,null,null,{"$f":"IF(COUNTA(tblSectionB[[#This Row],[EAP Verification Category]:[How did the PD contribute to engaging students in schooling]])<COUNTA(tblSectionB[[#Headers],[EAP Verification Category]:[How did the PD contribute to engaging students in schooling]])-1,\"Incomplete\",\"OK\")","v":"Incomplete"}]
[null,null,null,null,null,null,null,null,{"$f":"IF(COUNTA(tblSectionB[[#This Row],[EAP Verification Category]:[How did the PD contribute to engaging students in schooling]])<COUNTA(tblSectionB[[#Headers],[EAP Verification Category]:[How did the PD contribute to engaging students in schooling]])-1,\"Incomplete\",\"OK\")","v":"Incomplete"}]
[null,null,null,null,null,null,null,null,{"$f":"IF(COUNTA(tblSectionB[[#This Row],[EAP Verification Category]:[How did the PD contribute to engaging students in schooling]])<COUNTA(tblSectionB[[#Headers],[EAP Verification Category]:[How did the PD contribute to engaging students in schooling]])-1,\"Incomplete\",\"OK\")","v":"Incomplete"}]
[null,null,null,null,null,null,null,null,{"$f":"IF(COUNTA(tblSectionB[[#This Row],[EAP Verification Category]:[How did the PD contribute to engaging students in schooling]])<COUNTA(tblSectionB[[#Headers],[EAP Verification Category]:[How did the PD contribute to engaging students in schooling]])-1,\"Incomplete\",\"OK\")","v":"Incomplete"}]
[null,null,null,null,null,null,null,null,{"$f":"IF(COUNTA(tblSectionB[[#This Row],[EAP Verification Category]:[How did the PD contribute to engaging students in schooling]])<COUNTA(tblSectionB[[#Headers],[EAP Verification Category]:[How did the PD contribute to engaging students in schooling]])-1,\"Incomplete\",\"OK\")","v":"Incomplete"}]
[null,null,null,null,null,null,null,null,{"$f":"IF(COUNTA(tblSectionB[[#This Row],[EAP Verification Category]:[How did the PD contribute to engaging students in schooling]])<COUNTA(tblSectionB[[#Headers],[EAP Verification Category]:[How did the PD contribute to engaging students in schooling]])-1,\"Incomplete\",\"OK\")","v":"Incomplete"}]
[null,null,null,null,null,null,null,null,{"$f":"IF(COUNTA(tblSectionB[[#This Row],[EAP Verification Category]:[How did the PD contribute to engaging students in schooling]])<COUNTA(tblSectionB[[#Headers],[EAP Verification Category]:[How did the PD contribute to engaging students in schooling]])-1,\"Incomplete\",\"OK\")","v":"Incomplete"}]
[null,null,null,null,null,null,null,null,{"$f":"IF(COUNTA(tblSectionB[[#This Row],[EAP Verification Category]:[How did the PD contribute to engaging students in schooling]])<COUNTA(tblSectionB[[#Headers],[EAP Verification Category]:[How did the PD contribute to engaging students in schooling]])-1,\"Incomplete\",\"OK\")","v":"Incomplete"}]
[null,null,null,null,null,null,null,null,{"$f":"IF(COUNTA(tblSectionB[[#This Row],[EAP Verification Category]:[How did the PD contribute to engaging students in schooling]])<COUNTA(tblSectionB[[#Headers],[EAP Verification Category]:[How did the PD contribute to engaging students in schooling]])-1,\"Incomplete\",\"OK\")","v":"Incomplete"}]
[null,null,null,null,null,null,null,null,{"$f":"IF(COUNTA(tblSectionB[[#This Row],[EAP Verification Category]:[How did the PD contribute to engaging students in schooling]])<COUNTA(tblSectionB[[#Headers],[EAP Verification Category]:[How did the PD contribute to engaging students in schooling]])-1,\"Incomplete\",\"OK\")","v":"Incomplete"}]
[null,null,null,null,null,null,null,null,{"$f":"IF(COUNTA(tblSectionB[[#This Row],[EAP Verification Category]:[How did the PD contribute to engaging students in schooling]])<COUNTA(tblSectionB[[#Headers],[EAP Verification Category]:[How did the PD contribute to engaging students in schooling]])-1,\"Incomplete\",\"OK\")","v":"Incomplete"}]
[null,null,null,null,null,null,null,null,{"$f":"IF(COUNTA(tblSectionB[[#This Row],[EAP Verification Category]:[How did the PD contribute to engaging students in schooling]])<COUNTA(tblSectionB[[#Headers],[EAP Verification Category]:[How did the PD contribute to engaging students in schooling]])-1,\"Incomplete\",\"OK\")","v":"Incomplete"}]
[null,null,null,null,null,null,null,null,{"$f":"IF(COUNTA(tblSectionB[[#This Row],[EAP Verification Category]:[How did the PD contribute to engaging students in schooling]])<COUNTA(tblSectionB[[#Headers],[EAP Verification Category]:[How did the PD contribute to engaging students in schooling]])-1,\"Incomplete\",\"OK\")","v":"Incomplete"}]
[null,null,null,null,null,null,null,null,{"$f":"IF(COUNTA(tblSectionB[[#This Row],[EAP Verification Category]:[How did the PD contribute to engaging students in schooling]])<COUNTA(tblSectionB[[#Headers],[EAP Verification Category]:[How did the PD contribute to engaging students in schooling]])-1,\"Incomplete\",\"OK\")","v":"Incomplete"}]
[null,null,null,null,null,null,null,null,{"$f":"IF(COUNTA(tblSectionB[[#This Row],[EAP Verification Category]:[How did the PD contribute to engaging students in schooling]])<COUNTA(tblSectionB[[#Headers],[EAP Verification Category]:[How did the PD contribute to engaging students in schooling]])-1,\"Incomplete\",\"OK\")","v":"Incomplete"}]
[null,null,null,null,null,null,null,null,{"$f":"IF(COUNTA(tblSectionB[[#This Row],[EAP Verification Category]:[How did the PD contribute to engaging students in schooling]])<COUNTA(tblSectionB[[#Headers],[EAP Verification Category]:[How did the PD contribute to engaging students in schooling]])-1,\"Incomplete\",\"OK\")","v":"Incomplete"}]
[null,null,null,null,null,null,null,null,{"$f":"IF(COUNTA(tblSectionB[[#This Row],[EAP Verification Category]:[How did the PD contribute to engaging students in schooling]])<COUNTA(tblSectionB[[#Headers],[EAP Verification Category]:[How did the PD contribute to engaging students in schooling]])-1,\"Incomplete\",\"OK\")","v":"Incomplete"}]
[null,null,null,null,null,null,null,null,{"$f":"IF(COUNTA(tblSectionB[[#This Row],[EAP Verification Category]:[How did the PD contribute to engaging students in schooling]])<COUNTA(tblSectionB[[#Headers],[EAP Verification Category]:[How did the PD contribute to engaging students in schooling]])-1,\"Incomplete\",\"OK\")","v":"Incomplete"}]
[null,null,null,null,null,null,null,null,{"$f":"IF(COUNTA(tblSectionB[[#This Row],[EAP Verification Category]:[How did the PD contribute to engaging students in schooling]])<COUNTA(tblSectionB[[#Headers],[EAP Verification Category]:[How did the PD contribute to engaging students in schooling]])-1,\"Incomplete\",\"OK\")","v":"Incomplete"}]
[null,null,null,null,null,null,null,null,{"$f":"IF(COUNTA(tblSectionB[[#This Row],[EAP Verification Category]:[How did the PD contribute to engaging students in schooling]])<COUNTA(tblSectionB[[#Headers],[EAP Verification Category]:[How did the PD contribute to engaging students in schooling]])-1,\"Incomplete\",\"OK\")","v":"Incomplete"}]
[null,null,null,null,null,null,null,null,{"$f":"IF(COUNTA(tblSectionB[[#This Row],[EAP Verification Category]:[How did the PD contribute to engaging students in schooling]])<COUNTA(tblSectionB[[#Headers],[EAP Verification Category]:[How did the PD contribute to engaging students in schooling]])-1,\"Incomplete\",\"OK\")","v":"Incomplete"}]
[null,null,null,null,null,null,null,null,{"$f":"IF(COUNTA(tblSectionB[[#This Row],[EAP Verification Category]:[How did the PD contribute to engaging students in schooling]])<COUNTA(tblSectionB[[#Headers],[EAP Verification Category]:[How did the PD contribute to engaging students in schooling]])-1,\"Incomplete\",\"OK\")","v":"Incomplete"}]
[null,null,null,null,null,null,null,null,{"$f":"IF(COUNTA(tblSectionB[[#This Row],[EAP Verification Category]:[How did the PD contribute to engaging students in schooling]])<COUNTA(tblSectionB[[#Headers],[EAP Verification Category]:[How did the PD contribute to engaging students in schooling]])-1,\"Incomplete\",\"OK\")","v":"Incomplete"}]
[null,null,null,null,null,null,null,null,{"$f":"IF(COUNTA(tblSectionB[[#This Row],[EAP Verification Category]:[How did the PD contribute to engaging students in schooling]])<COUNTA(tblSectionB[[#Headers],[EAP Verification Category]:[How did the PD contribute to engaging students in schooling]])-1,\"Incomplete\",\"OK\")","v":"Incomplete"}]
[null,null,null,null,null,null,null,null,{"$f":"IF(COUNTA(tblSectionB[[#This Row],[EAP Verification Category]:[How did the PD contribute to engaging students in schooling]])<COUNTA(tblSectionB[[#Headers],[EAP Verification Category]:[How did the PD contribute to engaging students in schooling]])-1,\"Incomplete\",\"OK\")","v":"Incomplete"}]
[null,null,null,null,null,null,null,null,{"$f":"IF(COUNTA(tblSectionB[[#This Row],[EAP Verification Category]:[How did the PD contribute to engaging students in schooling]])<COUNTA(tblSectionB[[#Headers],[EAP Verification Category]:[How did the PD contribute to engaging students in schooling]])-1,\"Incomplete\",\"OK\")","v":"Incomplete"}]
[null,null,null,null,null,null,null,null,{"$f":"IF(COUNTA(tblSectionB[[#This Row],[EAP Verification Category]:[How did the PD contribute to engaging students in schooling]])<COUNTA(tblSectionB[[#Headers],[EAP Verification Category]:[How did the PD contribute to engaging students in schooling]])-1,\"Incomplete\",\"OK\")","v":"Incomplete"}]
[null,null,null,null,null,null,null,null,{"$f":"IF(COUNTA(tblSectionB[[#This Row],[EAP Verification Category]:[How did the PD contribute to engaging students in schooling]])<COUNTA(tblSectionB[[#Headers],[EAP Verification Category]:[How did the PD contribute to engaging students in schooling]])-1,\"Incomplete\",\"OK\")","v":"Incomplete"}]
[null,null,null,null,null,null,null,null,{"$f":"IF(COUNTA(tblSectionB[[#This Row],[EAP Verification Category]:[How did the PD contribute to engaging students in schooling]])<COUNTA(tblSectionB[[#Headers],[EAP Verification Category]:[How did the PD contribute to engaging students in schooling]])-1,\"Incomplete\",\"OK\")","v":"Incomplete"}]
[null,null,null,null,null,null,null,null,{"$f":"IF(COUNTA(tblSectionB[[#This Row],[EAP Verification Category]:[How did the PD contribute to engaging students in schooling]])<COUNTA(tblSectionB[[#Headers],[EAP Verification Category]:[How did the PD contribute to engaging students in schooling]])-1,\"Incomplete\",\"OK\")","v":"Incomplete"}]
[null,null,null,null,null,null,null,null,{"$f":"IF(COUNTA(tblSectionB[[#This Row],[EAP Verification Category]:[How did the PD contribute to engaging students in schooling]])<COUNTA(tblSectionB[[#Headers],[EAP Verification Category]:[How did the PD contribute to engaging students in schooling]])-1,\"Incomplete\",\"OK\")","v":"Incomplete"}]
[null,null,null,null,null,null,null,null,{"$f":"IF(COUNTA(tblSectionB[[#This Row],[EAP Verification Category]:[How did the PD contribute to engaging students in schooling]])<COUNTA(tblSectionB[[#Headers],[EAP Verification Category]:[How did the PD contribute to engaging students in schooling]])-1,\"Incomplete\",\"OK\")","v":"Incomplete"}]
[null,null,null,null,null,null,null,null,{"$f":"IF(COUNTA(tblSectionB[[#This Row],[EAP Verification Category]:[How did the PD contribute to engaging students in schooling]])<COUNTA(tblSectionB[[#Headers],[EAP Verification Category]:[How did the PD contribute to engaging students in schooling]])-1,\"Incomplete\",\"OK\")","v":"Incomplete"}]
[null,null,null,null,null,null,null,null,{"$f":"IF(COUNTA(tblSectionB[[#This Row],[EAP Verification Category]:[How did the PD contribute to engaging students in schooling]])<COUNTA(tblSectionB[[#Headers],[EAP Verification Category]:[How did the PD contribute to engaging students in schooling]])-1,\"Incomplete\",\"OK\")","v":"Incomplete"}]
[null,null,null,null,null,null,null,null,{"$f":"IF(COUNTA(tblSectionB[[#This Row],[EAP Verification Category]:[How did the PD contribute to engaging students in schooling]])<COUNTA(tblSectionB[[#Headers],[EAP Verification Category]:[How did the PD contribute to engaging students in schooling]])-1,\"Incomplete\",\"OK\")","v":"Incomplete"}]
[null,null,null,null,null,null,null,null,{"$f":"IF(COUNTA(tblSectionB[[#This Row],[EAP Verification Category]:[How did the PD contribute to engaging students in schooling]])<COUNTA(tblSectionB[[#Headers],[EAP Verification Category]:[How did the PD contribute to engaging students in schooling]])-1,\"Incomplete\",\"OK\")","v":"Incomplete"}]
[null,null,null,null,null,null,null,null,{"$f":"IF(COUNTA(tblSectionB[[#This Row],[EAP Verification Category]:[How did the PD contribute to engaging students in schooling]])<COUNTA(tblSectionB[[#Headers],[EAP Verification Category]:[How did the PD contribute to engaging students in schooling]])-1,\"Incomplete\",\"OK\")","v":"Incomplete"}]
[null,null,null,null,null,null,null,null,{"$f":"IF(COUNTA(tblSectionB[[#This Row],[EAP Verification Category]:[How did the PD contribute to engaging students in schooling]])<COUNTA(tblSectionB[[#Headers],[EAP Verification Category]:[How did the PD contribute to engaging students in schooling]])-1,\"Incomplete\",\"OK\")","v":"Incomplete"}]
[null,null,null,null,null,null,null,null,{"$f":"IF(COUNTA(tblSectionB[[#This Row],[EAP Verification Category]:[How did the PD contribute to engaging students in schooling]])<COUNTA(tblSectionB[[#Headers],[EAP Verification Category]:[How did the PD contribute to engaging students in schooling]])-1,\"Incomplete\",\"OK\")","v":"Incomplete"}]
[null,null,null,null,null,null,null,null,{"$f":"IF(COUNTA(tblSectionB[[#This Row],[EAP Verification Category]:[How did the PD contribute to engaging students in schooling]])<COUNTA(tblSectionB[[#Headers],[EAP Verification Category]:[How did the PD contribute to engaging students in schooling]])-1,\"Incomplete\",\"OK\")","v":"Incomplete"}]
[null,null,null,null,null,null,null,null,{"$f":"IF(COUNTA(tblSectionB[[#This Row],[EAP Verification Category]:[How did the PD contribute to engaging students in schooling]])<COUNTA(tblSectionB[[#Headers],[EAP Verification Category]:[How did the PD contribute to engaging students in schooling]])-1,\"Incomplete\",\"OK\")","v":"Incomplete"}]
[null,null,null,null,null,null,null,null,{"$f":"IF(COUNTA(tblSectionB[[#This Row],[EAP Verification Category]:[How did the PD contribute to engaging students in schooling]])<COUNTA(tblSectionB[[#Headers],[EAP Verification Category]:[How did the PD contribute to engaging students in schooling]])-1,\"Incomplete\",\"OK\")","v":"Incomplete"}]
[null,null,null,null,null,null,null,null,{"$f":"IF(COUNTA(tblSectionB[[#This Row],[EAP Verification Category]:[How did the PD contribute to engaging students in schooling]])<COUNTA(tblSectionB[[#Headers],[EAP Verification Category]:[How did the PD contribute to engaging students in schooling]])-1,\"Incomplete\",\"OK\")","v":"Incomplete"}]
[null,null,null,null,null,null,null,null,{"$f":"IF(COUNTA(tblSectionB[[#This Row],[EAP Verification Category]:[How did the PD contribute to engaging students in schooling]])<COUNTA(tblSectionB[[#Headers],[EAP Verification Category]:[How did the PD contribute to engaging students in schooling]])-1,\"Incomplete\",\"OK\")","v":"Incomplete"}]
[null,null,null,null,null,null,null,null,{"$f":"IF(COUNTA(tblSectionB[[#This Row],[EAP Verification Category]:[How did the PD contribute to engaging students in schooling]])<COUNTA(tblSectionB[[#Headers],[EAP Verification Category]:[How did the PD contribute to engaging students in schooling]])-1,\"Incomplete\",\"OK\")","v":"Incomplete"}]
[null,null,null,null,null,null,null,null,{"$f":"IF(COUNTA(tblSectionB[[#This Row],[EAP Verification Category]:[How did the PD contribute to engaging students in schooling]])<COUNTA(tblSectionB[[#Headers],[EAP Verification Category]:[How did the PD contribute to engaging students in schooling]])-1,\"Incomplete\",\"OK\")","v":"Incomplete"}]
[null,null,null,null,null,null,null,null,{"$f":"IF(COUNTA(tblSectionB[[#This Row],[EAP Verification Category]:[How did the PD contribute to engaging students in schooling]])<COUNTA(tblSectionB[[#Headers],[EAP Verification Category]:[How did the PD contribute to engaging students in schooling]])-1,\"Incomplete\",\"OK\")","v":"Incomplete"}]
[null,null,null,null,null,null,null,null,{"$f":"IF(COUNTA(tblSectionB[[#This Row],[EAP Verification Category]:[How did the PD contribute to engaging students in schooling]])<COUNTA(tblSectionB[[#Headers],[EAP Verification Category]:[How did the PD contribute to engaging students in schooling]])-1,\"Incomplete\",\"OK\")","v":"Incomplete"}]
[null,null,null,null,null,null,null,null,{"$f":"IF(COUNTA(tblSectionB[[#This Row],[EAP Verification Category]:[How did the PD contribute to engaging students in schooling]])<COUNTA(tblSectionB[[#Headers],[EAP Verification Category]:[How did the PD contribute to engaging students in schooling]])-1,\"Incomplete\",\"OK\")","v":"Incomplete"}]
[null,null,null,null,null,null,null,null,{"$f":"IF(COUNTA(tblSectionB[[#This Row],[EAP Verification Category]:[How did the PD contribute to engaging students in schooling]])<COUNTA(tblSectionB[[#Headers],[EAP Verification Category]:[How did the PD contribute to engaging students in schooling]])-1,\"Incomplete\",\"OK\")","v":"Incomplete"}]
[null,null,null,null,null,null,null,null,{"$f":"IF(COUNTA(tblSectionB[[#This Row],[EAP Verification Category]:[How did the PD contribute to engaging students in schooling]])<COUNTA(tblSectionB[[#Headers],[EAP Verification Category]:[How did the PD contribute to engaging students in schooling]])-1,\"Incomplete\",\"OK\")","v":"Incomplete"}]
[null,null,null,null,null,null,null,null,{"$f":"IF(COUNTA(tblSectionB[[#This Row],[EAP Verification Category]:[How did the PD contribute to engaging students in schooling]])<COUNTA(tblSectionB[[#Headers],[EAP Verification Category]:[How did the PD contribute to engaging students in schooling]])-1,\"Incomplete\",\"OK\")","v":"Incomplete"}]
[null,null,null,null,null,null,null,null,{"$f":"IF(COUNTA(tblSectionB[[#This Row],[EAP Verification Category]:[How did the PD contribute to engaging students in schooling]])<COUNTA(tblSectionB[[#Headers],[EAP Verification Category]:[How did the PD contribute to engaging students in schooling]])-1,\"Incomplete\",\"OK\")","v":"Incomplete"}]
[null,null,null,null,null,null,null,null,{"$f":"IF(COUNTA(tblSectionB[[#This Row],[EAP Verification Category]:[How did the PD contribute to engaging students in schooling]])<COUNTA(tblSectionB[[#Headers],[EAP Verification Category]:[How did the PD contribute to engaging students in schooling]])-1,\"Incomplete\",\"OK\")","v":"Incomplete"}]
[null,null,null,null,null,null,null,null,{"$f":"IF(COUNTA(tblSectionB[[#This Row],[EAP Verification Category]:[How did the PD contribute to engaging students in schooling]])<COUNTA(tblSectionB[[#Headers],[EAP Verification Category]:[How did the PD contribute to engaging students in schooling]])-1,\"Incomplete\",\"OK\")","v":"Incomplete"}]
[null,null,null,null,null,null,null,null,{"$f":"IF(COUNTA(tblSectionB[[#This Row],[EAP Verification Category]:[How did the PD contribute to engaging students in schooling]])<COUNTA(tblSectionB[[#Headers],[EAP Verification Category]:[How did the PD contribute to engaging students in schooling]])-1,\"Incomplete\",\"OK\")","v":"Incomplete"}]
[null,null,null,null,null,null,null,null,{"$f":"IF(COUNTA(tblSectionB[[#This Row],[EAP Verification Category]:[How did the PD contribute to engaging students in schooling]])<COUNTA(tblSectionB[[#Headers],[EAP Verification Category]:[How did the PD contribute to engaging students in schooling]])-1,\"Incomplete\",\"OK\")","v":"Incomplete"}]
[null,null,null,null,null,null,null,null,{"$f":"IF(COUNTA(tblSectionB[[#This Row],[EAP Verification Category]:[How did the PD contribute to engaging students in schooling]])<COUNTA(tblSectionB[[#Headers],[EAP Verification Category]:[How did the PD contribute to engaging students in schooling]])-1,\"Incomplete\",\"OK\")","v":"Incomplete"}]
[null,null,null,null,null,null,null,null,{"$f":"IF(COUNTA(tblSectionB[[#This Row],[EAP Verification Category]:[How did the PD contribute to engaging students in schooling]])<COUNTA(tblSectionB[[#Headers],[EAP Verification Category]:[How did the PD contribute to engaging students in schooling]])-1,\"Incomplete\",\"OK\")","v":"Incomplete"}]
[null,null,null,null,null,null,null,null,{"$f":"IF(COUNTA(tblSectionB[[#This Row],[EAP Verification Category]:[How did the PD contribute to engaging students in schooling]])<COUNTA(tblSectionB[[#Headers],[EAP Verification Category]:[How did the PD contribute to engaging students in schooling]])-1,\"Incomplete\",\"OK\")","v":"Incomplete"}]
[null,null,null,null,null,null,null,null,{"$f":"IF(COUNTA(tblSectionB[[#This Row],[EAP Verification Category]:[How did the PD contribute to engaging students in schooling]])<COUNTA(tblSectionB[[#Headers],[EAP Verification Category]:[How did the PD contribute to engaging students in schooling]])-1,\"Incomplete\",\"OK\")","v":"Incomplete"}]
[null,null,null,null,null,null,null,null,{"$f":"IF(COUNTA(tblSectionB[[#This Row],[EAP Verification Category]:[How did the PD contribute to engaging students in schooling]])<COUNTA(tblSectionB[[#Headers],[EAP Verification Category]:[How did the PD contribute to engaging students in schooling]])-1,\"Incomplete\",\"OK\")","v":"Incomplete"}]
[null,null,null,null,null,null,null,null,{"$f":"IF(COUNTA(tblSectionB[[#This Row],[EAP Verification Category]:[How did the PD contribute to engaging students in schooling]])<COUNTA(tblSectionB[[#Headers],[EAP Verification Category]:[How did the PD contribute to engaging students in schooling]])-1,\"Incomplete\",\"OK\")","v":"Incomplete"}]
[null,null,null,null,null,null,null,null,{"$f":"IF(COUNTA(tblSectionB[[#This Row],[EAP Verification Category]:[How did the PD contribute to engaging students in schooling]])<COUNTA(tblSectionB[[#Headers],[EAP Verification Category]:[How did the PD contribute to engaging students in schooling]])-1,\"Incomplete\",\"OK\")","v":"Incomplete"}]
[null,null,null,null,null,null,null,null,{"$f":"IF(COUNTA(tblSectionB[[#This Row],[EAP Verification Category]:[How did the PD contribute to engaging students in schooling]])<COUNTA(tblSectionB[[#Headers],[EAP Verification Category]:[How did the PD contribute to engaging students in schooling]])-1,\"Incomplete\",\"OK\")","v":"Incomplete"}]
[null,null,null,null,null,null,null,null,{"$f":"IF(COUNTA(tblSectionB[[#This Row],[EAP Verification Category]:[How did the PD contribute to engaging students in schooling]])<COUNTA(tblSectionB[[#Headers],[EAP Verification Category]:[How did the PD contribute to engaging students in schooling]])-1,\"Incomplete\",\"OK\")","v":"Incomplete"}]
[null,null,null,null,null,null,null,null,{"$f":"IF(COUNTA(tblSectionB[[#This Row],[EAP Verification Category]:[How did the PD contribute to engaging students in schooling]])<COUNTA(tblSectionB[[#Headers],[EAP Verification Category]:[How did the PD contribute to engaging students in schooling]])-1,\"Incomplete\",\"OK\")","v":"Incomplete"}]
[null,null,null,null,null,null,null,null,{"$f":"IF(COUNTA(tblSectionB[[#This Row],[EAP Verification Category]:[How did the PD contribute to engaging students in schooling]])<COUNTA(tblSectionB[[#Headers],[EAP Verification Category]:[How did the PD contribute to engaging students in schooling]])-1,\"Incomplete\",\"OK\")","v":"Incomplete"}]
[null,null,null,null,null,null,null,null,{"$f":"IF(COUNTA(tblSectionB[[#This Row],[EAP Verification Category]:[How did the PD contribute to engaging students in schooling]])<COUNTA(tblSectionB[[#Headers],[EAP Verification Category]:[How did the PD contribute to engaging students in schooling]])-1,\"Incomplete\",\"OK\")","v":"Incomplete"}]
[null,null,null,null,null,null,null,null,{"$f":"IF(COUNTA(tblSectionB[[#This Row],[EAP Verification Category]:[How did the PD contribute to engaging students in schooling]])<COUNTA(tblSectionB[[#Headers],[EAP Verification Category]:[How did the PD contribute to engaging students in schooling]])-1,\"Incomplete\",\"OK\")","v":"Incomplete"}]
[null,null,null,null,null,null,null,null,{"$f":"IF(COUNTA(tblSectionB[[#This Row],[EAP Verification Category]:[How did the PD contribute to engaging students in schooling]])<COUNTA(tblSectionB[[#Headers],[EAP Verification Category]:[How did the PD contribute to engaging students in schooling]])-1,\"Incomplete\",\"OK\")","v":"Incomplete"}]
[null,null,null,null,null,null,null,null,{"$f":"IF(COUNTA(tblSectionB[[#This Row],[EAP Verification Category]:[How did the PD contribute to engaging students in schooling]])<COUNTA(tblSectionB[[#Headers],[EAP Verification Category]:[How did the PD contribute to engaging students in schooling]])-1,\"Incomplete\",\"OK\")","v":"Incomplete"}]
[null,null,null,null,null,null,null,null,{"$f":"IF(COUNTA(tblSectionB[[#This Row],[EAP Verification Category]:[How did the PD contribute to engaging students in schooling]])<COUNTA(tblSectionB[[#Headers],[EAP Verification Category]:[How did the PD contribute to engaging students in schooling]])-1,\"Incomplete\",\"OK\")","v":"Incomplete"}]
[null,null,null,null,null,null,null,null,{"$f":"IF(COUNTA(tblSectionB[[#This Row],[EAP Verification Category]:[How did the PD contribute to engaging students in schooling]])<COUNTA(tblSectionB[[#Headers],[EAP Verification Category]:[How did the PD contribute to engaging students in schooling]])-1,\"Incomplete\",\"OK\")","v":"Incomplete"}]
[null,null,null,null,null,null,null,null,{"$f":"IF(COUNTA(tblSectionB[[#This Row],[EAP Verification Category]:[How did the PD contribute to engaging students in schooling]])<COUNTA(tblSectionB[[#Headers],[EAP Verification Category]:[How did the PD contribute to engaging students in schooling]])-1,\"Incomplete\",\"OK\")","v":"Incomplete"}]
[null,null,null,null,null,null,null,null,{"$f":"IF(COUNTA(tblSectionB[[#This Row],[EAP Verification Category]:[How did the PD contribute to engaging students in schooling]])<COUNTA(tblSectionB[[#Headers],[EAP Verification Category]:[How did the PD contribute to engaging students in schooling]])-1,\"Incomplete\",\"OK\")","v":"Incomplete"}]
[null,null,null,null,null,null,null,null,{"$f":"IF(COUNTA(tblSectionB[[#This Row],[EAP Verification Category]:[How did the PD contribute to engaging students in schooling]])<COUNTA(tblSectionB[[#Headers],[EAP Verification Category]:[How did the PD contribute to engaging students in schooling]])-1,\"Incomplete\",\"OK\")","v":"Incomplete"}]
[null,null,null,null,null,null,null,null,{"$f":"IF(COUNTA(tblSectionB[[#This Row],[EAP Verification Category]:[How did the PD contribute to engaging students in schooling]])<COUNTA(tblSectionB[[#Headers],[EAP Verification Category]:[How did the PD contribute to engaging students in schooling]])-1,\"Incomplete\",\"OK\")","v":"Incomplete"}]
[null,null,null,null,null,null,null,null,{"$f":"IF(COUNTA(tblSectionB[[#This Row],[EAP Verification Category]:[How did the PD contribute to engaging students in schooling]])<COUNTA(tblSectionB[[#Headers],[EAP Verification Category]:[How did the PD contribute to engaging students in schooling]])-1,\"Incomplete\",\"OK\")","v":"Incomplete"}]
[null,null,null,null,null,null,null,null,{"$f":"IF(COUNTA(tblSectionB[[#This Row],[EAP Verification Category]:[How did the PD contribute to engaging students in schooling]])<COUNTA(tblSectionB[[#Headers],[EAP Verification Category]:[How did the PD contribute to engaging students in schooling]])-1,\"Incomplete\",\"OK\")","v":"Incomplete"}]
[null,null,null,null,null,null,null,null,{"$f":"IF(COUNTA(tblSectionB[[#This Row],[EAP Verification Category]:[How did the PD contribute to engaging students in schooling]])<COUNTA(tblSectionB[[#Headers],[EAP Verification Category]:[How did the PD contribute to engaging students in schooling]])-1,\"Incomplete\",\"OK\")","v":"Incomplete"}]
[null,null,null,null,null,null,null,null,{"$f":"IF(COUNTA(tblSectionB[[#This Row],[EAP Verification Category]:[How did the PD contribute to engaging students in schooling]])<COUNTA(tblSectionB[[#Headers],[EAP Verification Category]:[How did the PD contribute to engaging students in schooling]])-1,\"Incomplete\",\"OK\")","v":"Incomplete"}]
[null,null,null,null,null,null,null,null,{"$f":"IF(COUNTA(tblSectionB[[#This Row],[EAP Verification Category]:[How did the PD contribute to engaging students in schooling]])<COUNTA(tblSectionB[[#Headers],[EAP Verification Category]:[How did the PD contribute to engaging students in schooling]])-1,\"Incomplete\",\"OK\")","v":"Incomplete"}]
[null,null,null,null,null,null,null,null,{"$f":"IF(COUNTA(tblSectionB[[#This Row],[EAP Verification Category]:[How did the PD contribute to engaging students in schooling]])<COUNTA(tblSectionB[[#Headers],[EAP Verification Category]:[How did the PD contribute to engaging students in schooling]])-1,\"Incomplete\",\"OK\")","v":"Incomplete"}]
[null,null,null,null,null,null,null,null,{"$f":"IF(COUNTA(tblSectionB[[#This Row],[EAP Verification Category]:[How did the PD contribute to engaging students in schooling]])<COUNTA(tblSectionB[[#Headers],[EAP Verification Category]:[How did the PD contribute to engaging students in schooling]])-1,\"Incomplete\",\"OK\")","v":"Incomplete"}]
[null,null,null,null,null,null,null,null,{"$f":"IF(COUNTA(tblSectionB[[#This Row],[EAP Verification Category]:[How did the PD contribute to engaging students in schooling]])<COUNTA(tblSectionB[[#Headers],[EAP Verification Category]:[How did the PD contribute to engaging students in schooling]])-1,\"Incomplete\",\"OK\")","v":"Incomplete"}]
[null,null,null,null,null,null,null,null,{"$f":"IF(COUNTA(tblSectionB[[#This Row],[EAP Verification Category]:[How did the PD contribute to engaging students in schooling]])<COUNTA(tblSectionB[[#Headers],[EAP Verification Category]:[How did the PD contribute to engaging students in schooling]])-1,\"Incomplete\",\"OK\")","v":"Incomplete"}]
[null,null,null,null,null,null,null,null,{"$f":"IF(COUNTA(tblSectionB[[#This Row],[EAP Verification Category]:[How did the PD contribute to engaging students in schooling]])<COUNTA(tblSectionB[[#Headers],[EAP Verification Category]:[How did the PD contribute to engaging students in schooling]])-1,\"Incomplete\",\"OK\")","v":"Incomplete"}]
[null,null,null,null,null,null,null,null,{"$f":"IF(COUNTA(tblSectionB[[#This Row],[EAP Verification Category]:[How did the PD contribute to engaging students in schooling]])<COUNTA(tblSectionB[[#Headers],[EAP Verification Category]:[How did the PD contribute to engaging students in schooling]])-1,\"Incomplete\",\"OK\")","v":"Incomplete"}]
[null,null,null,null,null,null,null,null,{"$f":"IF(COUNTA(tblSectionB[[#This Row],[EAP Verification Category]:[How did the PD contribute to engaging students in schooling]])<COUNTA(tblSectionB[[#Headers],[EAP Verification Category]:[How did the PD contribute to engaging students in schooling]])-1,\"Incomplete\",\"OK\")","v":"Incomplete"}]
[null,null,null,null,null,null,null,null,{"$f":"IF(COUNTA(tblSectionB[[#This Row],[EAP Verification Category]:[How did the PD contribute to engaging students in schooling]])<COUNTA(tblSectionB[[#Headers],[EAP Verification Category]:[How did the PD contribute to engaging students in schooling]])-1,\"Incomplete\",\"OK\")","v":"Incomplete"}]
[null,null,null,null,null,null,null,null,{"$f":"IF(COUNTA(tblSectionB[[#This Row],[EAP Verification Category]:[How did the PD contribute to engaging students in schooling]])<COUNTA(tblSectionB[[#Headers],[EAP Verification Category]:[How did the PD contribute to engaging students in schooling]])-1,\"Incomplete\",\"OK\")","v":"Incomplete"}]
[null,null,null,null,null,null,null,null,{"$f":"IF(COUNTA(tblSectionB[[#This Row],[EAP Verification Category]:[How did the PD contribute to engaging students in schooling]])<COUNTA(tblSectionB[[#Headers],[EAP Verification Category]:[How did the PD contribute to engaging students in schooling]])-1,\"Incomplete\",\"OK\")","v":"Incomplete"}]
[null,null,null,null,null,null,null,null,{"$f":"IF(COUNTA(tblSectionB[[#This Row],[EAP Verification Category]:[How did the PD contribute to engaging students in schooling]])<COUNTA(tblSectionB[[#Headers],[EAP Verification Category]:[How did the PD contribute to engaging students in schooling]])-1,\"Incomplete\",\"OK\")","v":"Incomplete"}]
[null,null,null,null,null,null,null,null,{"$f":"IF(COUNTA(tblSectionB[[#This Row],[EAP Verification Category]:[How did the PD contribute to engaging students in schooling]])<COUNTA(tblSectionB[[#Headers],[EAP Verification Category]:[How did the PD contribute to engaging students in schooling]])-1,\"Incomplete\",\"OK\")","v":"Incomplete"}]

{"sheet":"Section C","index":3,"n_rows":156,"n_cols":8,"rows_kept":156,"cut":false,"hidden":false,"merged":[[3,1,3,4],[4,4,4,5]]}
[null,{"$f":"'Instructions and Declaration'!B3","v":"State SWD Program"}]
[null,"Section C - External Services Provided"]
[null,"Note: Describe the external services and direct support provided to facilitate the learning outcomes of students with an EAP verification"]
[null,{"$f":"COUNTIFS(tblSectionC[#Data],\"*NCCD*\")","v":0}]
[null,null,null,null,"Type of Service Provided \n(tick all that apply)"]
[null,"EAP Verification Category","Name of Service Provider","Role of Service Provider","Consultation with Teacher","Direct Service to Student","Describe the monitoring processes used by you and your Schools","Check"]
[null,null,null,null,null,null,null,{"$f":"IF(COUNTA(tblSectionC[[#This Row],[EAP Verification Category]:[Describe the monitoring processes used by you and your Schools]])<COUNTA(tblSectionC[[#Headers],[EAP Verification Category]:[Describe the monitoring processes used by you and your Schools]]),\"Incomplete\",\"OK\")","v":"Incomplete"}]
[null,null,null,null,null,null,null,{"$f":"IF(COUNTA(tblSectionC[[#This Row],[EAP Verification Category]:[Describe the monitoring processes used by you and your Schools]])<COUNTA(tblSectionC[[#Headers],[EAP Verification Category]:[Describe the monitoring processes used by you and your Schools]]),\"Incomplete\",\"OK\")","v":"Incomplete"}]
[null,null,null,null,null,null,null,{"$f":"IF(COUNTA(tblSectionC[[#This Row],[EAP Verification Category]:[Describe the monitoring processes used by you and your Schools]])<COUNTA(tblSectionC[[#Headers],[EAP Verification Category]:[Describe the monitoring processes used by you and your Schools]]),\"Incomplete\",\"OK\")","v":"Incomplete"}]
[null,null,null,null,null,null,null,{"$f":"IF(COUNTA(tblSectionC[[#This Row],[EAP Verification Category]:[Describe the monitoring processes used by you and your Schools]])<COUNTA(tblSectionC[[#Headers],[EAP Verification Category]:[Describe the monitoring processes used by you and your Schools]]),\"Incomplete\",\"OK\")","v":"Incomplete"}]
[null,null,null,null,null,null,null,{"$f":"IF(COUNTA(tblSectionC[[#This Row],[EAP Verification Category]:[Describe the monitoring processes used by you and your Schools]])<COUNTA(tblSectionC[[#Headers],[EAP Verification Category]:[Describe the monitoring processes used by you and your Schools]]),\"Incomplete\",\"OK\")","v":"Incomplete"}]
[null,null,null,null,null,null,null,{"$f":"IF(COUNTA(tblSectionC[[#This Row],[EAP Verification Category]:[Describe the monitoring processes used by you and your Schools]])<COUNTA(tblSectionC[[#Headers],[EAP Verification Category]:[Describe the monitoring processes used by you and your Schools]]),\"Incomplete\",\"OK\")","v":"Incomplete"}]
[null,null,null,null,null,null,null,{"$f":"IF(COUNTA(tblSectionC[[#This Row],[EAP Verification Category]:[Describe the monitoring processes used by you and your Schools]])<COUNTA(tblSectionC[[#Headers],[EAP Verification Category]:[Describe the monitoring processes used by you and your Schools]]),\"Incomplete\",\"OK\")","v":"Incomplete"}]
[null,null,null,null,null,null,null,{"$f":"IF(COUNTA(tblSectionC[[#This Row],[EAP Verification Category]:[Describe the monitoring processes used by you and your Schools]])<COUNTA(tblSectionC[[#Headers],[EAP Verification Category]:[Describe the monitoring processes used by you and your Schools]]),\"Incomplete\",\"OK\")","v":"Incomplete"}]
[null,null,null,null,null,null,null,{"$f":"IF(COUNTA(tblSectionC[[#This Row],[EAP Verification Category]:[Describe the monitoring processes used by you and your Schools]])<COUNTA(tblSectionC[[#Headers],[EAP Verification Category]:[Describe the monitoring processes used by you and your Schools]]),\"Incomplete\",\"OK\")","v":"Incomplete"}]
[null,null,null,null,null,null,null,{"$f":"IF(COUNTA(tblSectionC[[#This Row],[EAP Verification Category]:[Describe the monitoring processes used by you and your Schools]])<COUNTA(tblSectionC[[#Headers],[EAP Verification Category]:[Describe the monitoring processes used by you and your Schools]]),\"Incomplete\",\"OK\")","v":"Incomplete"}]
[null,null,null,null,null,null,null,{"$f":"IF(COUNTA(tblSectionC[[#This Row],[EAP Verification Category]:[Describe the monitoring processes used by you and your Schools]])<COUNTA(tblSectionC[[#Headers],[EAP Verification Category]:[Describe the monitoring processes used by you and your Schools]]),\"Incomplete\",\"OK\")","v":"Incomplete"}]
[null,null,null,null,null,null,null,{"$f":"IF(COUNTA(tblSectionC[[#This Row],[EAP Verification Category]:[Describe the monitoring processes used by you and your Schools]])<COUNTA(tblSectionC[[#Headers],[EAP Verification Category]:[Describe the monitoring processes used by you and your Schools]]),\"Incomplete\",\"OK\")","v":"Incomplete"}]
[null,null,null,null,null,null,null,{"$f":"IF(COUNTA(tblSectionC[[#This Row],[EAP Verification Category]:[Describe the monitoring processes used by you and your Schools]])<COUNTA(tblSectionC[[#Headers],[EAP Verification Category]:[Describe the monitoring processes used by you and your Schools]]),\"Incomplete\",\"OK\")","v":"Incomplete"}]
[null,null,null,null,null,null,null,{"$f":"IF(COUNTA(tblSectionC[[#This Row],[EAP Verification Category]:[Describe the monitoring processes used by you and your Schools]])<COUNTA(tblSectionC[[#Headers],[EAP Verification Category]:[Describe the monitoring processes used by you and your Schools]]),\"Incomplete\",\"OK\")","v":"Incomplete"}]
[null,null,null,null,null,null,null,{"$f":"IF(COUNTA(tblSectionC[[#This Row],[EAP Verification Category]:[Describe the monitoring processes used by you and your Schools]])<COUNTA(tblSectionC[[#Headers],[EAP Verification Category]:[Describe the monitoring processes used by you and your Schools]]),\"Incomplete\",\"OK\")","v":"Incomplete"}]
[null,null,null,null,null,null,null,{"$f":"IF(COUNTA(tblSectionC[[#This Row],[EAP Verification Category]:[Describe the monitoring processes used by you and your Schools]])<COUNTA(tblSectionC[[#Headers],[EAP Verification Category]:[Describe the monitoring processes used by you and your Schools]]),\"Incomplete\",\"OK\")","v":"Incomplete"}]
[null,null,null,null,null,null,null,{"$f":"IF(COUNTA(tblSectionC[[#This Row],[EAP Verification Category]:[Describe the monitoring processes used by you and your Schools]])<COUNTA(tblSectionC[[#Headers],[EAP Verification Category]:[Describe the monitoring processes used by you and your Schools]]),\"Incomplete\",\"OK\")","v":"Incomplete"}]
[null,null,null,null,null,null,null,{"$f":"IF(COUNTA(tblSectionC[[#This Row],[EAP Verification Category]:[Describe the monitoring processes used by you and your Schools]])<COUNTA(tblSectionC[[#Headers],[EAP Verification Category]:[Describe the monitoring processes used by you and your Schools]]),\"Incomplete\",\"OK\")","v":"Incomplete"}]
[null,null,null,null,null,null,null,{"$f":"IF(COUNTA(tblSectionC[[#This Row],[EAP Verification Category]:[Describe the monitoring processes used by you and your Schools]])<COUNTA(tblSectionC[[#Headers],[EAP Verification Category]:[Describe the monitoring processes used by you and your Schools]]),\"Incomplete\",\"OK\")","v":"Incomplete"}]
[null,null,null,null,null,null,null,{"$f":"IF(COUNTA(tblSectionC[[#This Row],[EAP Verification Category]:[Describe the monitoring processes used by you and your Schools]])<COUNTA(tblSectionC[[#Headers],[EAP Verification Category]:[Describe the monitoring processes used by you and your Schools]]),\"Incomplete\",\"OK\")","v":"Incomplete"}]
[null,null,null,null,null,null,null,{"$f":"IF(COUNTA(tblSectionC[[#This Row],[EAP Verification Category]:[Describe the monitoring processes used by you and your Schools]])<COUNTA(tblSectionC[[#Headers],[EAP Verification Category]:[Describe the monitoring processes used by you and your Schools]]),\"Incomplete\",\"OK\")","v":"Incomplete"}]
[null,null,null,null,null,null,null,{"$f":"IF(COUNTA(tblSectionC[[#This Row],[EAP Verification Category]:[Describe the monitoring processes used by you and your Schools]])<COUNTA(tblSectionC[[#Headers],[EAP Verification Category]:[Describe the monitoring processes used by you and your Schools]]),\"Incomplete\",\"OK\")","v":"Incomplete"}]
[null,null,null,null,null,null,null,{"$f":"IF(COUNTA(tblSectionC[[#This Row],[EAP Verification Category]:[Describe the monitoring processes used by you and your Schools]])<COUNTA(tblSectionC[[#Headers],[EAP Verification Category]:[Describe the monitoring processes used by you and your Schools]]),\"Incomplete\",\"OK\")","v":"Incomplete"}]
[null,null,null,null,null,null,null,{"$f":"IF(COUNTA(tblSectionC[[#This Row],[EAP Verification Category]:[Describe the monitoring processes used by you and your Schools]])<COUNTA(tblSectionC[[#Headers],[EAP Verification Category]:[Describe the monitoring processes used by you and your Schools]]),\"Incomplete\",\"OK\")","v":"Incomplete"}]
[null,null,null,null,null,null,null,{"$f":"IF(COUNTA(tblSectionC[[#This Row],[EAP Verification Category]:[Describe the monitoring processes used by you and your Schools]])<COUNTA(tblSectionC[[#Headers],[EAP Verification Category]:[Describe the monitoring processes used by you and your Schools]]),\"Incomplete\",\"OK\")","v":"Incomplete"}]
[null,null,null,null,null,null,null,{"$f":"IF(COUNTA(tblSectionC[[#This Row],[EAP Verification Category]:[Describe the monitoring processes used by you and your Schools]])<COUNTA(tblSectionC[[#Headers],[EAP Verification Category]:[Describe the monitoring processes used by you and your Schools]]),\"Incomplete\",\"OK\")","v":"Incomplete"}]
[null,null,null,null,null,null,null,{"$f":"IF(COUNTA(tblSectionC[[#This Row],[EAP Verification Category]:[Describe the monitoring processes used by you and your Schools]])<COUNTA(tblSectionC[[#Headers],[EAP Verification Category]:[Describe the monitoring processes used by you and your Schools]]),\"Incomplete\",\"OK\")","v":"Incomplete"}]
[null,null,null,null,null,null,null,{"$f":"IF(COUNTA(tblSectionC[[#This Row],[EAP Verification Category]:[Describe the monitoring processes used by you and your Schools]])<COUNTA(tblSectionC[[#Headers],[EAP Verification Category]:[Describe the monitoring processes used by you and your Schools]]),\"Incomplete\",\"OK\")","v":"Incomplete"}]
[null,null,null,null,null,null,null,{"$f":"IF(COUNTA(tblSectionC[[#This Row],[EAP Verification Category]:[Describe the monitoring processes used by you and your Schools]])<COUNTA(tblSectionC[[#Headers],[EAP Verification Category]:[Describe the monitoring processes used by you and your Schools]]),\"Incomplete\",\"OK\")","v":"Incomplete"}]
[null,null,null,null,null,null,null,{"$f":"IF(COUNTA(tblSectionC[[#This Row],[EAP Verification Category]:[Describe the monitoring processes used by you and your Schools]])<COUNTA(tblSectionC[[#Headers],[EAP Verification Category]:[Describe the monitoring processes used by you and your Schools]]),\"Incomplete\",\"OK\")","v":"Incomplete"}]
[null,null,null,null,null,null,null,{"$f":"IF(COUNTA(tblSectionC[[#This Row],[EAP Verification Category]:[Describe the monitoring processes used by you and your Schools]])<COUNTA(tblSectionC[[#Headers],[EAP Verification Category]:[Describe the monitoring processes used by you and your Schools]]),\"Incomplete\",\"OK\")","v":"Incomplete"}]
[null,null,null,null,null,null,null,{"$f":"IF(COUNTA(tblSectionC[[#This Row],[EAP Verification Category]:[Describe the monitoring processes used by you and your Schools]])<COUNTA(tblSectionC[[#Headers],[EAP Verification Category]:[Describe the monitoring processes used by you and your Schools]]),\"Incomplete\",\"OK\")","v":"Incomplete"}]
[null,null,null,null,null,null,null,{"$f":"IF(COUNTA(tblSectionC[[#This Row],[EAP Verification Category]:[Describe the monitoring processes used by you and your Schools]])<COUNTA(tblSectionC[[#Headers],[EAP Verification Category]:[Describe the monitoring processes used by you and your Schools]]),\"Incomplete\",\"OK\")","v":"Incomplete"}]
[null,null,null,null,null,null,null,{"$f":"IF(COUNTA(tblSectionC[[#This Row],[EAP Verification Category]:[Describe the monitoring processes used by you and your Schools]])<COUNTA(tblSectionC[[#Headers],[EAP Verification Category]:[Describe the monitoring processes used by you and your Schools]]),\"Incomplete\",\"OK\")","v":"Incomplete"}]
[null,null,null,null,null,null,null,{"$f":"IF(COUNTA(tblSectionC[[#This Row],[EAP Verification Category]:[Describe the monitoring processes used by you and your Schools]])<COUNTA(tblSectionC[[#Headers],[EAP Verification Category]:[Describe the monitoring processes used by you and your Schools]]),\"Incomplete\",\"OK\")","v":"Incomplete"}]
[null,null,null,null,null,null,null,{"$f":"IF(COUNTA(tblSectionC[[#This Row],[EAP Verification Category]:[Describe the monitoring processes used by you and your Schools]])<COUNTA(tblSectionC[[#Headers],[EAP Verification Category]:[Describe the monitoring processes used by you and your Schools]]),\"Incomplete\",\"OK\")","v":"Incomplete"}]
[null,null,null,null,null,null,null,{"$f":"IF(COUNTA(tblSectionC[[#This Row],[EAP Verification Category]:[Describe the monitoring processes used by you and your Schools]])<COUNTA(tblSectionC[[#Headers],[EAP Verification Category]:[Describe the monitoring processes used by you and your Schools]]),\"Incomplete\",\"OK\")","v":"Incomplete"}]
[null,null,null,null,null,null,null,{"$f":"IF(COUNTA(tblSectionC[[#This Row],[EAP Verification Category]:[Describe the monitoring processes used by you and your Schools]])<COUNTA(tblSectionC[[#Headers],[EAP Verification Category]:[Describe the monitoring processes used by you and your Schools]]),\"Incomplete\",\"OK\")","v":"Incomplete"}]
[null,null,null,null,null,null,null,{"$f":"IF(COUNTA(tblSectionC[[#This Row],[EAP Verification Category]:[Describe the monitoring processes used by you and your Schools]])<COUNTA(tblSectionC[[#Headers],[EAP Verification Category]:[Describe the monitoring processes used by you and your Schools]]),\"Incomplete\",\"OK\")","v":"Incomplete"}]
[null,null,null,null,null,null,null,{"$f":"IF(COUNTA(tblSectionC[[#This Row],[EAP Verification Category]:[Describe the monitoring processes used by you and your Schools]])<COUNTA(tblSectionC[[#Headers],[EAP Verification Category]:[Describe the monitoring processes used by you and your Schools]]),\"Incomplete\",\"OK\")","v":"Incomplete"}]
[null,null,null,null,null,null,null,{"$f":"IF(COUNTA(tblSectionC[[#This Row],[EAP Verification Category]:[Describe the monitoring processes used by you and your Schools]])<COUNTA(tblSectionC[[#Headers],[EAP Verification Category]:[Describe the monitoring processes used by you and your Schools]]),\"Incomplete\",\"OK\")","v":"Incomplete"}]
[null,null,null,null,null,null,null,{"$f":"IF(COUNTA(tblSectionC[[#This Row],[EAP Verification Category]:[Describe the monitoring processes used by you and your Schools]])<COUNTA(tblSectionC[[#Headers],[EAP Verification Category]:[Describe the monitoring processes used by you and your Schools]]),\"Incomplete\",\"OK\")","v":"Incomplete"}]
[null,null,null,null,null,null,null,{"$f":"IF(COUNTA(tblSectionC[[#This Row],[EAP Verification Category]:[Describe the monitoring processes used by you and your Schools]])<COUNTA(tblSectionC[[#Headers],[EAP Verification Category]:[Describe the monitoring processes used by you and your Schools]]),\"Incomplete\",\"OK\")","v":"Incomplete"}]
[null,null,null,null,null,null,null,{"$f":"IF(COUNTA(tblSectionC[[#This Row],[EAP Verification Category]:[Describe the monitoring processes used by you and your Schools]])<COUNTA(tblSectionC[[#Headers],[EAP Verification Category]:[Describe the monitoring processes used by you and your Schools]]),\"Incomplete\",\"OK\")","v":"Incomplete"}]
[null,null,null,null,null,null,null,{"$f":"IF(COUNTA(tblSectionC[[#This Row],[EAP Verification Category]:[Describe the monitoring processes used by you and your Schools]])<COUNTA(tblSectionC[[#Headers],[EAP Verification Category]:[Describe the monitoring processes used by you and your Schools]]),\"Incomplete\",\"OK\")","v":"Incomplete"}]
[null,null,null,null,null,null,null,{"$f":"IF(COUNTA(tblSectionC[[#This Row],[EAP Verification Category]:[Describe the monitoring processes used by you and your Schools]])<COUNTA(tblSectionC[[#Headers],[EAP Verification Category]:[Describe the monitoring processes used by you and your Schools]]),\"Incomplete\",\"OK\")","v":"Incomplete"}]
[null,null,null,null,null,null,null,{"$f":"IF(COUNTA(tblSectionC[[#This Row],[EAP Verification Category]:[Describe the monitoring processes used by you and your Schools]])<COUNTA(tblSectionC[[#Headers],[EAP Verification Category]:[Describe the monitoring processes used by you and your Schools]]),\"Incomplete\",\"OK\")","v":"Incomplete"}]
[null,null,null,null,null,null,null,{"$f":"IF(COUNTA(tblSectionC[[#This Row],[EAP Verification Category]:[Describe the monitoring processes used by you and your Schools]])<COUNTA(tblSectionC[[#Headers],[EAP Verification Category]:[Describe the monitoring processes used by you and your Schools]]),\"Incomplete\",\"OK\")","v":"Incomplete"}]
[null,null,null,null,null,null,null,{"$f":"IF(COUNTA(tblSectionC[[#This Row],[EAP Verification Category]:[Describe the monitoring processes used by you and your Schools]])<COUNTA(tblSectionC[[#Headers],[EAP Verification Category]:[Describe the monitoring processes used by you and your Schools]]),\"Incomplete\",\"OK\")","v":"Incomplete"}]
[null,null,null,null,null,null,null,{"$f":"IF(COUNTA(tblSectionC[[#This Row],[EAP Verification Category]:[Describe the monitoring processes used by you and your Schools]])<COUNTA(tblSectionC[[#Headers],[EAP Verification Category]:[Describe the monitoring processes used by you and your Schools]]),\"Incomplete\",\"OK\")","v":"Incomplete"}]
[null,null,null,null,null,null,null,{"$f":"IF(COUNTA(tblSectionC[[#This Row],[EAP Verification Category]:[Describe the monitoring processes used by you and your Schools]])<COUNTA(tblSectionC[[#Headers],[EAP Verification Category]:[Describe the monitoring processes used by you and your Schools]]),\"Incomplete\",\"OK\")","v":"Incomplete"}]
[null,null,null,null,null,null,null,{"$f":"IF(COUNTA(tblSectionC[[#This Row],[EAP Verification Category]:[Describe the monitoring processes used by you and your Schools]])<COUNTA(tblSectionC[[#Headers],[EAP Verification Category]:[Describe the monitoring processes used by you and your Schools]]),\"Incomplete\",\"OK\")","v":"Incomplete"}]
[null,null,null,null,null,null,null,{"$f":"IF(COUNTA(tblSectionC[[#This Row],[EAP Verification Category]:[Describe the monitoring processes used by you and your Schools]])<COUNTA(tblSectionC[[#Headers],[EAP Verification Category]:[Describe the monitoring processes used by you and your Schools]]),\"Incomplete\",\"OK\")","v":"Incomplete"}]
[null,null,null,null,null,null,null,{"$f":"IF(COUNTA(tblSectionC[[#This Row],[EAP Verification Category]:[Describe the monitoring processes used by you and your Schools]])<COUNTA(tblSectionC[[#Headers],[EAP Verification Category]:[Describe the monitoring processes used by you and your Schools]]),\"Incomplete\",\"OK\")","v":"Incomplete"}]
[null,null,null,null,null,null,null,{"$f":"IF(COUNTA(tblSectionC[[#This Row],[EAP Verification Category]:[Describe the monitoring processes used by you and your Schools]])<COUNTA(tblSectionC[[#Headers],[EAP Verification Category]:[Describe the monitoring processes used by you and your Schools]]),\"Incomplete\",\"OK\")","v":"Incomplete"}]
[null,null,null,null,null,null,null,{"$f":"IF(COUNTA(tblSectionC[[#This Row],[EAP Verification Category]:[Describe the monitoring processes used by you and your Schools]])<COUNTA(tblSectionC[[#Headers],[EAP Verification Category]:[Describe the monitoring processes used by you and your Schools]]),\"Incomplete\",\"OK\")","v":"Incomplete"}]
[null,null,null,null,null,null,null,{"$f":"IF(COUNTA(tblSectionC[[#This Row],[EAP Verification Category]:[Describe the monitoring processes used by you and your Schools]])<COUNTA(tblSectionC[[#Headers],[EAP Verification Category]:[Describe the monitoring processes used by you and your Schools]]),\"Incomplete\",\"OK\")","v":"Incomplete"}]
[null,null,null,null,null,null,null,{"$f":"IF(COUNTA(tblSectionC[[#This Row],[EAP Verification Category]:[Describe the monitoring processes used by you and your Schools]])<COUNTA(tblSectionC[[#Headers],[EAP Verification Category]:[Describe the monitoring processes used by you and your Schools]]),\"Incomplete\",\"OK\")","v":"Incomplete"}]
[null,null,null,null,null,null,null,{"$f":"IF(COUNTA(tblSectionC[[#This Row],[EAP Verification Category]:[Describe the monitoring processes used by you and your Schools]])<COUNTA(tblSectionC[[#Headers],[EAP Verification Category]:[Describe the monitoring processes used by you and your Schools]]),\"Incomplete\",\"OK\")","v":"Incomplete"}]
[null,null,null,null,null,null,null,{"$f":"IF(COUNTA(tblSectionC[[#This Row],[EAP Verification Category]:[Describe the monitoring processes used by you and your Schools]])<COUNTA(tblSectionC[[#Headers],[EAP Verification Category]:[Describe the monitoring processes used by you and your Schools]]),\"Incomplete\",\"OK\")","v":"Incomplete"}]
[null,null,null,null,null,null,null,{"$f":"IF(COUNTA(tblSectionC[[#This Row],[EAP Verification Category]:[Describe the monitoring processes used by you and your Schools]])<COUNTA(tblSectionC[[#Headers],[EAP Verification Category]:[Describe the monitoring processes used by you and your Schools]]),\"Incomplete\",\"OK\")","v":"Incomplete"}]
[null,null,null,null,null,null,null,{"$f":"IF(COUNTA(tblSectionC[[#This Row],[EAP Verification Category]:[Describe the monitoring processes used by you and your Schools]])<COUNTA(tblSectionC[[#Headers],[EAP Verification Category]:[Describe the monitoring processes used by you and your Schools]]),\"Incomplete\",\"OK\")","v":"Incomplete"}]
[null,null,null,null,null,null,null,{"$f":"IF(COUNTA(tblSectionC[[#This Row],[EAP Verification Category]:[Describe the monitoring processes used by you and your Schools]])<COUNTA(tblSectionC[[#Headers],[EAP Verification Category]:[Describe the monitoring processes used by you and your Schools]]),\"Incomplete\",\"OK\")","v":"Incomplete"}]
[null,null,null,null,null,null,null,{"$f":"IF(COUNTA(tblSectionC[[#This Row],[EAP Verification Category]:[Describe the monitoring processes used by you and your Schools]])<COUNTA(tblSectionC[[#Headers],[EAP Verification Category]:[Describe the monitoring processes used by you and your Schools]]),\"Incomplete\",\"OK\")","v":"Incomplete"}]
[null,null,null,null,null,null,null,{"$f":"IF(COUNTA(tblSectionC[[#This Row],[EAP Verification Category]:[Describe the monitoring processes used by you and your Schools]])<COUNTA(tblSectionC[[#Headers],[EAP Verification Category]:[Describe the monitoring processes used by you and your Schools]]),\"Incomplete\",\"OK\")","v":"Incomplete"}]
[null,null,null,null,null,null,null,{"$f":"IF(COUNTA(tblSectionC[[#This Row],[EAP Verification Category]:[Describe the monitoring processes used by you and your Schools]])<COUNTA(tblSectionC[[#Headers],[EAP Verification Category]:[Describe the monitoring processes used by you and your Schools]]),\"Incomplete\",\"OK\")","v":"Incomplete"}]
[null,null,null,null,null,null,null,{"$f":"IF(COUNTA(tblSectionC[[#This Row],[EAP Verification Category]:[Describe the monitoring processes used by you and your Schools]])<COUNTA(tblSectionC[[#Headers],[EAP Verification Category]:[Describe the monitoring processes used by you and your Schools]]),\"Incomplete\",\"OK\")","v":"Incomplete"}]
[null,null,null,null,null,null,null,{"$f":"IF(COUNTA(tblSectionC[[#This Row],[EAP Verification Category]:[Describe the monitoring processes used by you and your Schools]])<COUNTA(tblSectionC[[#Headers],[EAP Verification Category]:[Describe the monitoring processes used by you and your Schools]]),\"Incomplete\",\"OK\")","v":"Incomplete"}]
[null,null,null,null,null,null,null,{"$f":"IF(COUNTA(tblSectionC[[#This Row],[EAP Verification Category]:[Describe the monitoring processes used by you and your Schools]])<COUNTA(tblSectionC[[#Headers],[EAP Verification Category]:[Describe the monitoring processes used by you and your Schools]]),\"Incomplete\",\"OK\")","v":"Incomplete"}]
[null,null,null,null,null,null,null,{"$f":"IF(COUNTA(tblSectionC[[#This Row],[EAP Verification Category]:[Describe the monitoring processes used by you and your Schools]])<COUNTA(tblSectionC[[#Headers],[EAP Verification Category]:[Describe the monitoring processes used by you and your Schools]]),\"Incomplete\",\"OK\")","v":"Incomplete"}]
[null,null,null,null,null,null,null,{"$f":"IF(COUNTA(tblSectionC[[#This Row],[EAP Verification Category]:[Describe the monitoring processes used by you and your Schools]])<COUNTA(tblSectionC[[#Headers],[EAP Verification Category]:[Describe the monitoring processes used by you and your Schools]]),\"Incomplete\",\"OK\")","v":"Incomplete"}]
[null,null,null,null,null,null,null,{"$f":"IF(COUNTA(tblSectionC[[#This Row],[EAP Verification Category]:[Describe the monitoring processes used by you and your Schools]])<COUNTA(tblSectionC[[#Headers],[EAP Verification Category]:[Describe the monitoring processes used by you and your Schools]]),\"Incomplete\",\"OK\")","v":"Incomplete"}]
[null,null,null,null,null,null,null,{"$f":"IF(COUNTA(tblSectionC[[#This Row],[EAP Verification Category]:[Describe the monitoring processes used by you and your Schools]])<COUNTA(tblSectionC[[#Headers],[EAP Verification Category]:[Describe the monitoring processes used by you and your Schools]]),\"Incomplete\",\"OK\")","v":"Incomplete"}]
[null,null,null,null,null,null,null,{"$f":"IF(COUNTA(tblSectionC[[#This Row],[EAP Verification Category]:[Describe the monitoring processes used by you and your Schools]])<COUNTA(tblSectionC[[#Headers],[EAP Verification Category]:[Describe the monitoring processes used by you and your Schools]]),\"Incomplete\",\"OK\")","v":"Incomplete"}]
[null,null,null,null,null,null,null,{"$f":"IF(COUNTA(tblSectionC[[#This Row],[EAP Verification Category]:[Describe the monitoring processes used by you and your Schools]])<COUNTA(tblSectionC[[#Headers],[EAP Verification Category]:[Describe the monitoring processes used by you and your Schools]]),\"Incomplete\",\"OK\")","v":"Incomplete"}]
[null,null,null,null,null,null,null,{"$f":"IF(COUNTA(tblSectionC[[#This Row],[EAP Verification Category]:[Describe the monitoring processes used by you and your Schools]])<COUNTA(tblSectionC[[#Headers],[EAP Verification Category]:[Describe the monitoring processes used by you and your Schools]]),\"Incomplete\",\"OK\")","v":"Incomplete"}]
[null,null,null,null,null,null,null,{"$f":"IF(COUNTA(tblSectionC[[#This Row],[EAP Verification Category]:[Describe the monitoring processes used by you and your Schools]])<COUNTA(tblSectionC[[#Headers],[EAP Verification Category]:[Describe the monitoring processes used by you and your Schools]]),\"Incomplete\",\"OK\")","v":"Incomplete"}]
[null,null,null,null,null,null,null,{"$f":"IF(COUNTA(tblSectionC[[#This Row],[EAP Verification Category]:[Describe the monitoring processes used by you and your Schools]])<COUNTA(tblSectionC[[#Headers],[EAP Verification Category]:[Describe the monitoring processes used by you and your Schools]]),\"Incomplete\",\"OK\")","v":"Incomplete"}]
[null,null,null,null,null,null,null,{"$f":"IF(COUNTA(tblSectionC[[#This Row],[EAP Verification Category]:[Describe the monitoring processes used by you and your Schools]])<COUNTA(tblSectionC[[#Headers],[EAP Verification Category]:[Describe the monitoring processes used by you and your Schools]]),\"Incomplete\",\"OK\")","v":"Incomplete"}]
[null,null,null,null,null,null,null,{"$f":"IF(COUNTA(tblSectionC[[#This Row],[EAP Verification Category]:[Describe the monitoring processes used by you and your Schools]])<COUNTA(tblSectionC[[#Headers],[EAP Verification Category]:[Describe the monitoring processes used by you and your Schools]]),\"Incomplete\",\"OK\")","v":"Incomplete"}]
[null,null,null,null,null,null,null,{"$f":"IF(COUNTA(tblSectionC[[#This Row],[EAP Verification Category]:[Describe the monitoring processes used by you and your Schools]])<COUNTA(tblSectionC[[#Headers],[EAP Verification Category]:[Describe the monitoring processes used by you and your Schools]]),\"Incomplete\",\"OK\")","v":"Incomplete"}]
[null,null,null,null,null,null,null,{"$f":"IF(COUNTA(tblSectionC[[#This Row],[EAP Verification Category]:[Describe the monitoring processes used by you and your Schools]])<COUNTA(tblSectionC[[#Headers],[EAP Verification Category]:[Describe the monitoring processes used by you and your Schools]]),\"Incomplete\",\"OK\")","v":"Incomplete"}]
[null,null,null,null,null,null,null,{"$f":"IF(COUNTA(tblSectionC[[#This Row],[EAP Verification Category]:[Describe the monitoring processes used by you and your Schools]])<COUNTA(tblSectionC[[#Headers],[EAP Verification Category]:[Describe the monitoring processes used by you and your Schools]]),\"Incomplete\",\"OK\")","v":"Incomplete"}]
[null,null,null,null,null,null,null,{"$f":"IF(COUNTA(tblSectionC[[#This Row],[EAP Verification Category]:[Describe the monitoring processes used by you and your Schools]])<COUNTA(tblSectionC[[#Headers],[EAP Verification Category]:[Describe the monitoring processes used by you and your Schools]]),\"Incomplete\",\"OK\")","v":"Incomplete"}]
[null,null,null,null,null,null,null,{"$f":"IF(COUNTA(tblSectionC[[#This Row],[EAP Verification Category]:[Describe the monitoring processes used by you and your Schools]])<COUNTA(tblSectionC[[#Headers],[EAP Verification Category]:[Describe the monitoring processes used by you and your Schools]]),\"Incomplete\",\"OK\")","v":"Incomplete"}]
[null,null,null,null,null,null,null,{"$f":"IF(COUNTA(tblSectionC[[#This Row],[EAP Verification Category]:[Describe the monitoring processes used by you and your Schools]])<COUNTA(tblSectionC[[#Headers],[EAP Verification Category]:[Describe the monitoring processes used by you and your Schools]]),\"Incomplete\",\"OK\")","v":"Incomplete"}]
[null,null,null,null,null,null,null,{"$f":"IF(COUNTA(tblSectionC[[#This Row],[EAP Verification Category]:[Describe the monitoring processes used by you and your Schools]])<COUNTA(tblSectionC[[#Headers],[EAP Verification Category]:[Describe the monitoring processes used by you and your Schools]]),\"Incomplete\",\"OK\")","v":"Incomplete"}]
[null,null,null,null,null,null,null,{"$f":"IF(COUNTA(tblSectionC[[#This Row],[EAP Verification Category]:[Describe the monitoring processes used by you and your Schools]])<COUNTA(tblSectionC[[#Headers],[EAP Verification Category]:[Describe the monitoring processes used by you and your Schools]]),\"Incomplete\",\"OK\")","v":"Incomplete"}]
[null,null,null,null,null,null,null,{"$f":"IF(COUNTA(tblSectionC[[#This Row],[EAP Verification Category]:[Describe the monitoring processes used by you and your Schools]])<COUNTA(tblSectionC[[#Headers],[EAP Verification Category]:[Describe the monitoring processes used by you and your Schools]]),\"Incomplete\",\"OK\")","v":"Incomplete"}]
[null,null,null,null,null,null,null,{"$f":"IF(COUNTA(tblSectionC[[#This Row],[EAP Verification Category]:[Describe the monitoring processes used by you and your Schools]])<COUNTA(tblSectionC[[#Headers],[EAP Verification Category]:[Describe the monitoring processes used by you and your Schools]]),\"Incomplete\",\"OK\")","v":"Incomplete"}]
[null,null,null,null,null,null,null,{"$f":"IF(COUNTA(tblSectionC[[#This Row],[EAP Verification Category]:[Describe the monitoring processes used by you and your Schools]])<COUNTA(tblSectionC[[#Headers],[EAP Verification Category]:[Describe the monitoring processes used by you and your Schools]]),\"Incomplete\",\"OK\")","v":"Incomplete"}]
[null,null,null,null,null,null,null,{"$f":"IF(COUNTA(tblSectionC[[#This Row],[EAP Verification Category]:[Describe the monitoring processes used by you and your Schools]])<COUNTA(tblSectionC[[#Headers],[EAP Verification Category]:[Describe the monitoring processes used by you and your Schools]]),\"Incomplete\",\"OK\")","v":"Incomplete"}]
[null,null,null,null,null,null,null,{"$f":"IF(COUNTA(tblSectionC[[#This Row],[EAP Verification Category]:[Describe the monitoring processes used by you and your Schools]])<COUNTA(tblSectionC[[#Headers],[EAP Verification Category]:[Describe the monitoring processes used by you and your Schools]]),\"Incomplete\",\"OK\")","v":"Incomplete"}]
[null,null,null,null,null,null,null,{"$f":"IF(COUNTA(tblSectionC[[#This Row],[EAP Verification Category]:[Describe the monitoring processes used by you and your Schools]])<COUNTA(tblSectionC[[#Headers],[EAP Verification Category]:[Describe the monitoring processes used by you and your Schools]]),\"Incomplete\",\"OK\")","v":"Incomplete"}]
[null,null,null,null,null,null,null,{"$f":"IF(COUNTA(tblSectionC[[#This Row],[EAP Verification Category]:[Describe the monitoring processes used by you and your Schools]])<COUNTA(tblSectionC[[#Headers],[EAP Verification Category]:[Describe the monitoring processes used by you and your Schools]]),\"Incomplete\",\"OK\")","v":"Incomplete"}]
[null,null,null,null,null,null,null,{"$f":"IF(COUNTA(tblSectionC[[#This Row],[EAP Verification Category]:[Describe the monitoring processes used by you and your Schools]])<COUNTA(tblSectionC[[#Headers],[EAP Verification Category]:[Describe the monitoring processes used by you and your Schools]]),\"Incomplete\",\"OK\")","v":"Incomplete"}]
[null,null,null,null,null,null,null,{"$f":"IF(COUNTA(tblSectionC[[#This Row],[EAP Verification Category]:[Describe the monitoring processes used by you and your Schools]])<COUNTA(tblSectionC[[#Headers],[EAP Verification Category]:[Describe the monitoring processes used by you and your Schools]]),\"Incomplete\",\"OK\")","v":"Incomplete"}]
[null,null,null,null,null,null,null,{"$f":"IF(COUNTA(tblSectionC[[#This Row],[EAP Verification Category]:[Describe the monitoring processes used by you and your Schools]])<COUNTA(tblSectionC[[#Headers],[EAP Verification Category]:[Describe the monitoring processes used by you and your Schools]]),\"Incomplete\",\"OK\")","v":"Incomplete"}]
[null,null,null,null,null,null,null,{"$f":"IF(COUNTA(tblSectionC[[#This Row],[EAP Verification Category]:[Describe the monitoring processes used by you and your Schools]])<COUNTA(tblSectionC[[#Headers],[EAP Verification Category]:[Describe the monitoring processes used by you and your Schools]]),\"Incomplete\",\"OK\")","v":"Incomplete"}]
[null,null,null,null,null,null,null,{"$f":"IF(COUNTA(tblSectionC[[#This Row],[EAP Verification Category]:[Describe the monitoring processes used by you and your Schools]])<COUNTA(tblSectionC[[#Headers],[EAP Verification Category]:[Describe the monitoring processes used by you and your Schools]]),\"Incomplete\",\"OK\")","v":"Incomplete"}]
[null,null,null,null,null,null,null,{"$f":"IF(COUNTA(tblSectionC[[#This Row],[EAP Verification Category]:[Describe the monitoring processes used by you and your Schools]])<COUNTA(tblSectionC[[#Headers],[EAP Verification Category]:[Describe the monitoring processes used by you and your Schools]]),\"Incomplete\",\"OK\")","v":"Incomplete"}]
[null,null,null,null,null,null,null,{"$f":"IF(COUNTA(tblSectionC[[#This Row],[EAP Verification Category]:[Describe the monitoring processes used by you and your Schools]])<COUNTA(tblSectionC[[#Headers],[EAP Verification Category]:[Describe the monitoring processes used by you and your Schools]]),\"Incomplete\",\"OK\")","v":"Incomplete"}]
[null,null,null,null,null,null,null,{"$f":"IF(COUNTA(tblSectionC[[#This Row],[EAP Verification Category]:[Describe the monitoring processes used by you and your Schools]])<COUNTA(tblSectionC[[#Headers],[EAP Verification Category]:[Describe the monitoring processes used by you and your Schools]]),\"Incomplete\",\"OK\")","v":"Incomplete"}]
[null,null,null,null,null,null,null,{"$f":"IF(COUNTA(tblSectionC[[#This Row],[EAP Verification Category]:[Describe the monitoring processes used by you and your Schools]])<COUNTA(tblSectionC[[#Headers],[EAP Verification Category]:[Describe the monitoring processes used by you and your Schools]]),\"Incomplete\",\"OK\")","v":"Incomplete"}]
[null,null,null,null,null,null,null,{"$f":"IF(COUNTA(tblSectionC[[#This Row],[EAP Verification Category]:[Describe the monitoring processes used by you and your Schools]])<COUNTA(tblSectionC[[#Headers],[EAP Verification Category]:[Describe the monitoring processes used by you and your Schools]]),\"Incomplete\",\"OK\")","v":"Incomplete"}]
[null,null,null,null,null,null,null,{"$f":"IF(COUNTA(tblSectionC[[#This Row],[EAP Verification Category]:[Describe the monitoring processes used by you and your Schools]])<COUNTA(tblSectionC[[#Headers],[EAP Verification Category]:[Describe the monitoring processes used by you and your Schools]]),\"Incomplete\",\"OK\")","v":"Incomplete"}]
[null,null,null,null,null,null,null,{"$f":"IF(COUNTA(tblSectionC[[#This Row],[EAP Verification Category]:[Describe the monitoring processes used by you and your Schools]])<COUNTA(tblSectionC[[#Headers],[EAP Verification Category]:[Describe the monitoring processes used by you and your Schools]]),\"Incomplete\",\"OK\")","v":"Incomplete"}]
[null,null,null,null,null,null,null,{"$f":"IF(COUNTA(tblSectionC[[#This Row],[EAP Verification Category]:[Describe the monitoring processes used by you and your Schools]])<COUNTA(tblSectionC[[#Headers],[EAP Verification Category]:[Describe the monitoring processes used by you and your Schools]]),\"Incomplete\",\"OK\")","v":"Incomplete"}]
[null,null,null,null,null,null,null,{"$f":"IF(COUNTA(tblSectionC[[#This Row],[EAP Verification Category]:[Describe the monitoring processes used by you and your Schools]])<COUNTA(tblSectionC[[#Headers],[EAP Verification Category]:[Describe the monitoring processes used by you and your Schools]]),\"Incomplete\",\"OK\")","v":"Incomplete"}]
[null,null,null,null,null,null,null,{"$f":"IF(COUNTA(tblSectionC[[#This Row],[EAP Verification Category]:[Describe the monitoring processes used by you and your Schools]])<COUNTA(tblSectionC[[#Headers],[EAP Verification Category]:[Describe the monitoring processes used by you and your Schools]]),\"Incomplete\",\"OK\")","v":"Incomplete"}]
[null,null,null,null,null,null,null,{"$f":"IF(COUNTA(tblSectionC[[#This Row],[EAP Verification Category]:[Describe the monitoring processes used by you and your Schools]])<COUNTA(tblSectionC[[#Headers],[EAP Verification Category]:[Describe the monitoring processes used by you and your Schools]]),\"Incomplete\",\"OK\")","v":"Incomplete"}]
[null,null,null,null,null,null,null,{"$f":"IF(COUNTA(tblSectionC[[#This Row],[EAP Verification Category]:[Describe the monitoring processes used by you and your Schools]])<COUNTA(tblSectionC[[#Headers],[EAP Verification Category]:[Describe the monitoring processes used by you and your Schools]]),\"Incomplete\",\"OK\")","v":"Incomplete"}]
[null,null,null,null,null,null,null,{"$f":"IF(COUNTA(tblSectionC[[#This Row],[EAP Verification Category]:[Describe the monitoring processes used by you and your Schools]])<COUNTA(tblSectionC[[#Headers],[EAP Verification Category]:[Describe the monitoring processes used by you and your Schools]]),\"Incomplete\",\"OK\")","v":"Incomplete"}]
[null,null,null,null,null,null,null,{"$f":"IF(COUNTA(tblSectionC[[#This Row],[EAP Verification Category]:[Describe the monitoring processes used by you and your Schools]])<COUNTA(tblSectionC[[#Headers],[EAP Verification Category]:[Describe the monitoring processes used by you and your Schools]]),\"Incomplete\",\"OK\")","v":"Incomplete"}]
[null,null,null,null,null,null,null,{"$f":"IF(COUNTA(tblSectionC[[#This Row],[EAP Verification Category]:[Describe the monitoring processes used by you and your Schools]])<COUNTA(tblSectionC[[#Headers],[EAP Verification Category]:[Describe the monitoring processes used by you and your Schools]]),\"Incomplete\",\"OK\")","v":"Incomplete"}]
[null,null,null,null,null,null,null,{"$f":"IF(COUNTA(tblSectionC[[#This Row],[EAP Verification Category]:[Describe the monitoring processes used by you and your Schools]])<COUNTA(tblSectionC[[#Headers],[EAP Verification Category]:[Describe the monitoring processes used by you and your Schools]]),\"Incomplete\",\"OK\")","v":"Incomplete"}]
[null,null,null,null,null,null,null,{"$f":"IF(COUNTA(tblSectionC[[#This Row],[EAP Verification Category]:[Describe the monitoring processes used by you and your Schools]])<COUNTA(tblSectionC[[#Headers],[EAP Verification Category]:[Describe the monitoring processes used by you and your Schools]]),\"Incomplete\",\"OK\")","v":"Incomplete"}]
[null,null,null,null,null,null,null,{"$f":"IF(COUNTA(tblSectionC[[#This Row],[EAP Verification Category]:[Describe the monitoring processes used by you and your Schools]])<COUNTA(tblSectionC[[#Headers],[EAP Verification Category]:[Describe the monitoring processes used by you and your Schools]]),\"Incomplete\",\"OK\")","v":"Incomplete"}]
[null,null,null,null,null,null,null,{"$f":"IF(COUNTA(tblSectionC[[#This Row],[EAP Verification Category]:[Describe the monitoring processes used by you and your Schools]])<COUNTA(tblSectionC[[#Headers],[EAP Verification Category]:[Describe the monitoring processes used by you and your Schools]]),\"Incomplete\",\"OK\")","v":"Incomplete"}]
[null,null,null,null,null,null,null,{"$f":"IF(COUNTA(tblSectionC[[#This Row],[EAP Verification Category]:[Describe the monitoring processes used by you and your Schools]])<COUNTA(tblSectionC[[#Headers],[EAP Verification Category]:[Describe the monitoring processes used by you and your Schools]]),\"Incomplete\",\"OK\")","v":"Incomplete"}]
[null,null,null,null,null,null,null,{"$f":"IF(COUNTA(tblSectionC[[#This Row],[EAP Verification Category]:[Describe the monitoring processes used by you and your Schools]])<COUNTA(tblSectionC[[#Headers],[EAP Verification Category]:[Describe the monitoring processes used by you and your Schools]]),\"Incomplete\",\"OK\")","v":"Incomplete"}]
[null,null,null,null,null,null,null,{"$f":"IF(COUNTA(tblSectionC[[#This Row],[EAP Verification Category]:[Describe the monitoring processes used by you and your Schools]])<COUNTA(tblSectionC[[#Headers],[EAP Verification Category]:[Describe the monitoring processes used by you and your Schools]]),\"Incomplete\",\"OK\")","v":"Incomplete"}]
[null,null,null,null,null,null,null,{"$f":"IF(COUNTA(tblSectionC[[#This Row],[EAP Verification Category]:[Describe the monitoring processes used by you and your Schools]])<COUNTA(tblSectionC[[#Headers],[EAP Verification Category]:[Describe the monitoring processes used by you and your Schools]]),\"Incomplete\",\"OK\")","v":"Incomplete"}]
[null,null,null,null,null,null,null,{"$f":"IF(COUNTA(tblSectionC[[#This Row],[EAP Verification Category]:[Describe the monitoring processes used by you and your Schools]])<COUNTA(tblSectionC[[#Headers],[EAP Verification Category]:[Describe the monitoring processes used by you and your Schools]]),\"Incomplete\",\"OK\")","v":"Incomplete"}]
[null,null,null,null,null,null,null,{"$f":"IF(COUNTA(tblSectionC[[#This Row],[EAP Verification Category]:[Describe the monitoring processes used by you and your Schools]])<COUNTA(tblSectionC[[#Headers],[EAP Verification Category]:[Describe the monitoring processes used by you and your Schools]]),\"Incomplete\",\"OK\")","v":"Incomplete"}]
[null,null,null,null,null,null,null,{"$f":"IF(COUNTA(tblSectionC[[#This Row],[EAP Verification Category]:[Describe the monitoring processes used by you and your Schools]])<COUNTA(tblSectionC[[#Headers],[EAP Verification Category]:[Describe the monitoring processes used by you and your Schools]]),\"Incomplete\",\"OK\")","v":"Incomplete"}]
[null,null,null,null,null,null,null,{"$f":"IF(COUNTA(tblSectionC[[#This Row],[EAP Verification Category]:[Describe the monitoring processes used by you and your Schools]])<COUNTA(tblSectionC[[#Headers],[EAP Verification Category]:[Describe the monitoring processes used by you and your Schools]]),\"Incomplete\",\"OK\")","v":"Incomplete"}]
[null,null,null,null,null,null,null,{"$f":"IF(COUNTA(tblSectionC[[#This Row],[EAP Verification Category]:[Describe the monitoring processes used by you and your Schools]])<COUNTA(tblSectionC[[#Headers],[EAP Verification Category]:[Describe the monitoring processes used by you and your Schools]]),\"Incomplete\",\"OK\")","v":"Incomplete"}]
[null,null,null,null,null,null,null,{"$f":"IF(COUNTA(tblSectionC[[#This Row],[EAP Verification Category]:[Describe the monitoring processes used by you and your Schools]])<COUNTA(tblSectionC[[#Headers],[EAP Verification Category]:[Describe the monitoring processes used by you and your Schools]]),\"Incomplete\",\"OK\")","v":"Incomplete"}]
[null,null,null,null,null,null,null,{"$f":"IF(COUNTA(tblSectionC[[#This Row],[EAP Verification Category]:[Describe the monitoring processes used by you and your Schools]])<COUNTA(tblSectionC[[#Headers],[EAP Verification Category]:[Describe the monitoring processes used by you and your Schools]]),\"Incomplete\",\"OK\")","v":"Incomplete"}]
[null,null,null,null,null,null,null,{"$f":"IF(COUNTA(tblSectionC[[#This Row],[EAP Verification Category]:[Describe the monitoring processes used by you and your Schools]])<COUNTA(tblSectionC[[#Headers],[EAP Verification Category]:[Describe the monitoring processes used by you and your Schools]]),\"Incomplete\",\"OK\")","v":"Incomplete"}]
[null,null,null,null,null,null,null,{"$f":"IF(COUNTA(tblSectionC[[#This Row],[EAP Verification Category]:[Describe the monitoring processes used by you and your Schools]])<COUNTA(tblSectionC[[#Headers],[EAP Verification Category]:[Describe the monitoring processes used by you and your Schools]]),\"Incomplete\",\"OK\")","v":"Incomplete"}]
[null,null,null,null,null,null,null,{"$f":"IF(COUNTA(tblSectionC[[#This Row],[EAP Verification Category]:[Describe the monitoring processes used by you and your Schools]])<COUNTA(tblSectionC[[#Headers],[EAP Verification Category]:[Describe the monitoring processes used by you and your Schools]]),\"Incomplete\",\"OK\")","v":"Incomplete"}]
[null,null,null,null,null,null,null,{"$f":"IF(COUNTA(tblSectionC[[#This Row],[EAP Verification Category]:[Describe the monitoring processes used by you and your Schools]])<COUNTA(tblSectionC[[#Headers],[EAP Verification Category]:[Describe the monitoring processes used by you and your Schools]]),\"Incomplete\",\"OK\")","v":"Incomplete"}]
[null,null,null,null,null,null,null,{"$f":"IF(COUNTA(tblSectionC[[#This Row],[EAP Verification Category]:[Describe the monitoring processes used by you and your Schools]])<COUNTA(tblSectionC[[#Headers],[EAP Verification Category]:[Describe the monitoring processes used by you and your Schools]]),\"Incomplete\",\"OK\")","v":"Incomplete"}]
[null,null,null,null,null,null,null,{"$f":"IF(COUNTA(tblSectionC[[#This Row],[EAP Verification Category]:[Describe the monitoring processes used by you and your Schools]])<COUNTA(tblSectionC[[#Headers],[EAP Verification Category]:[Describe the monitoring processes used by you and your Schools]]),\"Incomplete\",\"OK\")","v":"Incomplete"}]
[null,null,null,null,null,null,null,{"$f":"IF(COUNTA(tblSectionC[[#This Row],[EAP Verification Category]:[Describe the monitoring processes used by you and your Schools]])<COUNTA(tblSectionC[[#Headers],[EAP Verification Category]:[Describe the monitoring processes used by you and your Schools]]),\"Incomplete\",\"OK\")","v":"Incomplete"}]
[null,null,null,null,null,null,null,{"$f":"IF(COUNTA(tblSectionC[[#This Row],[EAP Verification Category]:[Describe the monitoring processes used by you and your Schools]])<COUNTA(tblSectionC[[#Headers],[EAP Verification Category]:[Describe the monitoring processes used by you and your Schools]]),\"Incomplete\",\"OK\")","v":"Incomplete"}]
[null,null,null,null,null,null,null,{"$f":"IF(COUNTA(tblSectionC[[#This Row],[EAP Verification Category]:[Describe the monitoring processes used by you and your Schools]])<COUNTA(tblSectionC[[#Headers],[EAP Verification Category]:[Describe the monitoring processes used by you and your Schools]]),\"Incomplete\",\"OK\")","v":"Incomplete"}]
[null,null,null,null,null,null,null,{"$f":"IF(COUNTA(tblSectionC[[#This Row],[EAP Verification Category]:[Describe the monitoring processes used by you and your Schools]])<COUNTA(tblSectionC[[#Headers],[EAP Verification Category]:[Describe the monitoring processes used by you and your Schools]]),\"Incomplete\",\"OK\")","v":"Incomplete"}]
[null,null,null,null,null,null,null,{"$f":"IF(COUNTA(tblSectionC[[#This Row],[EAP Verification Category]:[Describe the monitoring processes used by you and your Schools]])<COUNTA(tblSectionC[[#Headers],[EAP Verification Category]:[Describe the monitoring processes used by you and your Schools]]),\"Incomplete\",\"OK\")","v":"Incomplete"}]
[null,null,null,null,null,null,null,{"$f":"IF(COUNTA(tblSectionC[[#This Row],[EAP Verification Category]:[Describe the monitoring processes used by you and your Schools]])<COUNTA(tblSectionC[[#Headers],[EAP Verification Category]:[Describe the monitoring processes used by you and your Schools]]),\"Incomplete\",\"OK\")","v":"Incomplete"}]
[null,null,null,null,null,null,null,{"$f":"IF(COUNTA(tblSectionC[[#This Row],[EAP Verification Category]:[Describe the monitoring processes used by you and your Schools]])<COUNTA(tblSectionC[[#Headers],[EAP Verification Category]:[Describe the monitoring processes used by you and your Schools]]),\"Incomplete\",\"OK\")","v":"Incomplete"}]
[null,null,null,null,null,null,null,{"$f":"IF(COUNTA(tblSectionC[[#This Row],[EAP Verification Category]:[Describe the monitoring processes used by you and your Schools]])<COUNTA(tblSectionC[[#Headers],[EAP Verification Category]:[Describe the monitoring processes used by you and your Schools]]),\"Incomplete\",\"OK\")","v":"Incomplete"}]
[null,null,null,null,null,null,null,{"$f":"IF(COUNTA(tblSectionC[[#This Row],[EAP Verification Category]:[Describe the monitoring processes used by you and your Schools]])<COUNTA(tblSectionC[[#Headers],[EAP Verification Category]:[Describe the monitoring processes used by you and your Schools]]),\"Incomplete\",\"OK\")","v":"Incomplete"}]
[null,null,null,null,null,null,null,{"$f":"IF(COUNTA(tblSectionC[[#This Row],[EAP Verification Category]:[Describe the monitoring processes used by you and your Schools]])<COUNTA(tblSectionC[[#Headers],[EAP Verification Category]:[Describe the monitoring processes used by you and your Schools]]),\"Incomplete\",\"OK\")","v":"Incomplete"}]
[null,null,null,null,null,null,null,{"$f":"IF(COUNTA(tblSectionC[[#This Row],[EAP Verification Category]:[Describe the monitoring processes used by you and your Schools]])<COUNTA(tblSectionC[[#Headers],[EAP Verification Category]:[Describe the monitoring processes used by you and your Schools]]),\"Incomplete\",\"OK\")","v":"Incomplete"}]
[null,null,null,null,null,null,null,{"$f":"IF(COUNTA(tblSectionC[[#This Row],[EAP Verification Category]:[Describe the monitoring processes used by you and your Schools]])<COUNTA(tblSectionC[[#Headers],[EAP Verification Category]:[Describe the monitoring processes used by you and your Schools]]),\"Incomplete\",\"OK\")","v":"Incomplete"}]
[null,null,null,null,null,null,null,{"$f":"IF(COUNTA(tblSectionC[[#This Row],[EAP Verification Category]:[Describe the monitoring processes used by you and your Schools]])<COUNTA(tblSectionC[[#Headers],[EAP Verification Category]:[Describe the monitoring processes used by you and your Schools]]),\"Incomplete\",\"OK\")","v":"Incomplete"}]
[null,null,null,null,null,null,null,{"$f":"IF(COUNTA(tblSectionC[[#This Row],[EAP Verification Category]:[Describe the monitoring processes used by you and your Schools]])<COUNTA(tblSectionC[[#Headers],[EAP Verification Category]:[Describe the monitoring processes used by you and your Schools]]),\"Incomplete\",\"OK\")","v":"Incomplete"}]

{"sheet":"Section D","index":4,"n_rows":155,"n_cols":7,"rows_kept":155,"cut":false,"hidden":false,"merged":[[3,1,3,3]]}
[null,{"$f":"'Instructions and Declaration'!B3","v":"State SWD Program"}]
[null,"Section D - Specialised Resources and Equipment"]
[null,"Note: Please identify the specialised equipment and/or resources purchased to support students with an EAP verification."]
[null,{"$f":"COUNTIFS(tblSectionD[#Data],\"*NCCD*\")","v":0}]
[null,"EAP Verification Category","Type of Resource","Resource Name","Purpose","Resource/Equipment to be Used By","Check"]
[null,null,null,null,null,null,{"$f":"IF(COUNTA(tblSectionD[[#This Row],[EAP Verification Category]:[Resource/Equipment to be Used By]])<COUNTA(tblSectionD[[#Headers],[EAP Verification Category]:[Resource/Equipment to be Used By]]),\"Incomplete\",\"OK\")","v":"Incomplete"}]
[null,null,null,null,null,null,{"$f":"IF(COUNTA(tblSectionD[[#This Row],[EAP Verification Category]:[Resource/Equipment to be Used By]])<COUNTA(tblSectionD[[#Headers],[EAP Verification Category]:[Resource/Equipment to be Used By]]),\"Incomplete\",\"OK\")","v":"Incomplete"}]
[null,null,null,null,null,null,{"$f":"IF(COUNTA(tblSectionD[[#This Row],[EAP Verification Category]:[Resource/Equipment to be Used By]])<COUNTA(tblSectionD[[#Headers],[EAP Verification Category]:[Resource/Equipment to be Used By]]),\"Incomplete\",\"OK\")","v":"Incomplete"}]
[null,null,null,null,null,null,{"$f":"IF(COUNTA(tblSectionD[[#This Row],[EAP Verification Category]:[Resource/Equipment to be Used By]])<COUNTA(tblSectionD[[#Headers],[EAP Verification Category]:[Resource/Equipment to be Used By]]),\"Incomplete\",\"OK\")","v":"Incomplete"}]
[null,null,null,null,null,null,{"$f":"IF(COUNTA(tblSectionD[[#This Row],[EAP Verification Category]:[Resource/Equipment to be Used By]])<COUNTA(tblSectionD[[#Headers],[EAP Verification Category]:[Resource/Equipment to be Used By]]),\"Incomplete\",\"OK\")","v":"Incomplete"}]
[null,null,null,null,null,null,{"$f":"IF(COUNTA(tblSectionD[[#This Row],[EAP Verification Category]:[Resource/Equipment to be Used By]])<COUNTA(tblSectionD[[#Headers],[EAP Verification Category]:[Resource/Equipment to be Used By]]),\"Incomplete\",\"OK\")","v":"Incomplete"}]
[null,null,null,null,null,null,{"$f":"IF(COUNTA(tblSectionD[[#This Row],[EAP Verification Category]:[Resource/Equipment to be Used By]])<COUNTA(tblSectionD[[#Headers],[EAP Verification Category]:[Resource/Equipment to be Used By]]),\"Incomplete\",\"OK\")","v":"Incomplete"}]
[null,null,null,null,null,null,{"$f":"IF(COUNTA(tblSectionD[[#This Row],[EAP Verification Category]:[Resource/Equipment to be Used By]])<COUNTA(tblSectionD[[#Headers],[EAP Verification Category]:[Resource/Equipment to be Used By]]),\"Incomplete\",\"OK\")","v":"Incomplete"}]
[null,null,null,null,null,null,{"$f":"IF(COUNTA(tblSectionD[[#This Row],[EAP Verification Category]:[Resource/Equipment to be Used By]])<COUNTA(tblSectionD[[#Headers],[EAP Verification Category]:[Resource/Equipment to be Used By]]),\"Incomplete\",\"OK\")","v":"Incomplete"}]
[null,null,null,null,null,null,{"$f":"IF(COUNTA(tblSectionD[[#This Row],[EAP Verification Category]:[Resource/Equipment to be Used By]])<COUNTA(tblSectionD[[#Headers],[EAP Verification Category]:[Resource/Equipment to be Used By]]),\"Incomplete\",\"OK\")","v":"Incomplete"}]
[null,null,null,null,null,null,{"$f":"IF(COUNTA(tblSectionD[[#This Row],[EAP Verification Category]:[Resource/Equipment to be Used By]])<COUNTA(tblSectionD[[#Headers],[EAP Verification Category]:[Resource/Equipment to be Used By]]),\"Incomplete\",\"OK\")","v":"Incomplete"}]
[null,null,null,null,null,null,{"$f":"IF(COUNTA(tblSectionD[[#This Row],[EAP Verification Category]:[Resource/Equipment to be Used By]])<COUNTA(tblSectionD[[#Headers],[EAP Verification Category]:[Resource/Equipment to be Used By]]),\"Incomplete\",\"OK\")","v":"Incomplete"}]
[null,null,null,null,null,null,{"$f":"IF(COUNTA(tblSectionD[[#This Row],[EAP Verification Category]:[Resource/Equipment to be Used By]])<COUNTA(tblSectionD[[#Headers],[EAP Verification Category]:[Resource/Equipment to be Used By]]),\"Incomplete\",\"OK\")","v":"Incomplete"}]
[null,null,null,null,null,null,{"$f":"IF(COUNTA(tblSectionD[[#This Row],[EAP Verification Category]:[Resource/Equipment to be Used By]])<COUNTA(tblSectionD[[#Headers],[EAP Verification Category]:[Resource/Equipment to be Used By]]),\"Incomplete\",\"OK\")","v":"Incomplete"}]
[null,null,null,null,null,null,{"$f":"IF(COUNTA(tblSectionD[[#This Row],[EAP Verification Category]:[Resource/Equipment to be Used By]])<COUNTA(tblSectionD[[#Headers],[EAP Verification Category]:[Resource/Equipment to be Used By]]),\"Incomplete\",\"OK\")","v":"Incomplete"}]
[null,null,null,null,null,null,{"$f":"IF(COUNTA(tblSectionD[[#This Row],[EAP Verification Category]:[Resource/Equipment to be Used By]])<COUNTA(tblSectionD[[#Headers],[EAP Verification Category]:[Resource/Equipment to be Used By]]),\"Incomplete\",\"OK\")","v":"Incomplete"}]
[null,null,null,null,null,null,{"$f":"IF(COUNTA(tblSectionD[[#This Row],[EAP Verification Category]:[Resource/Equipment to be Used By]])<COUNTA(tblSectionD[[#Headers],[EAP Verification Category]:[Resource/Equipment to be Used By]]),\"Incomplete\",\"OK\")","v":"Incomplete"}]
[null,null,null,null,null,null,{"$f":"IF(COUNTA(tblSectionD[[#This Row],[EAP Verification Category]:[Resource/Equipment to be Used By]])<COUNTA(tblSectionD[[#Headers],[EAP Verification Category]:[Resource/Equipment to be Used By]]),\"Incomplete\",\"OK\")","v":"Incomplete"}]
[null,null,null,null,null,null,{"$f":"IF(COUNTA(tblSectionD[[#This Row],[EAP Verification Category]:[Resource/Equipment to be Used By]])<COUNTA(tblSectionD[[#Headers],[EAP Verification Category]:[Resource/Equipment to be Used By]]),\"Incomplete\",\"OK\")","v":"Incomplete"}]
[null,null,null,null,null,null,{"$f":"IF(COUNTA(tblSectionD[[#This Row],[EAP Verification Category]:[Resource/Equipment to be Used By]])<COUNTA(tblSectionD[[#Headers],[EAP Verification Category]:[Resource/Equipment to be Used By]]),\"Incomplete\",\"OK\")","v":"Incomplete"}]
[null,null,null,null,null,null,{"$f":"IF(COUNTA(tblSectionD[[#This Row],[EAP Verification Category]:[Resource/Equipment to be Used By]])<COUNTA(tblSectionD[[#Headers],[EAP Verification Category]:[Resource/Equipment to be Used By]]),\"Incomplete\",\"OK\")","v":"Incomplete"}]
[null,null,null,null,null,null,{"$f":"IF(COUNTA(tblSectionD[[#This Row],[EAP Verification Category]:[Resource/Equipment to be Used By]])<COUNTA(tblSectionD[[#Headers],[EAP Verification Category]:[Resource/Equipment to be Used By]]),\"Incomplete\",\"OK\")","v":"Incomplete"}]
[null,null,null,null,null,null,{"$f":"IF(COUNTA(tblSectionD[[#This Row],[EAP Verification Category]:[Resource/Equipment to be Used By]])<COUNTA(tblSectionD[[#Headers],[EAP Verification Category]:[Resource/Equipment to be Used By]]),\"Incomplete\",\"OK\")","v":"Incomplete"}]
[null,null,null,null,null,null,{"$f":"IF(COUNTA(tblSectionD[[#This Row],[EAP Verification Category]:[Resource/Equipment to be Used By]])<COUNTA(tblSectionD[[#Headers],[EAP Verification Category]:[Resource/Equipment to be Used By]]),\"Incomplete\",\"OK\")","v":"Incomplete"}]
[null,null,null,null,null,null,{"$f":"IF(COUNTA(tblSectionD[[#This Row],[EAP Verification Category]:[Resource/Equipment to be Used By]])<COUNTA(tblSectionD[[#Headers],[EAP Verification Category]:[Resource/Equipment to be Used By]]),\"Incomplete\",\"OK\")","v":"Incomplete"}]
[null,null,null,null,null,null,{"$f":"IF(COUNTA(tblSectionD[[#This Row],[EAP Verification Category]:[Resource/Equipment to be Used By]])<COUNTA(tblSectionD[[#Headers],[EAP Verification Category]:[Resource/Equipment to be Used By]]),\"Incomplete\",\"OK\")","v":"Incomplete"}]
[null,null,null,null,null,null,{"$f":"IF(COUNTA(tblSectionD[[#This Row],[EAP Verification Category]:[Resource/Equipment to be Used By]])<COUNTA(tblSectionD[[#Headers],[EAP Verification Category]:[Resource/Equipment to be Used By]]),\"Incomplete\",\"OK\")","v":"Incomplete"}]
[null,null,null,null,null,null,{"$f":"IF(COUNTA(tblSectionD[[#This Row],[EAP Verification Category]:[Resource/Equipment to be Used By]])<COUNTA(tblSectionD[[#Headers],[EAP Verification Category]:[Resource/Equipment to be Used By]]),\"Incomplete\",\"OK\")","v":"Incomplete"}]
[null,null,null,null,null,null,{"$f":"IF(COUNTA(tblSectionD[[#This Row],[EAP Verification Category]:[Resource/Equipment to be Used By]])<COUNTA(tblSectionD[[#Headers],[EAP Verification Category]:[Resource/Equipment to be Used By]]),\"Incomplete\",\"OK\")","v":"Incomplete"}]
[null,null,null,null,null,null,{"$f":"IF(COUNTA(tblSectionD[[#This Row],[EAP Verification Category]:[Resource/Equipment to be Used By]])<COUNTA(tblSectionD[[#Headers],[EAP Verification Category]:[Resource/Equipment to be Used By]]),\"Incomplete\",\"OK\")","v":"Incomplete"}]
[null,null,null,null,null,null,{"$f":"IF(COUNTA(tblSectionD[[#This Row],[EAP Verification Category]:[Resource/Equipment to be Used By]])<COUNTA(tblSectionD[[#Headers],[EAP Verification Category]:[Resource/Equipment to be Used By]]),\"Incomplete\",\"OK\")","v":"Incomplete"}]
[null,null,null,null,null,null,{"$f":"IF(COUNTA(tblSectionD[[#This Row],[EAP Verification Category]:[Resource/Equipment to be Used By]])<COUNTA(tblSectionD[[#Headers],[EAP Verification Category]:[Resource/Equipment to be Used By]]),\"Incomplete\",\"OK\")","v":"Incomplete"}]
[null,null,null,null,null,null,{"$f":"IF(COUNTA(tblSectionD[[#This Row],[EAP Verification Category]:[Resource/Equipment to be Used By]])<COUNTA(tblSectionD[[#Headers],[EAP Verification Category]:[Resource/Equipment to be Used By]]),\"Incomplete\",\"OK\")","v":"Incomplete"}]
[null,null,null,null,null,null,{"$f":"IF(COUNTA(tblSectionD[[#This Row],[EAP Verification Category]:[Resource/Equipment to be Used By]])<COUNTA(tblSectionD[[#Headers],[EAP Verification Category]:[Resource/Equipment to be Used By]]),\"Incomplete\",\"OK\")","v":"Incomplete"}]
[null,null,null,null,null,null,{"$f":"IF(COUNTA(tblSectionD[[#This Row],[EAP Verification Category]:[Resource/Equipment to be Used By]])<COUNTA(tblSectionD[[#Headers],[EAP Verification Category]:[Resource/Equipment to be Used By]]),\"Incomplete\",\"OK\")","v":"Incomplete"}]
[null,null,null,null,null,null,{"$f":"IF(COUNTA(tblSectionD[[#This Row],[EAP Verification Category]:[Resource/Equipment to be Used By]])<COUNTA(tblSectionD[[#Headers],[EAP Verification Category]:[Resource/Equipment to be Used By]]),\"Incomplete\",\"OK\")","v":"Incomplete"}]
[null,null,null,null,null,null,{"$f":"IF(COUNTA(tblSectionD[[#This Row],[EAP Verification Category]:[Resource/Equipment to be Used By]])<COUNTA(tblSectionD[[#Headers],[EAP Verification Category]:[Resource/Equipment to be Used By]]),\"Incomplete\",\"OK\")","v":"Incomplete"}]
[null,null,null,null,null,null,{"$f":"IF(COUNTA(tblSectionD[[#This Row],[EAP Verification Category]:[Resource/Equipment to be Used By]])<COUNTA(tblSectionD[[#Headers],[EAP Verification Category]:[Resource/Equipment to be Used By]]),\"Incomplete\",\"OK\")","v":"Incomplete"}]
[null,null,null,null,null,null,{"$f":"IF(COUNTA(tblSectionD[[#This Row],[EAP Verification Category]:[Resource/Equipment to be Used By]])<COUNTA(tblSectionD[[#Headers],[EAP Verification Category]:[Resource/Equipment to be Used By]]),\"Incomplete\",\"OK\")","v":"Incomplete"}]
[null,null,null,null,null,null,{"$f":"IF(COUNTA(tblSectionD[[#This Row],[EAP Verification Category]:[Resource/Equipment to be Used By]])<COUNTA(tblSectionD[[#Headers],[EAP Verification Category]:[Resource/Equipment to be Used By]]),\"Incomplete\",\"OK\")","v":"Incomplete"}]
[null,null,null,null,null,null,{"$f":"IF(COUNTA(tblSectionD[[#This Row],[EAP Verification Category]:[Resource/Equipment to be Used By]])<COUNTA(tblSectionD[[#Headers],[EAP Verification Category]:[Resource/Equipment to be Used By]]),\"Incomplete\",\"OK\")","v":"Incomplete"}]
[null,null,null,null,null,null,{"$f":"IF(COUNTA(tblSectionD[[#This Row],[EAP Verification Category]:[Resource/Equipment to be Used By]])<COUNTA(tblSectionD[[#Headers],[EAP Verification Category]:[Resource/Equipment to be Used By]]),\"Incomplete\",\"OK\")","v":"Incomplete"}]
[null,null,null,null,null,null,{"$f":"IF(COUNTA(tblSectionD[[#This Row],[EAP Verification Category]:[Resource/Equipment to be Used By]])<COUNTA(tblSectionD[[#Headers],[EAP Verification Category]:[Resource/Equipment to be Used By]]),\"Incomplete\",\"OK\")","v":"Incomplete"}]
[null,null,null,null,null,null,{"$f":"IF(COUNTA(tblSectionD[[#This Row],[EAP Verification Category]:[Resource/Equipment to be Used By]])<COUNTA(tblSectionD[[#Headers],[EAP Verification Category]:[Resource/Equipment to be Used By]]),\"Incomplete\",\"OK\")","v":"Incomplete"}]
[null,null,null,null,null,null,{"$f":"IF(COUNTA(tblSectionD[[#This Row],[EAP Verification Category]:[Resource/Equipment to be Used By]])<COUNTA(tblSectionD[[#Headers],[EAP Verification Category]:[Resource/Equipment to be Used By]]),\"Incomplete\",\"OK\")","v":"Incomplete"}]
[null,null,null,null,null,null,{"$f":"IF(COUNTA(tblSectionD[[#This Row],[EAP Verification Category]:[Resource/Equipment to be Used By]])<COUNTA(tblSectionD[[#Headers],[EAP Verification Category]:[Resource/Equipment to be Used By]]),\"Incomplete\",\"OK\")","v":"Incomplete"}]
[null,null,null,null,null,null,{"$f":"IF(COUNTA(tblSectionD[[#This Row],[EAP Verification Category]:[Resource/Equipment to be Used By]])<COUNTA(tblSectionD[[#Headers],[EAP Verification Category]:[Resource/Equipment to be Used By]]),\"Incomplete\",\"OK\")","v":"Incomplete"}]
[null,null,null,null,null,null,{"$f":"IF(COUNTA(tblSectionD[[#This Row],[EAP Verification Category]:[Resource/Equipment to be Used By]])<COUNTA(tblSectionD[[#Headers],[EAP Verification Category]:[Resource/Equipment to be Used By]]),\"Incomplete\",\"OK\")","v":"Incomplete"}]
[null,null,null,null,null,null,{"$f":"IF(COUNTA(tblSectionD[[#This Row],[EAP Verification Category]:[Resource/Equipment to be Used By]])<COUNTA(tblSectionD[[#Headers],[EAP Verification Category]:[Resource/Equipment to be Used By]]),\"Incomplete\",\"OK\")","v":"Incomplete"}]
[null,null,null,null,null,null,{"$f":"IF(COUNTA(tblSectionD[[#This Row],[EAP Verification Category]:[Resource/Equipment to be Used By]])<COUNTA(tblSectionD[[#Headers],[EAP Verification Category]:[Resource/Equipment to be Used By]]),\"Incomplete\",\"OK\")","v":"Incomplete"}]
[null,null,null,null,null,null,{"$f":"IF(COUNTA(tblSectionD[[#This Row],[EAP Verification Category]:[Resource/Equipment to be Used By]])<COUNTA(tblSectionD[[#Headers],[EAP Verification Category]:[Resource/Equipment to be Used By]]),\"Incomplete\",\"OK\")","v":"Incomplete"}]
[null,null,null,null,null,null,{"$f":"IF(COUNTA(tblSectionD[[#This Row],[EAP Verification Category]:[Resource/Equipment to be Used By]])<COUNTA(tblSectionD[[#Headers],[EAP Verification Category]:[Resource/Equipment to be Used By]]),\"Incomplete\",\"OK\")","v":"Incomplete"}]
[null,null,null,null,null,null,{"$f":"IF(COUNTA(tblSectionD[[#This Row],[EAP Verification Category]:[Resource/Equipment to be Used By]])<COUNTA(tblSectionD[[#Headers],[EAP Verification Category]:[Resource/Equipment to be Used By]]),\"Incomplete\",\"OK\")","v":"Incomplete"}]
[null,null,null,null,null,null,{"$f":"IF(COUNTA(tblSectionD[[#This Row],[EAP Verification Category]:[Resource/Equipment to be Used By]])<COUNTA(tblSectionD[[#Headers],[EAP Verification Category]:[Resource/Equipment to be Used By]]),\"Incomplete\",\"OK\")","v":"Incomplete"}]
[null,null,null,null,null,null,{"$f":"IF(COUNTA(tblSectionD[[#This Row],[EAP Verification Category]:[Resource/Equipment to be Used By]])<COUNTA(tblSectionD[[#Headers],[EAP Verification Category]:[Resource/Equipment to be Used By]]),\"Incomplete\",\"OK\")","v":"Incomplete"}]
[null,null,null,null,null,null,{"$f":"IF(COUNTA(tblSectionD[[#This Row],[EAP Verification Category]:[Resource/Equipment to be Used By]])<COUNTA(tblSectionD[[#Headers],[EAP Verification Category]:[Resource/Equipment to be Used By]]),\"Incomplete\",\"OK\")","v":"Incomplete"}]
[null,null,null,null,null,null,{"$f":"IF(COUNTA(tblSectionD[[#This Row],[EAP Verification Category]:[Resource/Equipment to be Used By]])<COUNTA(tblSectionD[[#Headers],[EAP Verification Category]:[Resource/Equipment to be Used By]]),\"Incomplete\",\"OK\")","v":"Incomplete"}]
[null,null,null,null,null,null,{"$f":"IF(COUNTA(tblSectionD[[#This Row],[EAP Verification Category]:[Resource/Equipment to be Used By]])<COUNTA(tblSectionD[[#Headers],[EAP Verification Category]:[Resource/Equipment to be Used By]]),\"Incomplete\",\"OK\")","v":"Incomplete"}]
[null,null,null,null,null,null,{"$f":"IF(COUNTA(tblSectionD[[#This Row],[EAP Verification Category]:[Resource/Equipment to be Used By]])<COUNTA(tblSectionD[[#Headers],[EAP Verification Category]:[Resource/Equipment to be Used By]]),\"Incomplete\",\"OK\")","v":"Incomplete"}]
[null,null,null,null,null,null,{"$f":"IF(COUNTA(tblSectionD[[#This Row],[EAP Verification Category]:[Resource/Equipment to be Used By]])<COUNTA(tblSectionD[[#Headers],[EAP Verification Category]:[Resource/Equipment to be Used By]]),\"Incomplete\",\"OK\")","v":"Incomplete"}]
[null,null,null,null,null,null,{"$f":"IF(COUNTA(tblSectionD[[#This Row],[EAP Verification Category]:[Resource/Equipment to be Used By]])<COUNTA(tblSectionD[[#Headers],[EAP Verification Category]:[Resource/Equipment to be Used By]]),\"Incomplete\",\"OK\")","v":"Incomplete"}]
[null,null,null,null,null,null,{"$f":"IF(COUNTA(tblSectionD[[#This Row],[EAP Verification Category]:[Resource/Equipment to be Used By]])<COUNTA(tblSectionD[[#Headers],[EAP Verification Category]:[Resource/Equipment to be Used By]]),\"Incomplete\",\"OK\")","v":"Incomplete"}]
[null,null,null,null,null,null,{"$f":"IF(COUNTA(tblSectionD[[#This Row],[EAP Verification Category]:[Resource/Equipment to be Used By]])<COUNTA(tblSectionD[[#Headers],[EAP Verification Category]:[Resource/Equipment to be Used By]]),\"Incomplete\",\"OK\")","v":"Incomplete"}]
[null,null,null,null,null,null,{"$f":"IF(COUNTA(tblSectionD[[#This Row],[EAP Verification Category]:[Resource/Equipment to be Used By]])<COUNTA(tblSectionD[[#Headers],[EAP Verification Category]:[Resource/Equipment to be Used By]]),\"Incomplete\",\"OK\")","v":"Incomplete"}]
[null,null,null,null,null,null,{"$f":"IF(COUNTA(tblSectionD[[#This Row],[EAP Verification Category]:[Resource/Equipment to be Used By]])<COUNTA(tblSectionD[[#Headers],[EAP Verification Category]:[Resource/Equipment to be Used By]]),\"Incomplete\",\"OK\")","v":"Incomplete"}]
[null,null,null,null,null,null,{"$f":"IF(COUNTA(tblSectionD[[#This Row],[EAP Verification Category]:[Resource/Equipment to be Used By]])<COUNTA(tblSectionD[[#Headers],[EAP Verification Category]:[Resource/Equipment to be Used By]]),\"Incomplete\",\"OK\")","v":"Incomplete"}]
[null,null,null,null,null,null,{"$f":"IF(COUNTA(tblSectionD[[#This Row],[EAP Verification Category]:[Resource/Equipment to be Used By]])<COUNTA(tblSectionD[[#Headers],[EAP Verification Category]:[Resource/Equipment to be Used By]]),\"Incomplete\",\"OK\")","v":"Incomplete"}]
[null,null,null,null,null,null,{"$f":"IF(COUNTA(tblSectionD[[#This Row],[EAP Verification Category]:[Resource/Equipment to be Used By]])<COUNTA(tblSectionD[[#Headers],[EAP Verification Category]:[Resource/Equipment to be Used By]]),\"Incomplete\",\"OK\")","v":"Incomplete"}]
[null,null,null,null,null,null,{"$f":"IF(COUNTA(tblSectionD[[#This Row],[EAP Verification Category]:[Resource/Equipment to be Used By]])<COUNTA(tblSectionD[[#Headers],[EAP Verification Category]:[Resource/Equipment to be Used By]]),\"Incomplete\",\"OK\")","v":"Incomplete"}]
[null,null,null,null,null,null,{"$f":"IF(COUNTA(tblSectionD[[#This Row],[EAP Verification Category]:[Resource/Equipment to be Used By]])<COUNTA(tblSectionD[[#Headers],[EAP Verification Category]:[Resource/Equipment to be Used By]]),\"Incomplete\",\"OK\")","v":"Incomplete"}]
[null,null,null,null,null,null,{"$f":"IF(COUNTA(tblSectionD[[#This Row],[EAP Verification Category]:[Resource/Equipment to be Used By]])<COUNTA(tblSectionD[[#Headers],[EAP Verification Category]:[Resource/Equipment to be Used By]]),\"Incomplete\",\"OK\")","v":"Incomplete"}]
[null,null,null,null,null,null,{"$f":"IF(COUNTA(tblSectionD[[#This Row],[EAP Verification Category]:[Resource/Equipment to be Used By]])<COUNTA(tblSectionD[[#Headers],[EAP Verification Category]:[Resource/Equipment to be Used By]]),\"Incomplete\",\"OK\")","v":"Incomplete"}]
[null,null,null,null,null,null,{"$f":"IF(COUNTA(tblSectionD[[#This Row],[EAP Verification Category]:[Resource/Equipment to be Used By]])<COUNTA(tblSectionD[[#Headers],[EAP Verification Category]:[Resource/Equipment to be Used By]]),\"Incomplete\",\"OK\")","v":"Incomplete"}]
[null,null,null,null,null,null,{"$f":"IF(COUNTA(tblSectionD[[#This Row],[EAP Verification Category]:[Resource/Equipment to be Used By]])<COUNTA(tblSectionD[[#Headers],[EAP Verification Category]:[Resource/Equipment to be Used By]]),\"Incomplete\",\"OK\")","v":"Incomplete"}]
[null,null,null,null,null,null,{"$f":"IF(COUNTA(tblSectionD[[#This Row],[EAP Verification Category]:[Resource/Equipment to be Used By]])<COUNTA(tblSectionD[[#Headers],[EAP Verification Category]:[Resource/Equipment to be Used By]]),\"Incomplete\",\"OK\")","v":"Incomplete"}]
[null,null,null,null,null,null,{"$f":"IF(COUNTA(tblSectionD[[#This Row],[EAP Verification Category]:[Resource/Equipment to be Used By]])<COUNTA(tblSectionD[[#Headers],[EAP Verification Category]:[Resource/Equipment to be Used By]]),\"Incomplete\",\"OK\")","v":"Incomplete"}]
[null,null,null,null,null,null,{"$f":"IF(COUNTA(tblSectionD[[#This Row],[EAP Verification Category]:[Resource/Equipment to be Used By]])<COUNTA(tblSectionD[[#Headers],[EAP Verification Category]:[Resource/Equipment to be Used By]]),\"Incomplete\",\"OK\")","v":"Incomplete"}]
[null,null,null,null,null,null,{"$f":"IF(COUNTA(tblSectionD[[#This Row],[EAP Verification Category]:[Resource/Equipment to be Used By]])<COUNTA(tblSectionD[[#Headers],[EAP Verification Category]:[Resource/Equipment to be Used By]]),\"Incomplete\",\"OK\")","v":"Incomplete"}]
[null,null,null,null,null,null,{"$f":"IF(COUNTA(tblSectionD[[#This Row],[EAP Verification Category]:[Resource/Equipment to be Used By]])<COUNTA(tblSectionD[[#Headers],[EAP Verification Category]:[Resource/Equipment to be Used By]]),\"Incomplete\",\"OK\")","v":"Incomplete"}]
[null,null,null,null,null,null,{"$f":"IF(COUNTA(tblSectionD[[#This Row],[EAP Verification Category]:[Resource/Equipment to be Used By]])<COUNTA(tblSectionD[[#Headers],[EAP Verification Category]:[Resource/Equipment to be Used By]]),\"Incomplete\",\"OK\")","v":"Incomplete"}]
[null,null,null,null,null,null,{"$f":"IF(COUNTA(tblSectionD[[#This Row],[EAP Verification Category]:[Resource/Equipment to be Used By]])<COUNTA(tblSectionD[[#Headers],[EAP Verification Category]:[Resource/Equipment to be Used By]]),\"Incomplete\",\"OK\")","v":"Incomplete"}]
[null,null,null,null,null,null,{"$f":"IF(COUNTA(tblSectionD[[#This Row],[EAP Verification Category]:[Resource/Equipment to be Used By]])<COUNTA(tblSectionD[[#Headers],[EAP Verification Category]:[Resource/Equipment to be Used By]]),\"Incomplete\",\"OK\")","v":"Incomplete"}]
[null,null,null,null,null,null,{"$f":"IF(COUNTA(tblSectionD[[#This Row],[EAP Verification Category]:[Resource/Equipment to be Used By]])<COUNTA(tblSectionD[[#Headers],[EAP Verification Category]:[Resource/Equipment to be Used By]]),\"Incomplete\",\"OK\")","v":"Incomplete"}]
[null,null,null,null,null,null,{"$f":"IF(COUNTA(tblSectionD[[#This Row],[EAP Verification Category]:[Resource/Equipment to be Used By]])<COUNTA(tblSectionD[[#Headers],[EAP Verification Category]:[Resource/Equipment to be Used By]]),\"Incomplete\",\"OK\")","v":"Incomplete"}]
[null,null,null,null,null,null,{"$f":"IF(COUNTA(tblSectionD[[#This Row],[EAP Verification Category]:[Resource/Equipment to be Used By]])<COUNTA(tblSectionD[[#Headers],[EAP Verification Category]:[Resource/Equipment to be Used By]]),\"Incomplete\",\"OK\")","v":"Incomplete"}]
[null,null,null,null,null,null,{"$f":"IF(COUNTA(tblSectionD[[#This Row],[EAP Verification Category]:[Resource/Equipment to be Used By]])<COUNTA(tblSectionD[[#Headers],[EAP Verification Category]:[Resource/Equipment to be Used By]]),\"Incomplete\",\"OK\")","v":"Incomplete"}]
[null,null,null,null,null,null,{"$f":"IF(COUNTA(tblSectionD[[#This Row],[EAP Verification Category]:[Resource/Equipment to be Used By]])<COUNTA(tblSectionD[[#Headers],[EAP Verification Category]:[Resource/Equipment to be Used By]]),\"Incomplete\",\"OK\")","v":"Incomplete"}]
[null,null,null,null,null,null,{"$f":"IF(COUNTA(tblSectionD[[#This Row],[EAP Verification Category]:[Resource/Equipment to be Used By]])<COUNTA(tblSectionD[[#Headers],[EAP Verification Category]:[Resource/Equipment to be Used By]]),\"Incomplete\",\"OK\")","v":"Incomplete"}]
[null,null,null,null,null,null,{"$f":"IF(COUNTA(tblSectionD[[#This Row],[EAP Verification Category]:[Resource/Equipment to be Used By]])<COUNTA(tblSectionD[[#Headers],[EAP Verification Category]:[Resource/Equipment to be Used By]]),\"Incomplete\",\"OK\")","v":"Incomplete"}]
[null,null,null,null,null,null,{"$f":"IF(COUNTA(tblSectionD[[#This Row],[EAP Verification Category]:[Resource/Equipment to be Used By]])<COUNTA(tblSectionD[[#Headers],[EAP Verification Category]:[Resource/Equipment to be Used By]]),\"Incomplete\",\"OK\")","v":"Incomplete"}]
[null,null,null,null,null,null,{"$f":"IF(COUNTA(tblSectionD[[#This Row],[EAP Verification Category]:[Resource/Equipment to be Used By]])<COUNTA(tblSectionD[[#Headers],[EAP Verification Category]:[Resource/Equipment to be Used By]]),\"Incomplete\",\"OK\")","v":"Incomplete"}]
[null,null,null,null,null,null,{"$f":"IF(COUNTA(tblSectionD[[#This Row],[EAP Verification Category]:[Resource/Equipment to be Used By]])<COUNTA(tblSectionD[[#Headers],[EAP Verification Category]:[Resource/Equipment to be Used By]]),\"Incomplete\",\"OK\")","v":"Incomplete"}]
[null,null,null,null,null,null,{"$f":"IF(COUNTA(tblSectionD[[#This Row],[EAP Verification Category]:[Resource/Equipment to be Used By]])<COUNTA(tblSectionD[[#Headers],[EAP Verification Category]:[Resource/Equipment to be Used By]]),\"Incomplete\",\"OK\")","v":"Incomplete"}]
[null,null,null,null,null,null,{"$f":"IF(COUNTA(tblSectionD[[#This Row],[EAP Verification Category]:[Resource/Equipment to be Used By]])<COUNTA(tblSectionD[[#Headers],[EAP Verification Category]:[Resource/Equipment to be Used By]]),\"Incomplete\",\"OK\")","v":"Incomplete"}]
[null,null,null,null,null,null,{"$f":"IF(COUNTA(tblSectionD[[#This Row],[EAP Verification Category]:[Resource/Equipment to be Used By]])<COUNTA(tblSectionD[[#Headers],[EAP Verification Category]:[Resource/Equipment to be Used By]]),\"Incomplete\",\"OK\")","v":"Incomplete"}]
[null,null,null,null,null,null,{"$f":"IF(COUNTA(tblSectionD[[#This Row],[EAP Verification Category]:[Resource/Equipment to be Used By]])<COUNTA(tblSectionD[[#Headers],[EAP Verification Category]:[Resource/Equipment to be Used By]]),\"Incomplete\",\"OK\")","v":"Incomplete"}]
[null,null,null,null,null,null,{"$f":"IF(COUNTA(tblSectionD[[#This Row],[EAP Verification Category]:[Resource/Equipment to be Used By]])<COUNTA(tblSectionD[[#Headers],[EAP Verification Category]:[Resource/Equipment to be Used By]]),\"Incomplete\",\"OK\")","v":"Incomplete"}]
[null,null,null,null,null,null,{"$f":"IF(COUNTA(tblSectionD[[#This Row],[EAP Verification Category]:[Resource/Equipment to be Used By]])<COUNTA(tblSectionD[[#Headers],[EAP Verification Category]:[Resource/Equipment to be Used By]]),\"Incomplete\",\"OK\")","v":"Incomplete"}]
[null,null,null,null,null,null,{"$f":"IF(COUNTA(tblSectionD[[#This Row],[EAP Verification Category]:[Resource/Equipment to be Used By]])<COUNTA(tblSectionD[[#Headers],[EAP Verification Category]:[Resource/Equipment to be Used By]]),\"Incomplete\",\"OK\")","v":"Incomplete"}]
[null,null,null,null,null,null,{"$f":"IF(COUNTA(tblSectionD[[#This Row],[EAP Verification Category]:[Resource/Equipment to be Used By]])<COUNTA(tblSectionD[[#Headers],[EAP Verification Category]:[Resource/Equipment to be Used By]]),\"Incomplete\",\"OK\")","v":"Incomplete"}]
[null,null,null,null,null,null,{"$f":"IF(COUNTA(tblSectionD[[#This Row],[EAP Verification Category]:[Resource/Equipment to be Used By]])<COUNTA(tblSectionD[[#Headers],[EAP Verification Category]:[Resource/Equipment to be Used By]]),\"Incomplete\",\"OK\")","v":"Incomplete"}]
[null,null,null,null,null,null,{"$f":"IF(COUNTA(tblSectionD[[#This Row],[EAP Verification Category]:[Resource/Equipment to be Used By]])<COUNTA(tblSectionD[[#Headers],[EAP Verification Category]:[Resource/Equipment to be Used By]]),\"Incomplete\",\"OK\")","v":"Incomplete"}]
[null,null,null,null,null,null,{"$f":"IF(COUNTA(tblSectionD[[#This Row],[EAP Verification Category]:[Resource/Equipment to be Used By]])<COUNTA(tblSectionD[[#Headers],[EAP Verification Category]:[Resource/Equipment to be Used By]]),\"Incomplete\",\"OK\")","v":"Incomplete"}]
[null,null,null,null,null,null,{"$f":"IF(COUNTA(tblSectionD[[#This Row],[EAP Verification Category]:[Resource/Equipment to be Used By]])<COUNTA(tblSectionD[[#Headers],[EAP Verification Category]:[Resource/Equipment to be Used By]]),\"Incomplete\",\"OK\")","v":"Incomplete"}]
[null,null,null,null,null,null,{"$f":"IF(COUNTA(tblSectionD[[#This Row],[EAP Verification Category]:[Resource/Equipment to be Used By]])<COUNTA(tblSectionD[[#Headers],[EAP Verification Category]:[Resource/Equipment to be Used By]]),\"Incomplete\",\"OK\")","v":"Incomplete"}]
[null,null,null,null,null,null,{"$f":"IF(COUNTA(tblSectionD[[#This Row],[EAP Verification Category]:[Resource/Equipment to be Used By]])<COUNTA(tblSectionD[[#Headers],[EAP Verification Category]:[Resource/Equipment to be Used By]]),\"Incomplete\",\"OK\")","v":"Incomplete"}]
[null,null,null,null,null,null,{"$f":"IF(COUNTA(tblSectionD[[#This Row],[EAP Verification Category]:[Resource/Equipment to be Used By]])<COUNTA(tblSectionD[[#Headers],[EAP Verification Category]:[Resource/Equipment to be Used By]]),\"Incomplete\",\"OK\")","v":"Incomplete"}]
[null,null,null,null,null,null,{"$f":"IF(COUNTA(tblSectionD[[#This Row],[EAP Verification Category]:[Resource/Equipment to be Used By]])<COUNTA(tblSectionD[[#Headers],[EAP Verification Category]:[Resource/Equipment to be Used By]]),\"Incomplete\",\"OK\")","v":"Incomplete"}]
[null,null,null,null,null,null,{"$f":"IF(COUNTA(tblSectionD[[#This Row],[EAP Verification Category]:[Resource/Equipment to be Used By]])<COUNTA(tblSectionD[[#Headers],[EAP Verification Category]:[Resource/Equipment to be Used By]]),\"Incomplete\",\"OK\")","v":"Incomplete"}]
[null,null,null,null,null,null,{"$f":"IF(COUNTA(tblSectionD[[#This Row],[EAP Verification Category]:[Resource/Equipment to be Used By]])<COUNTA(tblSectionD[[#Headers],[EAP Verification Category]:[Resource/Equipment to be Used By]]),\"Incomplete\",\"OK\")","v":"Incomplete"}]
[null,null,null,null,null,null,{"$f":"IF(COUNTA(tblSectionD[[#This Row],[EAP Verification Category]:[Resource/Equipment to be Used By]])<COUNTA(tblSectionD[[#Headers],[EAP Verification Category]:[Resource/Equipment to be Used By]]),\"Incomplete\",\"OK\")","v":"Incomplete"}]
[null,null,null,null,null,null,{"$f":"IF(COUNTA(tblSectionD[[#This Row],[EAP Verification Category]:[Resource/Equipment to be Used By]])<COUNTA(tblSectionD[[#Headers],[EAP Verification Category]:[Resource/Equipment to be Used By]]),\"Incomplete\",\"OK\")","v":"Incomplete"}]
[null,null,null,null,null,null,{"$f":"IF(COUNTA(tblSectionD[[#This Row],[EAP Verification Category]:[Resource/Equipment to be Used By]])<COUNTA(tblSectionD[[#Headers],[EAP Verification Category]:[Resource/Equipment to be Used By]]),\"Incomplete\",\"OK\")","v":"Incomplete"}]
[null,null,null,null,null,null,{"$f":"IF(COUNTA(tblSectionD[[#This Row],[EAP Verification Category]:[Resource/Equipment to be Used By]])<COUNTA(tblSectionD[[#Headers],[EAP Verification Category]:[Resource/Equipment to be Used By]]),\"Incomplete\",\"OK\")","v":"Incomplete"}]
[null,null,null,null,null,null,{"$f":"IF(COUNTA(tblSectionD[[#This Row],[EAP Verification Category]:[Resource/Equipment to be Used By]])<COUNTA(tblSectionD[[#Headers],[EAP Verification Category]:[Resource/Equipment to be Used By]]),\"Incomplete\",\"OK\")","v":"Incomplete"}]
[null,null,null,null,null,null,{"$f":"IF(COUNTA(tblSectionD[[#This Row],[EAP Verification Category]:[Resource/Equipment to be Used By]])<COUNTA(tblSectionD[[#Headers],[EAP Verification Category]:[Resource/Equipment to be Used By]]),\"Incomplete\",\"OK\")","v":"Incomplete"}]
[null,null,null,null,null,null,{"$f":"IF(COUNTA(tblSectionD[[#This Row],[EAP Verification Category]:[Resource/Equipment to be Used By]])<COUNTA(tblSectionD[[#Headers],[EAP Verification Category]:[Resource/Equipment to be Used By]]),\"Incomplete\",\"OK\")","v":"Incomplete"}]
[null,null,null,null,null,null,{"$f":"IF(COUNTA(tblSectionD[[#This Row],[EAP Verification Category]:[Resource/Equipment to be Used By]])<COUNTA(tblSectionD[[#Headers],[EAP Verification Category]:[Resource/Equipment to be Used By]]),\"Incomplete\",\"OK\")","v":"Incomplete"}]
[null,null,null,null,null,null,{"$f":"IF(COUNTA(tblSectionD[[#This Row],[EAP Verification Category]:[Resource/Equipment to be Used By]])<COUNTA(tblSectionD[[#Headers],[EAP Verification Category]:[Resource/Equipment to be Used By]]),\"Incomplete\",\"OK\")","v":"Incomplete"}]
[null,null,null,null,null,null,{"$f":"IF(COUNTA(tblSectionD[[#This Row],[EAP Verification Category]:[Resource/Equipment to be Used By]])<COUNTA(tblSectionD[[#Headers],[EAP Verification Category]:[Resource/Equipment to be Used By]]),\"Incomplete\",\"OK\")","v":"Incomplete"}]
[null,null,null,null,null,null,{"$f":"IF(COUNTA(tblSectionD[[#This Row],[EAP Verification Category]:[Resource/Equipment to be Used By]])<COUNTA(tblSectionD[[#Headers],[EAP Verification Category]:[Resource/Equipment to be Used By]]),\"Incomplete\",\"OK\")","v":"Incomplete"}]
[null,null,null,null,null,null,{"$f":"IF(COUNTA(tblSectionD[[#This Row],[EAP Verification Category]:[Resource/Equipment to be Used By]])<COUNTA(tblSectionD[[#Headers],[EAP Verification Category]:[Resource/Equipment to be Used By]]),\"Incomplete\",\"OK\")","v":"Incomplete"}]
[null,null,null,null,null,null,{"$f":"IF(COUNTA(tblSectionD[[#This Row],[EAP Verification Category]:[Resource/Equipment to be Used By]])<COUNTA(tblSectionD[[#Headers],[EAP Verification Category]:[Resource/Equipment to be Used By]]),\"Incomplete\",\"OK\")","v":"Incomplete"}]
[null,null,null,null,null,null,{"$f":"IF(COUNTA(tblSectionD[[#This Row],[EAP Verification Category]:[Resource/Equipment to be Used By]])<COUNTA(tblSectionD[[#Headers],[EAP Verification Category]:[Resource/Equipment to be Used By]]),\"Incomplete\",\"OK\")","v":"Incomplete"}]
[null,null,null,null,null,null,{"$f":"IF(COUNTA(tblSectionD[[#This Row],[EAP Verification Category]:[Resource/Equipment to be Used By]])<COUNTA(tblSectionD[[#Headers],[EAP Verification Category]:[Resource/Equipment to be Used By]]),\"Incomplete\",\"OK\")","v":"Incomplete"}]
[null,null,null,null,null,null,{"$f":"IF(COUNTA(tblSectionD[[#This Row],[EAP Verification Category]:[Resource/Equipment to be Used By]])<COUNTA(tblSectionD[[#Headers],[EAP Verification Category]:[Resource/Equipment to be Used By]]),\"Incomplete\",\"OK\")","v":"Incomplete"}]
[null,null,null,null,null,null,{"$f":"IF(COUNTA(tblSectionD[[#This Row],[EAP Verification Category]:[Resource/Equipment to be Used By]])<COUNTA(tblSectionD[[#Headers],[EAP Verification Category]:[Resource/Equipment to be Used By]]),\"Incomplete\",\"OK\")","v":"Incomplete"}]
[null,null,null,null,null,null,{"$f":"IF(COUNTA(tblSectionD[[#This Row],[EAP Verification Category]:[Resource/Equipment to be Used By]])<COUNTA(tblSectionD[[#Headers],[EAP Verification Category]:[Resource/Equipment to be Used By]]),\"Incomplete\",\"OK\")","v":"Incomplete"}]
[null,null,null,null,null,null,{"$f":"IF(COUNTA(tblSectionD[[#This Row],[EAP Verification Category]:[Resource/Equipment to be Used By]])<COUNTA(tblSectionD[[#Headers],[EAP Verification Category]:[Resource/Equipment to be Used By]]),\"Incomplete\",\"OK\")","v":"Incomplete"}]
[null,null,null,null,null,null,{"$f":"IF(COUNTA(tblSectionD[[#This Row],[EAP Verification Category]:[Resource/Equipment to be Used By]])<COUNTA(tblSectionD[[#Headers],[EAP Verification Category]:[Resource/Equipment to be Used By]]),\"Incomplete\",\"OK\")","v":"Incomplete"}]
[null,null,null,null,null,null,{"$f":"IF(COUNTA(tblSectionD[[#This Row],[EAP Verification Category]:[Resource/Equipment to be Used By]])<COUNTA(tblSectionD[[#Headers],[EAP Verification Category]:[Resource/Equipment to be Used By]]),\"Incomplete\",\"OK\")","v":"Incomplete"}]
[null,null,null,null,null,null,{"$f":"IF(COUNTA(tblSectionD[[#This Row],[EAP Verification Category]:[Resource/Equipment to be Used By]])<COUNTA(tblSectionD[[#Headers],[EAP Verification Category]:[Resource/Equipment to be Used By]]),\"Incomplete\",\"OK\")","v":"Incomplete"}]
[null,null,null,null,null,null,{"$f":"IF(COUNTA(tblSectionD[[#This Row],[EAP Verification Category]:[Resource/Equipment to be Used By]])<COUNTA(tblSectionD[[#Headers],[EAP Verification Category]:[Resource/Equipment to be Used By]]),\"Incomplete\",\"OK\")","v":"Incomplete"}]
[null,null,null,null,null,null,{"$f":"IF(COUNTA(tblSectionD[[#This Row],[EAP Verification Category]:[Resource/Equipment to be Used By]])<COUNTA(tblSectionD[[#Headers],[EAP Verification Category]:[Resource/Equipment to be Used By]]),\"Incomplete\",\"OK\")","v":"Incomplete"}]
[null,null,null,null,null,null,{"$f":"IF(COUNTA(tblSectionD[[#This Row],[EAP Verification Category]:[Resource/Equipment to be Used By]])<COUNTA(tblSectionD[[#Headers],[EAP Verification Category]:[Resource/Equipment to be Used By]]),\"Incomplete\",\"OK\")","v":"Incomplete"}]
[null,null,null,null,null,null,{"$f":"IF(COUNTA(tblSectionD[[#This Row],[EAP Verification Category]:[Resource/Equipment to be Used By]])<COUNTA(tblSectionD[[#Headers],[EAP Verification Category]:[Resource/Equipment to be Used By]]),\"Incomplete\",\"OK\")","v":"Incomplete"}]
[null,null,null,null,null,null,{"$f":"IF(COUNTA(tblSectionD[[#This Row],[EAP Verification Category]:[Resource/Equipment to be Used By]])<COUNTA(tblSectionD[[#Headers],[EAP Verification Category]:[Resource/Equipment to be Used By]]),\"Incomplete\",\"OK\")","v":"Incomplete"}]
[null,null,null,null,null,null,{"$f":"IF(COUNTA(tblSectionD[[#This Row],[EAP Verification Category]:[Resource/Equipment to be Used By]])<COUNTA(tblSectionD[[#Headers],[EAP Verification Category]:[Resource/Equipment to be Used By]]),\"Incomplete\",\"OK\")","v":"Incomplete"}]
[null,null,null,null,null,null,{"$f":"IF(COUNTA(tblSectionD[[#This Row],[EAP Verification Category]:[Resource/Equipment to be Used By]])<COUNTA(tblSectionD[[#Headers],[EAP Verification Category]:[Resource/Equipment to be Used By]]),\"Incomplete\",\"OK\")","v":"Incomplete"}]
[null,null,null,null,null,null,{"$f":"IF(COUNTA(tblSectionD[[#This Row],[EAP Verification Category]:[Resource/Equipment to be Used By]])<COUNTA(tblSectionD[[#Headers],[EAP Verification Category]:[Resource/Equipment to be Used By]]),\"Incomplete\",\"OK\")","v":"Incomplete"}]
[null,null,null,null,null,null,{"$f":"IF(COUNTA(tblSectionD[[#This Row],[EAP Verification Category]:[Resource/Equipment to be Used By]])<COUNTA(tblSectionD[[#Headers],[EAP Verification Category]:[Resource/Equipment to be Used By]]),\"Incomplete\",\"OK\")","v":"Incomplete"}]
[null,null,null,null,null,null,{"$f":"IF(COUNTA(tblSectionD[[#This Row],[EAP Verification Category]:[Resource/Equipment to be Used By]])<COUNTA(tblSectionD[[#Headers],[EAP Verification Category]:[Resource/Equipment to be Used By]]),\"Incomplete\",\"OK\")","v":"Incomplete"}]
[null,null,null,null,null,null,{"$f":"IF(COUNTA(tblSectionD[[#This Row],[EAP Verification Category]:[Resource/Equipment to be Used By]])<COUNTA(tblSectionD[[#Headers],[EAP Verification Category]:[Resource/Equipment to be Used By]]),\"Incomplete\",\"OK\")","v":"Incomplete"}]
[null,null,null,null,null,null,{"$f":"IF(COUNTA(tblSectionD[[#This Row],[EAP Verification Category]:[Resource/Equipment to be Used By]])<COUNTA(tblSectionD[[#Headers],[EAP Verification Category]:[Resource/Equipment to be Used By]]),\"Incomplete\",\"OK\")","v":"Incomplete"}]
[null,null,null,null,null,null,{"$f":"IF(COUNTA(tblSectionD[[#This Row],[EAP Verification Category]:[Resource/Equipment to be Used By]])<COUNTA(tblSectionD[[#Headers],[EAP Verification Category]:[Resource/Equipment to be Used By]]),\"Incomplete\",\"OK\")","v":"Incomplete"}]
[null,null,null,null,null,null,{"$f":"IF(COUNTA(tblSectionD[[#This Row],[EAP Verification Category]:[Resource/Equipment to be Used By]])<COUNTA(tblSectionD[[#Headers],[EAP Verification Category]:[Resource/Equipment to be Used By]]),\"Incomplete\",\"OK\")","v":"Incomplete"}]
[null,null,null,null,null,null,{"$f":"IF(COUNTA(tblSectionD[[#This Row],[EAP Verification Category]:[Resource/Equipment to be Used By]])<COUNTA(tblSectionD[[#Headers],[EAP Verification Category]:[Resource/Equipment to be Used By]]),\"Incomplete\",\"OK\")","v":"Incomplete"}]
[null,null,null,null,null,null,{"$f":"IF(COUNTA(tblSectionD[[#This Row],[EAP Verification Category]:[Resource/Equipment to be Used By]])<COUNTA(tblSectionD[[#Headers],[EAP Verification Category]:[Resource/Equipment to be Used By]]),\"Incomplete\",\"OK\")","v":"Incomplete"}]
[null,null,null,null,null,null,{"$f":"IF(COUNTA(tblSectionD[[#This Row],[EAP Verification Category]:[Resource/Equipment to be Used By]])<COUNTA(tblSectionD[[#Headers],[EAP Verification Category]:[Resource/Equipment to be Used By]]),\"Incomplete\",\"OK\")","v":"Incomplete"}]
[null,null,null,null,null,null,{"$f":"IF(COUNTA(tblSectionD[[#This Row],[EAP Verification Category]:[Resource/Equipment to be Used By]])<COUNTA(tblSectionD[[#Headers],[EAP Verification Category]:[Resource/Equipment to be Used By]]),\"Incomplete\",\"OK\")","v":"Incomplete"}]

{"sheet":"Section E","index":5,"n_rows":12,"n_cols":5,"rows_kept":12,"cut":false,"hidden":false,"merged":[[3,1,3,3]]}
[null,{"$f":"'Instructions and Declaration'!B3","v":"State SWD Program"}]
[null,"Section E - Monitoring Process"]
[null,"Students with an EAP verification supported under this program have the following in place:"]
[null,{"$f":"COUNTIFS(tblSectionE[#Data],\"*NCCD*\")","v":0}]
[null,"Item","Yes / No","For items marked yes, describe the monitoring process","Check"]
[null,"Currency of EAP verification is maintained through completing scheduled reviews of Criterion 1 and/or Criterion 2",null,null,{"$f":"IF(IF(tblSectionE[[#This Row],[Yes / No]]<>\"Yes\",COUNTA(tblSectionE[[#This Row],[Item]:[Yes / No]]),COUNTA(tblSectionE[[#This Row],[Item]:[For items marked yes, describe the monitoring process]]))<IF(tblSectionE[[#This Row],[Yes / No]]<>\"Yes\",COUNTA(tblSectionE[[#Headers],[Item]:[Yes / No]]),COUNTA(tblSectionE[[#Headers],[Item]:[For items marked yes, describe the monitoring process]])),\"Incomplete\",\"OK\")","v":"Incomplete"}]
[null,"A personalised plan (IEP or equivalent) documents educational adjustments in the areas of curriculum, communication, social participation/personal wellbeing, health and personal care, safety and learning environment/access",null,null,{"$f":"IF(IF(tblSectionE[[#This Row],[Yes / No]]<>\"Yes\",COUNTA(tblSectionE[[#This Row],[Item]:[Yes / No]]),COUNTA(tblSectionE[[#This Row],[Item]:[For items marked yes, describe the monitoring process]]))<IF(tblSectionE[[#This Row],[Yes / No]]<>\"Yes\",COUNTA(tblSectionE[[#Headers],[Item]:[Yes / No]]),COUNTA(tblSectionE[[#Headers],[Item]:[For items marked yes, describe the monitoring process]])),\"Incomplete\",\"OK\")","v":"Incomplete"}]
[null,"Personalised plans are reviewed and updated throughout the school year, with educational adjustments tracked and monitored to ensure they are meeting the assessed needs of the student",null,null,{"$f":"IF(IF(tblSectionE[[#This Row],[Yes / No]]<>\"Yes\",COUNTA(tblSectionE[[#This Row],[Item]:[Yes / No]]),COUNTA(tblSectionE[[#This Row],[Item]:[For items marked yes, describe the monitoring process]]))<IF(tblSectionE[[#This Row],[Yes / No]]<>\"Yes\",COUNTA(tblSectionE[[#Headers],[Item]:[Yes / No]]),COUNTA(tblSectionE[[#Headers],[Item]:[For items marked yes, describe the monitoring process]])),\"Incomplete\",\"OK\")","v":"Incomplete"}]
[null,"Information about student learning outcomes and impact of the personalised plan is held on file at the school and/or centrally",null,null,{"$f":"IF(IF(tblSectionE[[#This Row],[Yes / No]]<>\"Yes\",COUNTA(tblSectionE[[#This Row],[Item]:[Yes / No]]),COUNTA(tblSectionE[[#This Row],[Item]:[For items marked yes, describe the monitoring process]]))<IF(tblSectionE[[#This Row],[Yes / No]]<>\"Yes\",COUNTA(tblSectionE[[#Headers],[Item]:[Yes / No]]),COUNTA(tblSectionE[[#Headers],[Item]:[For items marked yes, describe the monitoring process]])),\"Incomplete\",\"OK\")","v":"Incomplete"}]
[null,"Consultation and collaboration occur with parents/carers, students and/or associates to plan, monitor and review educational adjustments in the personalised plan",null,null,{"$f":"IF(IF(tblSectionE[[#This Row],[Yes / No]]<>\"Yes\",COUNTA(tblSectionE[[#This Row],[Item]:[Yes / No]]),COUNTA(tblSectionE[[#This Row],[Item]:[For items marked yes, describe the monitoring process]]))<IF(tblSectionE[[#This Row],[Yes / No]]<>\"Yes\",COUNTA(tblSectionE[[#Headers],[Item]:[Yes / No]]),COUNTA(tblSectionE[[#Headers],[Item]:[For items marked yes, describe the monitoring process]])),\"Incomplete\",\"OK\")","v":"Incomplete"}]
[null,"Student records are maintained and accessible to relevant staff",null,null,{"$f":"IF(IF(tblSectionE[[#This Row],[Yes / No]]<>\"Yes\",COUNTA(tblSectionE[[#This Row],[Item]:[Yes / No]]),COUNTA(tblSectionE[[#This Row],[Item]:[For items marked yes, describe the monitoring process]]))<IF(tblSectionE[[#This Row],[Yes / No]]<>\"Yes\",COUNTA(tblSectionE[[#Headers],[Item]:[Yes / No]]),COUNTA(tblSectionE[[#Headers],[Item]:[For items marked yes, describe the monitoring process]])),\"Incomplete\",\"OK\")","v":"Incomplete"}]
[null,"Other – describe other monitoring processes to ensure efficacy of the program",null,null,{"$f":"IF(IF(tblSectionE[[#This Row],[Yes / No]]<>\"Yes\",COUNTA(tblSectionE[[#This Row],[Item]:[Yes / No]]),COUNTA(tblSectionE[[#This Row],[Item]:[For items marked yes, describe the monitoring process]]))<IF(tblSectionE[[#This Row],[Yes / No]]<>\"Yes\",COUNTA(tblSectionE[[#Headers],[Item]:[Yes / No]]),COUNTA(tblSectionE[[#Headers],[Item]:[For items marked yes, describe the monitoring process]])),\"Incomplete\",\"OK\")","v":"Incomplete"}]

{"sheet":"Section F","index":6,"n_rows":6,"n_cols":4,"rows_kept":6,"cut":false,"hidden":false,"merged":[[3,1,3,2]]}
[null,{"$f":"'Instructions and Declaration'!B3","v":"State SWD Program"}]
[null,"Section F - Improved Outcomes"]
[null,"Note: An overview of the improved educational outcomes for students with an EAP verification."]
[null,{"$f":"COUNTIFS(tblSectionF[#Data],\"*NCCD*\")","v":0}]
[null,"Students - Identify the improved educational outcomes for students with an EAP verification due to the support provided through this program","Teachers - What have been the improvements in teacher capacity to teach students with an EAP verification because of the PD, services or resources provided through this program? ","Identify any areas of focused activity to improve outcomes for eligible students and/or teachers. "]
[null,"For example, noted improvements in attendance, participation, achievements, academic results, confidence and etc.","For example, noted improvements in the areas of teacher capacity, collaboration, differentiation, confidence, process, responsibilities and etc."]

{"sheet":"List","index":7,"n_rows":24,"n_cols":20,"rows_kept":24,"cut":false,"hidden":true,"merged":[]}
[]
[null,"CSA/School",null,"EAP Verification Category",null,"Qualifications",null,"Role / Position",null,"Funded By",null,"Attendee",null,"Resource",null,"Resource Users",null,"PD Outcomes",null,"Role of Service Provider"]
[null,"Archdiocese of Brisbane CEO",null,"Autism Spectrum Disorder",null,"a qualified accountant within the meaning of the Corporations Act 2001",null,"Teacher",null,"In-School",null,"Guidance / School Counsellor",null,"Specialised Equipment",null,"Student",null,"Curriculum",null,"Occupational Therapist"]
[null,"Diocese of Cairns CES",null,"Hearing Impairment",null,"a person registered (or taken to be registered) as a company auditor under the Corporations Act 2001",null,"Teacher Assistant",null,"Central / Regional Office",null,"Learning Support",null,"Books",null,"Teacher",null,"Communication",null,"Speech Pathologist"]
[null,"Diocese of Rockhampton CEO",null,"Intellectual Disability",null,"a person approved by the Minister as a qualified accountant when the Minister is satisfied that the person has relevant qualifications or experience",null,"Guidance Counsellor",null,null,null,"Classroom Teacher",null,"Educational Programs / Resources",null,"Both",null,"Social Participation/Emotional Wellbeing",null,"Specialist Teacher"]
[null,"Diocese of Toowoomba CEO",null,"Physical Impairment",null,null,null,"Nurse",null,null,null,"School Leader",null,"Assessment Kits / Tools",null,null,null,"Health and Personal Care",null,"Physiotherapist"]
[null,"Diocese of Townsville CEO",null,"Social Emotional Disorder",null,null,null,"Learning Support Teacher",null,null,null,null,null,"Technology Equipment - Hardware",null,null,null,"Safety",null,"Psychologist/Counsellor"]
[null,"Edmund Rice Education Australia",null,"Speech Language Impairment",null,null,null,"Counsellor",null,null,null,null,null,"Digital Resources - Software / Apps Subscriptions",null,null,null,"Learning Environment/Access",null,"Other"]
[null,"All Hallows' School",null,"Visual Impairment",null,null,null,"Therapist / Specialist (identify type)",null,null,null,null,null,"Other",null,null,null,"Specific Disability focus"]
[null,"Brigidine College",null,null,null,null,null,"Other",null,null,null,null,null,null,null,null,null,"QCAA: QCE, QCIA, AARA, NAPLAN"]
[null,"Downlands College",null,null,null,null,null,null,null,null,null,null,null,null,null,null,null,"Other"]
[null,"Iona College"]
[null,"Loreto College Coorparoo"]
[null,"Lourdes Hill College"]
[null,"Marist College Ashgrove"]
[null,"Mount Alvernia College"]
[null,"Mt St Michael's College"]
[null,"Padua College"]
[null,"St Patrick's College Townsville"]
[null,"St Rita's College"]
[null,"St Ursula's College, Toowoomba"]
[null,"St Ursula's College, Yeppoon"]
[null,"Stuartholme School"]
[null,"Villanova College"]

{"sheet":"School List","index":8,"n_rows":310,"n_cols":8,"rows_kept":310,"cut":false,"hidden":true,"merged":[]}
["School","Account Description","Account Description 2","Data Entry Control","Linked System","Federal ID","State ID","CSA"]
["6197","All Saints Primary School (ALBANY CREEK)","","Active","","5610","5600","Archdiocese of Brisbane CEO"]
["6002","All Saints' School (BOONAH)","","Active","","409","5111","Archdiocese of Brisbane CEO"]
["6003","Aquinas College (ASHMORE)","","Active","","411","5316","Archdiocese of Brisbane CEO"]
["6284","Assisi Catholic College (UPPER COOMERA)","","Active","","18057","5313","Archdiocese of Brisbane CEO"]
["6206","Carmel College (THORNLANDS)","","Active","","13460","5596","Archdiocese of Brisbane CEO"]
["6207","Chisholm Catholic College (CORNUBIA)","","Active","","13480","5380","Archdiocese of Brisbane CEO"]
["6176","Christ the King Catholic Primary School (DECEPTION BAY)","","Active","","2528","5106","Archdiocese of Brisbane CEO"]
["6006","Christ the King School (GRACEVILLE)","","Active","","428","5003","Archdiocese of Brisbane CEO"]
["6192","Clairvaux MacKillop College (UPPER MOUNT GRAVATT)","","Active","","5523","5376","Archdiocese of Brisbane CEO"]
["6238","Emmaus College (JIMBOOMBA)","","Active","","17163","2358","Archdiocese of Brisbane CEO"]
["6357","Good Samaritan Catholic College (BLI BLI)","","Active","","84930","A106","Archdiocese of Brisbane CEO"]
["6302","Good Shepherd Catholic Primary School (SPRINGFIELD LAKES)","","Active","","30006","7612","Archdiocese of Brisbane CEO"]
["6007","Guardian Angels' Catholic Primary School (ASHMORE)","","Active","","448","5113","Archdiocese of Brisbane CEO"]
["6008","Guardian Angels' Primary School (WYNNUM)","","Active","","449","5006","Archdiocese of Brisbane CEO"]
["6009","Holy Cross School (WOOLOOWIN)","","Active","","451","5009","Archdiocese of Brisbane CEO"]
["6010","Holy Family Primary School (INDOOROOPILLY)","","Active","","453","5010","Archdiocese of Brisbane CEO"]
["6170","Holy Spirit School (BRAY PARK)","","Active","","2513","5013","Archdiocese of Brisbane CEO"]
["6013","Holy Spirit School (NEW FARM)","","Active","","458","5012","Archdiocese of Brisbane CEO"]
["6014","Immaculate Heart School (LEICHHARDT)","","Active","","460","5016","Archdiocese of Brisbane CEO"]
["6235","Jubilee Primary School (PACIFIC PINES)","","Active","","16689","2263","Archdiocese of Brisbane CEO"]
["6016","Mary Immaculate Primary School (ANNERLEY)","","Active","","475","5020","Archdiocese of Brisbane CEO"]
["6250","Mary MacKillop College (NUNDAH)","","Active","","17230","5347","Archdiocese of Brisbane CEO"]
["6017","Marymount College (BURLEIGH WATERS)","","Active","","476","5381","Archdiocese of Brisbane CEO"]
["6164","Marymount Primary School (BURLEIGH WATERS)","","Active","","2249","5115","Archdiocese of Brisbane CEO"]
["6018","Mater Dei Catholic Primary School (ASHGROVE WEST)","","Active","","477","5021","Archdiocese of Brisbane CEO"]
["6310","McAuley College (BEAUDESERT)","","Active","","30269","94285","Archdiocese of Brisbane CEO"]
["6296","Mother Teresa Primary School (ORMEAU)","","Active","","28619","6142","Archdiocese of Brisbane CEO"]
["6190","Mt Maria College - Petrie (PETRIE)","","Active","","5509","5001","Archdiocese of Brisbane CEO"]
["6174","Mt Maria College (MITCHELTON)","","Active","","2522","5651","Archdiocese of Brisbane CEO"]
["6022","Our Lady Help of Christians School (HENDRA)","","Active","","491","5024","Archdiocese of Brisbane CEO"]
["6023","Our Lady of Dolours School (MITCHELTON)","","Active","","494","5026","Archdiocese of Brisbane CEO"]
["6024","Our Lady of Fatima Primary School (ACACIA RIDGE)","","Active","","495","5027","Archdiocese of Brisbane CEO"]
["6025","Our Lady of Good Counsel School (GATTON)","","Active","","496","5117","Archdiocese of Brisbane CEO"]
["6026","Our Lady of Lourdes Primary School (SUNNYBANK)","","Active","","497","5028","Archdiocese of Brisbane CEO"]
["6028","Our Lady of Mount Carmel School (COORPAROO)","","Active","","501","5030","Archdiocese of Brisbane CEO"]
["6029","Our Lady of the Angels' School (WAVELL HEIGHTS)","","Active","","502","5031","Archdiocese of Brisbane CEO"]
["6030","Our Lady of the Assumption School (ENOGGERA)","","Active","","503","5032","Archdiocese of Brisbane CEO"]
["6178","Our Lady of the Rosary School (CALOUNDRA)","","Active","","2533","5137","Archdiocese of Brisbane CEO"]
["6031","Our Lady of the Rosary School (KENMORE)","","Active","","505","5033","Archdiocese of Brisbane CEO"]
["6036","Our Lady of the Sacred Heart Catholic Primary School (DARRA)","","Active","","516","5034","Archdiocese of Brisbane CEO"]
["6034","Our Lady of the Way School (PETRIE)","","Active","","510","5035","Archdiocese of Brisbane CEO"]
["6035","Our Lady's College (ANNERLEY)","","Active","","512","5356","Archdiocese of Brisbane CEO"]
["6168","Queen of Apostles Primary School - Thuruna St (STAFFORD)","","Active","","2509","5038","Archdiocese of Brisbane CEO"]
["6041","Sacred Heart Primary School (SANDGATE)","","Active","","526","5044","Archdiocese of Brisbane CEO"]
["6037","Sacred Heart School (BOOVAL)","","Active","","520","5042","Archdiocese of Brisbane CEO"]
["6209","Saint Mary's Catholic College (KINGAROY)","","Active","","13621","5387","Archdiocese of Brisbane CEO"]
["6369","San Damiano College (YARRABILBA)",null,"Active","","86328","A780","Archdiocese of Brisbane CEO"]
["6155","San Sisto College (CARINA)","","Active","","720","5359","Archdiocese of Brisbane CEO"]
["6156","Seton College (MOUNT GRAVATT EAST)","","Active","","722","5360","Archdiocese of Brisbane CEO"]
["6219","Siena Catholic College (SIPPY DOWNS)","","Active","","14676","480","Archdiocese of Brisbane CEO"]
["6239","Siena Catholic Primary School (SIPPY DOWNS)","","Active","","17164","2359","Archdiocese of Brisbane CEO"]
["6370","Sophia College (PLAINLAND)",null,"Active","","87134","A758","Archdiocese of Brisbane CEO"]
["6215","Southern Cross Catholic College - Scarborough (SCARBOROUGH)","","Active","","14311","14","Archdiocese of Brisbane CEO"]
["6043","St Agatha's Primary School (CLAYFIELD)","","Active","","529","5045","Archdiocese of Brisbane CEO"]
["6044","St Agnes School (MOUNT GRAVATT)","","Active","","530","5046","Archdiocese of Brisbane CEO"]
["6045","St Ambrose's Primary School (NEWMARKET)","","Active","","532","5047","Archdiocese of Brisbane CEO"]
["6185","St Andrew's Catholic School (FERNY GROVE)","","Active","","4274","5110","Archdiocese of Brisbane CEO"]
["6360","St Ann's School (REDBANK PLAINS)",null,"Active","","86442","A680","Archdiocese of Brisbane CEO"]
["6180","St Anthony's School (ALEXANDRA HILLS)","","Active","","2539","5107","Archdiocese of Brisbane CEO"]
["6048","St Anthony's School (KEDRON)","","Active","","536","5048","Archdiocese of Brisbane CEO"]
["6276","St Augustine's College (AUGUSTINE HEIGHTS)","","Active","","17525","2501","Archdiocese of Brisbane CEO"]
["6051","St Augustine's Parish Primary School (CURRUMBIN WATERS)","","Active","","540","5119","Archdiocese of Brisbane CEO"]
["6312","St Benedict's Catholic School (SHAW)","","Active","","30318","9930318","Archdiocese of Brisbane CEO"]
["6303","St Benedict's College (MANGO HILL)","","Active","","30010","7595","Archdiocese of Brisbane CEO"]
["6293","St Benedict's Primary School (MANGO HILL)","","Active","","26010","5683","Archdiocese of Brisbane CEO"]
["6182","St Bernardine's School (REGENTS PARK)","","Active","","2552","5056","Archdiocese of Brisbane CEO"]
["6053","St Bernard's School (UPPER MOUNT GRAVATT)","","Active","","544","5050","Archdiocese of Brisbane CEO"]
["6054","St Brendan's Primary School (MOOROOKA)","","Active","","546","5051","Archdiocese of Brisbane CEO"]
["6211","St Brigid's Catholic Primary School (NERANG)","","Active","","13763","5522","Archdiocese of Brisbane CEO"]
["6055","St Brigid's Primary School (ROSEWOOD)","","Active","","548","5120","Archdiocese of Brisbane CEO"]
["6158","St Catherine's Catholic Primary School (WISHART)","","Active","","2147","5053","Archdiocese of Brisbane CEO"]
["6311","St Clare's Primary School (YARRABILBA)","","Active","","30270","9962","Archdiocese of Brisbane CEO"]
["6059","St Columban's College (CABOOLTURE)","","Active","","554","5302","Archdiocese of Brisbane CEO"]
["6060","St Columba's Primary School (WILSTON)","","Active","","558","5055","Archdiocese of Brisbane CEO"]
["6061","St Dympna's Parish School (ASPLEY)","","Active","","560","5057","Archdiocese of Brisbane CEO"]
["6173","St Edward the Confessor School (DAISY HILL)","","Active","","2521","5004","Archdiocese of Brisbane CEO"]
["6062","St Elizabeth's School (TARRAGINDI)","","Active","","563","5059","Archdiocese of Brisbane CEO"]
["6204","St Eugene College (BURPENGARY)","","Active","","13180","5431","Archdiocese of Brisbane CEO"]
["6063","St Finbarr's School (ASHGROVE)","","Active","","564","5062","Archdiocese of Brisbane CEO"]
["6065","St Flannan's School (ZILLMERE)","","Active","","566","5063","Archdiocese of Brisbane CEO"]
["6196","St Francis' College (CRESTMEAD)","","Active","","5609","5164","Archdiocese of Brisbane CEO"]
["6169","St Francis Xavier School (RUNAWAY BAY)","","Active","","2511","5121","Archdiocese of Brisbane CEO"]
["6070","St Francis Xavier's School (GOODNA)","","Active","","575","5064","Archdiocese of Brisbane CEO"]
["6071","St Ignatius School (TOOWONG)","","Active","","579","5066","Archdiocese of Brisbane CEO"]
["6072","St Ita's Regional Primary School (DUTTON PARK)","","Active","","580","5067","Archdiocese of Brisbane CEO"]
["6073","St James Primary School (COORPAROO)","","Active","","582","5069","Archdiocese of Brisbane CEO"]
["6074","St Joachim's School (HOLLAND PARK)","","Active","","583","5070","Archdiocese of Brisbane CEO"]
["6038","St John Fisher College (BRACKEN RIDGE)","","Active","","521","5346","Archdiocese of Brisbane CEO"]
["6079","St John Vianney's Primary School (MANLY)","","Active","","589","5072","Archdiocese of Brisbane CEO"]
["6161","St John's College (NAMBOUR)","","Active","","2202","5125","Archdiocese of Brisbane CEO"]
["6172","St Joseph's Catholic Primary School (BRACKEN RIDGE)","","Active","","2520","5080","Archdiocese of Brisbane CEO"]
["6358","St Joseph's College (COOMERA)","","Active","","84936","A107","Archdiocese of Brisbane CEO"]
["6090","St Joseph's Primary School (CORINDA)","","Active","","609","5074","Archdiocese of Brisbane CEO"]
["6098","St Joseph's Primary School (KANGAROO POINT)","","Active","","621","5075","Archdiocese of Brisbane CEO"]
["6084","St Joseph's Primary School (NAMBOUR)","","Active","","601","5384","Archdiocese of Brisbane CEO"]
["6093","St Joseph's School (BARDON)","","Active","","614","5073","Archdiocese of Brisbane CEO"]
["6094","St Joseph's School (CHILDERS)","","Active","","615","5122","Archdiocese of Brisbane CEO"]
["6097","St Joseph's School (GAYNDAH)","","Active","","619","5123","Archdiocese of Brisbane CEO"]
["6101","St Joseph's School (MURGON)","","Active","","625","5124","Archdiocese of Brisbane CEO"]
["6085","St Joseph's School (NORTH IPSWICH)","","Active","","602","5076","Archdiocese of Brisbane CEO"]
["6091","St Joseph's School (NUNDAH)","","Active","","610","5078","Archdiocese of Brisbane CEO"]
["6105","St Joseph's Tobruk Memorial School (BEENLEIGH)","","Active","","631","5079","Archdiocese of Brisbane CEO"]
["6175","St Kevin's School (BENOWA)","","Active","","2527","5136","Archdiocese of Brisbane CEO"]
["6106","St Kevin's School (GEEBUNG)","","Active","","632","5081","Archdiocese of Brisbane CEO"]
["6107","St Kieran's School (BRIGHTON)","","Active","","634","5082","Archdiocese of Brisbane CEO"]
["6202","St Luke's Catholic Parish School (CAPALABA)","","Active","","5917","5601","Archdiocese of Brisbane CEO"]
["6109","St Mark's School (INALA)","","Active","","641","5086","Archdiocese of Brisbane CEO"]
["6110","St Martin's School (CARINA)","","Active","","642","5087","Archdiocese of Brisbane CEO"]
["6218","St Mary MacKillop Primary School (BIRKDALE)","","Active","","14583","596","Archdiocese of Brisbane CEO"]
["6012","St Mary of the Cross School (WINDSOR)","","Active","","455","5011","Archdiocese of Brisbane CEO"]
["6114","St Mary's College (IPSWICH)","","Active","","654","5368","Archdiocese of Brisbane CEO"]
["6005","St Mary's College (MARYBOROUGH)","","Active","","427","5386","Archdiocese of Brisbane CEO"]
["6116","St Mary's Primary School (IPSWICH)","","Active","","658","5088","Archdiocese of Brisbane CEO"]
["6117","St Mary's Primary School (MARYBOROUGH)","","Active","","659","5130","Archdiocese of Brisbane CEO"]
["6111","St Mary's School (BEAUDESERT)","","Active","","648","5127","Archdiocese of Brisbane CEO"]
["6113","St Mary's School (LAIDLEY)","","Active","","651","5129","Archdiocese of Brisbane CEO"]
["6184","St Matthew's School (CORNUBIA)","","Active","","4053","5104","Archdiocese of Brisbane CEO"]
["6186","St Michael's College (MERRIMAC)","","Active","","4275","5378","Archdiocese of Brisbane CEO"]
["6004","St Oliver Plunkett School (CANNON HILL)","","Active","","413","5000","Archdiocese of Brisbane CEO"]
["6128","St Patrick's College (GYMPIE)","","Active","","679","5389","Archdiocese of Brisbane CEO"]
["6130","St Patrick's Primary School (GYMPIE)","","Active","","681","5132","Archdiocese of Brisbane CEO"]
["6125","St Patrick's Primary School (NANANGO)","","Active","","675","5133","Archdiocese of Brisbane CEO"]
["6134","St Paul's School (WOODRIDGE)","","Active","","687","5091","Archdiocese of Brisbane CEO"]
["6139","St Peter Chanel Primary School (THE GAP)","","Active","","694","5094","Archdiocese of Brisbane CEO"]
["6162","St Peter Claver College (RIVERVIEW)","","Active","","2204","5370","Archdiocese of Brisbane CEO"]
["6136","St Peter's Catholic Primary School (CABOOLTURE)","","Active","","691","5095","Archdiocese of Brisbane CEO"]
["6165","St Peter's Primary School (ROCHEDALE)","","Active","","2504","5097","Archdiocese of Brisbane CEO"]
["6140","St Pius' Primary School (BANYO)","","Active","","695","5098","Archdiocese of Brisbane CEO"]
["6141","St Pius X School (SALISBURY)","","Active","","696","5099","Archdiocese of Brisbane CEO"]
["6212","St Rita's Primary School (VICTORIA POINT)","","Active","","13771","5594","Archdiocese of Brisbane CEO"]
["6145","St Sebastian's Primary School (YERONGA)","","Active","","702","5101","Archdiocese of Brisbane CEO"]
["6281","St Stephen's School (ALGESTER)","","Active","","17747","2495","Archdiocese of Brisbane CEO"]
["6282","St Teresa's Catholic College (NOOSAVILLE)","","Active","","17748","2494","Archdiocese of Brisbane CEO"]
["6166","St Thomas More College (SUNNYBANK)","","Active","","2505","5374","Archdiocese of Brisbane CEO"]
["6205","St Thomas More Primary School (SUNSHINE BEACH)","","Active","","13181","5428","Archdiocese of Brisbane CEO"]
["6150","St Thomas' School (CAMP HILL)","","Active","","710","5103","Archdiocese of Brisbane CEO"]
["6153","St Vincent's Primary School (CLEAR ISLAND WATERS)","","Active","","717","5135","Archdiocese of Brisbane CEO"]
["6154","St William's Primary School (GROVELY)","","Active","","718","5105","Archdiocese of Brisbane CEO"]
["6183","Star of the Sea Catholic School (TORQUAY)","","Active","","4052","5134","Archdiocese of Brisbane CEO"]
["6294","Star of the Sea Primary School (CLEVELAND)","","Active","","27819","5735","Archdiocese of Brisbane CEO"]
["6179","Stella Maris School (MAROOCHYDORE)","","Active","","2534","5138","Archdiocese of Brisbane CEO"]
["6135","Sts Peter and Paul's School (BULIMBA)","","Active","","689","5096","Archdiocese of Brisbane CEO"]
["6181","Trinity College (BEENLEIGH)","","Active","","2544","5367","Archdiocese of Brisbane CEO"]
["6286","Unity College (CALOUNDRA WEST)","","Active","","18220","5475","Archdiocese of Brisbane CEO"]
["6275","Xavier Catholic College (HERVEY BAY)","","Active","","17524","2489","Archdiocese of Brisbane CEO"]
["6277","Good Counsel College (INNISFAIL)","","Active","","17580","5437","Diocese of Cairns CES"]
["6278","Good Counsel Primary School (INNISFAIL)","","Active","","17581","5263","Diocese of Cairns CES"]
["6191","Holy Cross School (TRINITY PARK)","","Active","","5513","5891","Diocese of Cairns CES"]
["6308","Holy Spirit College - Cooktown Boarding (COOKTOWN)","","Active","","30210","8742","Diocese of Cairns CES"]
["6305","MacKillop Catholic College (MOUNT PETER)","","Active","","30177","8148","Diocese of Cairns CES"]
["6020","Mother of Good Counsel School (CAIRNS NORTH)","","Active","","481","5265","Diocese of Cairns CES"]
["6263","Mount St Bernard College - Main (HERBERTON)","","Active","","17244","5438","Diocese of Cairns CES"]
["6021","Our Lady Help of Christians School (EARLVILLE)","","Active","","490","5267","Diocese of Cairns CES"]
["6033","Our Lady of the Sacred Heart School - Thursday (THURSDAY IS)","","Active","","508","5268","Diocese of Cairns CES"]
["6234","St Andrew's Catholic College Redlynch Valley (REDLYNCH)","","Active","","16688","2266","Diocese of Cairns CES"]
["6047","St Anthony's School (DIMBULAH)","","Active","","535","5270","Diocese of Cairns CES"]
["6242","St Augustine's College (CAIRNS)","","Active","","17218","5337","Diocese of Cairns CES"]
["6052","St Augustine's School (MOSSMAN)","","Active","","541","5271","Diocese of Cairns CES"]
["6057","St Clare's School (TULLY)","","Active","","552","5273","Diocese of Cairns CES"]
["6069","St Francis Xavier's School (MANUNDA)","","Active","","574","5275","Diocese of Cairns CES"]
["6198","St Gerard Majella Primary School (WOREE)","","Active","","5612","5065","Diocese of Cairns CES"]
["6077","St John's School (SILKWOOD)","","Active","","586","5277","Diocese of Cairns CES"]
["6306","St Joseph's Parish School (WEIPA)","","Active","","30180","9627","Diocese of Cairns CES"]
["6092","St Joseph's School (ATHERTON)","","Active","","613","5278","Diocese of Cairns CES"]
["6086","St Joseph's School (PARRAMATTA PARK)","","Active","","603","5279","Diocese of Cairns CES"]
["6193","St Mary's Catholic College (WOREE)","","Active","","5528","5439","Diocese of Cairns CES"]
["6122","St Michael's School (GORDONVALE)","","Active","","665","5281","Diocese of Cairns CES"]
["6251","St Monica's College (CAIRNS)","","Active","","17231","5440","Diocese of Cairns CES"]
["6142","St Rita's School (BABINDA)","","Active","","698","5283","Diocese of Cairns CES"]
["6143","St Rita's School (SOUTH JOHNSTONE)","","Active","","699","5284","Diocese of Cairns CES"]
["6285","St Stephen's Catholic College (MAREEBA)","","Active","","18059","5143","Diocese of Cairns CES"]
["6147","St Teresa's School (RAVENSHOE)","","Active","","706","5286","Diocese of Cairns CES"]
["6148","St Therese's School (BENTLEY PARK)","","Active","","708","5287","Diocese of Cairns CES"]
["6152","St Thomas' School (MAREEBA)","","Active","","712","5288","Diocese of Cairns CES"]
["6236","Chanel College (GLADSTONE)","","Active","","16952","5409","Diocese of Rockhampton CEO"]
["6232","Emmanuel Catholic Primary School (MOUNT PLEASANT)","","Active","","15877","367","Diocese of Rockhampton CEO"]
["6213","Emmaus College - Main Street (PARK AVENUE)","","Active","","14048","5408","Diocese of Rockhampton CEO"]
["6233","Holy Spirit College (MOUNT PLEASANT)","","Active","","15878","374","Diocese of Rockhampton CEO"]
["6216","MacKillop Catholic Primary School (ANDERGROVE)","","Active","","14316","98","Diocese of Rockhampton CEO"]
["6220","Marist College (EMERALD)","","Active","","14750","204","Diocese of Rockhampton CEO"]
["6265","Mercy College (MACKAY)","","Active","","17246","5412","Diocese of Rockhampton CEO"]
["6032","Our Lady of the Sacred Heart Catholic School (SPRINGSURE)","","Active","","507","5192","Diocese of Rockhampton CEO"]
["6194","Our Lady's Catholic Primary School (LONGREACH)","","Active","","5565","5413","Diocese of Rockhampton CEO"]
["6039","Sacred Heart Catholic Primary School (YEPPOON)","","Active","","524","5196","Diocese of Rockhampton CEO"]
["6248","Shalom College (BUNDABERG)","","Active","","17228","5406","Diocese of Rockhampton CEO"]
["6046","St Anne's Catholic Primary School (SARINA)","","Active","","533","5198","Diocese of Rockhampton CEO"]
["6049","St Anthony's Catholic Primary School (NORTH ROCKHAMPTON)","","Active","","537","5199","Diocese of Rockhampton CEO"]
["6292","St Benedict's Catholic Primary School (YEPPOON)","","Active","","26009","5759","Diocese of Rockhampton CEO"]
["6309","St Brendan's Catholic Primary School (MACKAY)","","Active","","30236","9621","Diocese of Rockhampton CEO"]
["6304","St Brigid's Catholic Primary School (EMERALD)","","Active","","30142","8613","Diocese of Rockhampton CEO"]
["6287","St Francis Catholic Primary School (TANNUM SANDS)","","Active","","18221","5400","Diocese of Rockhampton CEO"]
["6068","St Francis Xavier Catholic Primary School (MACKAY WEST)","","Active","","572","5200","Diocese of Rockhampton CEO"]
["6171","St John the Baptist Catholic Primary School (GLADSTONE)","","Active","","2514","5202","Diocese of Rockhampton CEO"]
["6078","St John's Catholic Primary School (WALKERSTON)","","Active","","587","5201","Diocese of Rockhampton CEO"]
["6080","St Joseph's Catholic Primary School (BARCALDINE)","","Active","","595","5204","Diocese of Rockhampton CEO"]
["6081","St Joseph's Catholic Primary School (BILOELA)","","Active","","596","5205","Diocese of Rockhampton CEO"]
["6082","St Joseph's Catholic Primary School (BLACKALL)","","Active","","597","5206","Diocese of Rockhampton CEO"]
["6089","St Joseph's Catholic Primary School (BUNDABERG)","","Active","","608","5207","Diocese of Rockhampton CEO"]
["6095","St Joseph's Catholic Primary School (CLERMONT)","","Active","","616","5208","Diocese of Rockhampton CEO"]
["6102","St Joseph's Catholic Primary School (NORTH MACKAY)","","Active","","626","5210","Diocese of Rockhampton CEO"]
["6087","St Joseph's Catholic Primary School (NORTH ROCKHAMPTON)","","Active","","604","5211","Diocese of Rockhampton CEO"]
["6103","St Joseph's Catholic Primary School (WANDAL)","","Active","","627","5212","Diocese of Rockhampton CEO"]
["6201","St Mary's Catholic Primary School (BUNDABERG)","","Active","","5822","5213","Diocese of Rockhampton CEO"]
["6121","St Mary's Catholic Primary School (MACKAY SOUTH)","","Active","","664","5215","Diocese of Rockhampton CEO"]
["6120","St Mary's Catholic Primary School (NORTH ROCKHAMPTON)","","Active","","662","5214","Diocese of Rockhampton CEO"]
["6132","St Patrick's Catholic Primary School (BUNDABERG WEST)","","Active","","684","5218","Diocese of Rockhampton CEO"]
["6129","St Patrick's Catholic Primary School (EMERALD)","","Active","","680","5216","Diocese of Rockhampton CEO"]
["6252","St Patrick's College (MACKAY)","","Active","","17232","5343","Diocese of Rockhampton CEO"]
["6200","St Paul's Catholic Primary School (GRACEMERE)","","Active","","5812","5435","Diocese of Rockhampton CEO"]
["6138","St Peter's Catholic Primary School (ROCKHAMPTON)","","Active","","693","5219","Diocese of Rockhampton CEO"]
["6149","St Therese's Catholic Primary School (MONTO)","","Active","","709","5220","Diocese of Rockhampton CEO"]
["6157","Star of the Sea Catholic Primary School (GLADSTONE)","","Active","","726","5197","Diocese of Rockhampton CEO"]
["6210","The Cathedral College (ROCKHAMPTON)","","Active","","13654","5436","Diocese of Rockhampton CEO"]
["6243","Assumption College (WARWICK)","","Active","","17221","5393","Diocese of Toowoomba CEO"]
["6280","Good Samaritan College (TOOWOOMBA)","","Active","","17731","2367","Diocese of Toowoomba CEO"]
["6011","Holy Name Primary School (TOOWOOMBA)","","Active","","454","5146","Diocese of Toowoomba CEO"]
["6274","Mary MacKillop Catholic College (HIGHFIELDS)","","Active","","17523","2493","Diocese of Toowoomba CEO"]
["6019","Mater Dei Primary School (TOOWOOMBA)","","Active","","478","5150","Diocese of Toowoomba CEO"]
["6027","Our Lady of Lourdes Primary School (TOOWOOMBA)","","Active","","498","5153","Diocese of Toowoomba CEO"]
["6163","Our Lady of the Southern Cross College (DALBY)","","Active","","2248","5189","Diocese of Toowoomba CEO"]
["6040","Sacred Heart Primary School (CUNNAMULLA)","","Active","","525","5158","Diocese of Toowoomba CEO"]
["6042","Sacred Heart Primary School (TOOWOOMBA)","","Active","","528","5159","Diocese of Toowoomba CEO"]
["6050","St Anthony's School (TOOWOOMBA)","","Active","","538","5160","Diocese of Toowoomba CEO"]
["6064","St Finbarr's School (QUILPIE)","","Active","","565","5165","Diocese of Toowoomba CEO"]
["6066","St Francis de Sales School (CLIFTON)","","Active","","568","5166","Diocese of Toowoomba CEO"]
["6076","St John's School (ROMA)","","Active","","585","5324","Diocese of Toowoomba CEO"]
["6283","St Joseph's College (TOOWOOMBA)","","Active","","17900","5323","Diocese of Toowoomba CEO"]
["6083","St Joseph's School (CHINCHILLA)","","Active","","598","5168","Diocese of Toowoomba CEO"]
["6099","St Joseph's School (MILLMERRAN)","","Active","","622","5170","Diocese of Toowoomba CEO"]
["6189","St Joseph's School (STANTHORPE)","","Active","","5380","5398","Diocese of Toowoomba CEO"]
["6104","St Joseph's School (TARA)","","Active","","629","5172","Diocese of Toowoomba CEO"]
["6108","St Maria Goretti School (INGLEWOOD)","","Active","","640","5176","Diocese of Toowoomba CEO"]
["6249","St Mary's College (TOOWOOMBA)","","Active","","17229","5327","Diocese of Toowoomba CEO"]
["6118","St Mary's School - Lower Primary (WARWICK)","","Active","","660","5179","Diocese of Toowoomba CEO"]
["6167","St Mary's School (CHARLEVILLE)","","Active","","2507","5182","Diocese of Toowoomba CEO"]
["6159","St Mary's School (GOONDIWINDI)","","Active","","2149","5177","Diocese of Toowoomba CEO"]
["6124","St Monica's School (OAKEY)","","Active","","668","5181","Diocese of Toowoomba CEO"]
["6126","St Patrick's Primary School (MITCHELL)","","Active","","676","5185","Diocese of Toowoomba CEO"]
["6131","St Patrick's School (ALLORA)","","Active","","683","5183","Diocese of Toowoomba CEO"]
["6133","St Patrick's School (ST GEORGE)","","Active","","686","5184","Diocese of Toowoomba CEO"]
["6257","St Saviour's College (TOOWOOMBA)","","Active","","17237","5402","Diocese of Toowoomba CEO"]
["6144","St Saviour's Primary School (TOOWOOMBA)","","Active","","701","5186","Diocese of Toowoomba CEO"]
["6146","St Stephen's School (PITTSWORTH)","","Active","","704","5187","Diocese of Toowoomba CEO"]
["6151","St Thomas More's Primary School (TOOWOOMBA)","","Active","","711","5188","Diocese of Toowoomba CEO"]
["6260","Burdekin Catholic High School (AYR)","","Active","","17240","5422","Diocese of Townsville CEO"]
["6271","Columba Catholic College - Mount Carmel (CHARTERS TOWERS)","","Active","","17253","1653","Diocese of Townsville CEO"]
["6247","Gilroy Santa Maria College (INGHAM)","","Active","","17227","5328","Diocese of Townsville CEO"]
["6244","Good Shepherd Catholic College (MOUNT ISA)","","Active","","17223","5421","Diocese of Townsville CEO"]
["6214","Good Shepherd Catholic School (RASMUSSEN)","","Active","","14157","308","Diocese of Townsville CEO"]
["6160","Holy Spirit Catholic School (CRANBROOK)","","Active","","2188","5233","Diocese of Townsville CEO"]
["6203","Marian Catholic School (CURRAJONG)","","Active","","8770","5139","Diocese of Townsville CEO"]
["6015","Our Lady of Lourdes Primary School (INGHAM)","","Active","","467","5236","Diocese of Townsville CEO"]
["6177","Ryan Catholic College (KIRWAN)","","Active","","2529","5331","Diocese of Townsville CEO"]
["6222","Southern Cross Catholic College (ANNANDALE)","","Active","","15370","1591","Diocese of Townsville CEO"]
["6208","St Anthony's Catholic College - Padua (DEERAGUN)","","Active","","13492","5222","Diocese of Townsville CEO"]
["6056","St Catherine's Catholic College - Renwick (PROSERPINE)","","Active","","550","7578","Diocese of Townsville CEO"]
["6295","St Clare's Catholic School (BURDELL)","","Active","","28618","6138","Diocese of Townsville CEO"]
["6058","St Colman's School (HOME HILL)","","Active","","553","5239","Diocese of Townsville CEO"]
["6067","St Francis' Catholic School (HUGHENDEN)","","Active","","569","5242","Diocese of Townsville CEO"]
["6119","St Francis' School (AYR)","","Active","","661","5243","Diocese of Townsville CEO"]
["6075","St John Bosco's Catholic School (COLLINSVILLE)","","Active","","584","5245","Diocese of Townsville CEO"]
["6096","St Joseph's Catholic School (CLONCURRY)","","Active","","617","5247","Diocese of Townsville CEO"]
["6187","St Joseph's Catholic School (MOUNT ISA)","","Active","","5353","5250","Diocese of Townsville CEO"]
["6100","St Joseph's Catholic School (MUNDINGBURRA)","","Active","","624","5248","Diocese of Townsville CEO"]
["6088","St Joseph's Catholic School The Strand (NORTH WARD)","","Active","","605","5251","Diocese of Townsville CEO"]
["6188","St Kieran's Catholic School (MOUNT ISA)","","Active","","5354","5226","Diocese of Townsville CEO"]
["6245","St Margaret Mary's College (HYDE PARK)","","Active","","17225","5429","Diocese of Townsville CEO"]
["6112","St Mary's Catholic School (BOWEN)","","Active","","649","5255","Diocese of Townsville CEO"]
["6123","St Michael's Catholic School (PALM ISLAND)","","Active","","666","5260","Diocese of Townsville CEO"]
["6127","St Patrick's Catholic School (WINTON)","","Active","","678","5258","Diocese of Townsville CEO"]
["6137","St Peter's Catholic School (HALIFAX)","","Active","","692","5259","Diocese of Townsville CEO"]
["6266","St Teresa's College (ABERGOWRIE)","","Active","","17247","5434","Diocese of Townsville CEO"]
["6288","Albert Park Flexible Learning Centre (BRISBANE)","","Active","","25123","5636","Edmund Rice Education Australia"]
["6231","Ambrose Treacy College (INDOOROOPILLY)","","Active","","15656","5077","Edmund Rice Education Australia"]
["6290","Deception Bay Flexible Learning Centre (DECEPTION BAY)","","Active","","25125","5637","Edmund Rice Education Australia"]
["6299","Gympie Flexible Learning Centre (GYMPIE)","","Active","","29774","7611","Edmund Rice Education Australia"]
["6300","Hemmant Flexible Learning Centre (HEMMANT)","","Active","","29896","8192","Edmund Rice Education Australia"]
["6230","Ignatius Park College (CRANBROOK)","","Active","","15655","5424","Edmund Rice Education Australia"]
["6301","Inala Flexible Learning Centre (INALA)","","Active","","30003","8578","Edmund Rice Education Australia"]
["6298","Ipswich Flexible Learning Centre (IPSWICH)","","Active","","29743","7922","Edmund Rice Education Australia"]
["6297","Mount Isa Flexible Learning Centre (SUNSET)","","Active","","28895","6606","Edmund Rice Education Australia"]
["6291","Noosa Flexible Learning Centre (SUNSHINE BEACH)","","Active","","25126","5638","Edmund Rice Education Australia"]
["6307","Rockhampton Flexible Learning Centre (ROCKHAMPTON)","","Active","","30209","9803","Edmund Rice Education Australia"]
["6327","Southport Flexible Learning Centre (SOUTHPORT)","","Active","","85178","9757","Edmund Rice Education Australia"]
["6223","St Brendan's College (YEPPOON)","","Active","","15648","5415","Edmund Rice Education Australia"]
["6224","St Edmund's College (IPSWICH)","","Active","","15649","5364","Edmund Rice Education Australia"]
["6225","St James College (SPRING HILL)","","Active","","15650","5304","Edmund Rice Education Australia"]
["6226","St Joseph's College - Spring Hill campus (SPRING HILL)","","Active","","15651","5305","Edmund Rice Education Australia"]
["6227","St Joseph's Nudgee College (BOONDALL)","","Active","","15652","5366","Edmund Rice Education Australia"]
["6228","St Laurence's College (SOUTH BRISBANE)","","Active","","15653","5306","Edmund Rice Education Australia"]
["6229","St Patrick's College (SHORNCLIFFE)","","Active","","15654","5308","Edmund Rice Education Australia"]
["6272","The Centre Education Programme (KINGSTON)","","Active","","17259","1665","Edmund Rice Education Australia"]
["6289","Townsville Flexible Learning Centre (WEST END)","","Active","","25124","5639","Edmund Rice Education Australia"]
["6241","All Hallows' School (BRISBANE)","","Active","","17217","5369","All Hallows' School"]
["6246","Brigidine College (INDOOROOPILLY)","","Active","","17226","5345","Brigidine College"]
["6254","Downlands College (TOOWOOMBA)","","Active","","17234","5395","Downlands College"]
["6256","Iona College (WYNNUM WEST)","","Active","","17236","5295","Iona College"]
["6258","Loreto College Coorparoo (COORPAROO)","","Active","","17238","5349","Loreto College"]
["6259","Lourdes Hill College (HAWTHORNE)","","Active","","17239","5350","Lourdes Hill College"]
["6261","Marist College Ashgrove (ASHGROVE)","","Active","","17241","5307","Marist College Ashgrove"]
["6262","Mount Alvernia College (KEDRON)","","Active","","17243","5353","Mount Alvernia College"]
["6264","Mt St Michael's College (ASHGROVE)","","Active","","17245","5355","Mt St Michael's College"]
["6240","Padua College (KEDRON)","","Active","","17216","5300","Padua College"]
["6253","St Patrick's College Townsville (TOWNSVILLE)","","Active","","17233","5432","St Patrick's College Townsville"]
["6255","St Rita's College (CLAYFIELD)","","Active","","17235","5372","St Rita's College"]
["6267","St Ursula's College (TOOWOOMBA)","","Active","","17248","5404","St Ursula's College, Toowoomba"]
["6268","St Ursula's College (YEPPOON)","","Active","","17249","5419","St Ursula's College, Yeppoon"]
["6269","Stuartholme School (TOOWONG)","","Active","","17250","5362","Stuartholme School"]
["6270","Villanova College (COORPAROO)","","Active","","17251","5310","Villanova College"]